Workbook

Sheet 1st Advance Payment
A1: STATE OF CALIFORNIA | J1: Purchase Authority | L1: BSCC 5227
A2: BOARD OF STATE AND COMMUNITY CORRECTIONS | J2: Purchase Order: | L2: 2469
A3: Advance Payment Invoice: BSCC 201A (Revised 06/2020)
B6: Program: | C6: ='INVOICE 1'!B5 -> Youth Reinvestment Grant | H6: Grantee: | J6: ='INVOICE 1'!B7 -> City of Costa Mesa
B8: Contract #: | C8: ='INVOICE 1'!B9 -> BSCC 569-19 | H8: Address | J8: 99 Fair Dr.
J9: Address Line 1
B10: Term: | C10: ='INVOICE 1'!E9 -> 2019-07-01 | D10: TO | E10: ='INVOICE 1'!G9 -> 2023-02-28 | J10: Costa Mesa, CA 92626
J11: Address Line 2
B13: Advance Payment # | C13: 1 | G13: Please Note: The California State Controller's Office will send all checks directly to the address listed in the "BSCC Vendor Data" section at the bottom of this invoice.
B15: Effective Invoice # | C15: 1
A18: Advance Payment Invoice
J19: Total Grant Award: | K19: 1000000
J20: Advance Total: | K20: 333333
J21: Grant Award Balance: | K21: 666667
F29: BSCC USE ONLY
B31: Approved By: | C31: Colleen Stoner | J31: BSCC Supplier Data
C32: BSCC Field Representative
J33: Supplier Name
B34: Date: | C34: 2019-10-25
J35: Supplier Number

Sheet MOD 1
M1: STATE OF CALIFORNIA
A2: MODIFICATION REQUEST - (FORM BSCC 223.1 (Revised 04/20) | M2: BOARD OF STATE AND COMMUNITY CORRECTIONS
B5: Line-Item Change | F5: Budget Modification | J5: Project Income Allocation
B6: Check this box if you are modifying narrative details within a line item (or line items) but not changing the budget. | F6: Check this box if you are modifying line-item dollar amounts by moving funds from one line-item to another. | J6: Check this box if you are allocating earned project income.
A8: Important Note: You must provide a detailed justification for all modification requests. All modifications require BSCC Field Representative approval.
A10: Grantee: | B10: ='INVOICE 1'!B7 -> City of Costa Mesa | I10: Grant Program: | J10: ='INVOICE 1'!B5 -> Youth Reinvestment Grant
A12: Address | I12: Lead Public Agency: | J12: ='INVOICE 1'!G7 -> N/A
A16: Contract #: | B16: ='INVOICE 1'!B9 -> BSCC 569-19 | J16: Modification Request # | K16: 1
A18: Term: | B18: ='INVOICE 1'!E9 -> 2019-07-01 | C18: ='INVOICE 1'!F9 -> TO | D18: ='INVOICE 1'!G9 -> 2023-02-28 | J18: Effective on Invoice # | K18: 1
A20: Line Items | B20: Current Budget | E20: Available Budget | H20: Changes (+/-) | K20: Modified Budget
B21: Grant Funds | C21: Match | D21: TOTAL | E21: Grant Funds | F21: Match | G21: TOTAL | H21: Grant Funds | I21: Match | J21: TOTAL | K21: Grant Funds | L21: Match | M21: TOTAL
A22: Salaries & Benefits | B22: ='INVOICE 1'!B15 -> 97000 | C22: ='INVOICE 1'!C15 -> 0 | D22: =SUM(B22:C22) -> 97000 | E22: ='INVOICE 2'!K15 -> 90860 | F22: ='INVOICE 2'!L15 -> 0 | G22: =SUM(E22:F22) -> 90860 | H22: 0 | I22: 0 | J22: =SUM(H22:I22) -> 0 | K22: =SUM(B22,H22) -> 97000 | L22: 0 | M22: =SUM(K22:L22) -> 97000
A23: Services & Supplies | B23: ='INVOICE 1'!B16 -> 0 | C23: ='INVOICE 1'!C16 -> 25364 | D23: 25364 | E23: ='INVOICE 2'!K16 -> 0 | F23: ='INVOICE 2'!L16 -> 25364 | G23: 25364 | H23: 0 | I23: 0 | J23: 0 | K23: 0 | L23: 25364 | M23: 25364
A24: Professional Services | B24: ='INVOICE 1'!B17 -> 0 | C24: ='INVOICE 1'!C17 -> 224637 | D24: 224637 | E24: ='INVOICE 2'!K17 -> 0 | F24: ='INVOICE 2'!L17 -> 224637 | G24: 224637 | H24: 0 | I24: 0 | J24: 0 | K24: 0 | L24: 224637 | M24: 224637
A25: NGO Subcontracts | B25: ='INVOICE 1'!B18 -> 900000 | C25: ='INVOICE 1'!C18 -> 0 | D25: 900000 | E25: ='INVOICE 2'!K18 -> 809863 | F25: ='INVOICE 2'!L18 -> 0 | G25: 809863 | H25: 0 | I25: 0 | J25: 0 | K25: 900000 | L25: 0 | M25: 900000
A26: Equipment / Fixed Assets | B26: ='INVOICE 1'!B19 -> 0 | C26: ='INVOICE 1'!C19 -> 0 | D26: 0 | E26: ='INVOICE 2'!K19 -> 0 | F26: ='INVOICE 2'!L19 -> 0 | G26: 0 | H26: 0 | I26: 0 | J26: 0 | K26: 0 | L26: 0 | M26: 0
A27: Data Collection | B27: ='INVOICE 1'!B20 -> 0 | C27: ='INVOICE 1'!C20 -> 0 | D27: 0 | E27: ='INVOICE 2'!K20 -> 0 | F27: ='INVOICE 2'!L20 -> 0 | G27: 0 | H27: 0 | I27: 0 | J27: 0 | K27: 0 | L27: 0 | M27: 0
A28: Project Evaluation | B28: ='INVOICE 1'!B21 -> 0 | C28: ='INVOICE 1'!C21 -> 0 | D28: 0 | E28: ='INVOICE 2'!K21 -> 0 | F28: ='INVOICE 2'!L21 -> 0 | G28: 0 | H28: 0 | I28: 0 | J28: 0 | K28: 0 | L28: 0 | M28: 0
A29: Other | B29: ='INVOICE 1'!B22 -> 3000 | C29: ='INVOICE 1'!C22 -> 0 | D29: 3000 | E29: ='INVOICE 2'!K22 -> 1396 | F29: ='INVOICE 2'!L22 -> 0 | G29: 1396 | H29: 0 | I29: 0 | J29: 0 | K29: 3000 | L29: 0 | M29: 3000
A30: Indirect Costs | B30: ='INVOICE 1'!B23 -> 0 | C30: ='INVOICE 1'!C23 -> 0 | D30: 0 | E30: ='INVOICE 2'!K23 -> 0 | F30: ='INVOICE 2'!L23 -> 0 | G30: 0 | H30: 0 | I30: 0 | J30: 0 | K30: 0 | L30: 0 | M30: 0
A31: TOTAL | B31: =SUM(B22:B30) -> 1000000 | C31: 250001 | D31: 1250001 | E31: 902119 | F31: 250001 | G31: 1152120 | H31: 0 | I31: 0 | J31: 0 | K31: 1000000 | L31: 250001 | M31: 1250001
A33: Project Income | C33: Income reported to date | D33: 0 | F33: Prior allocated income | G33: 0 | H33: Allocating | I33: 0 | L33: Unallocated income balance | M33: =D33-I33 -> 0
A35: JUSTIFICATION FOR MODIFICATION:
A36: The agreement indicates a Police Officer (salary at $54.09 per hour, working 13.75 hours per month for 12 months with benefits at 198.79%) to coordinate the grant. Since this is the first year implementation, a Police Lieutenant (salary at $79.07 per hour, working 23.5 hours per month for 12 months with benefits at 109.86%) has been overseeing the program to ensure compliance with grant requirements. The City will make sure the annual total cost not exceed total budgeted salaries and benefits of the contract.
A55: PERSON PREPARING REPORT | I55: AUTHORIZED FINANCIAL OFFICER
I56: I hereby certify that I am the authorized financial officer of the herein named agency. I further certify that I have not violated any of the provisions of Section 1090 of the Government Code in incurring the expenditures reported in this invoice, nor in any other way; that Sections 1090 through 1096 of the Government Code will not be violated in any way in the expenditure of funds pursuant to this invoice; that statement of funds above is true, correct, and in accordance with program provisions in all respects; and that all expenditures submitted after the expiration date of this contract are for the purpose of substantiating obligations legally incurred during the contract period. Furthermore, by submitting this invoice, I acknowledge that it must adhere to all of the requirements in the BSCC Grant Administration Guide, including any updates to the Guide during the term of the grant agreement.
A57: Jan Wang, Management Analyst
A58: Name, Title
A59: 714-754-5074
A60: Phone
A61: jwang@costamesaca.gov
A62: Email
A63: 2020-09-14
A64: Date
I66: Jennifer King, Assistant Finance Director
I67: Name, Title
I68: 714-754-5219
I69: Phone
I70: 2020-09-15
I71: Date
A73: BSCC USE ONLY
A74: Date Received: | C74: 2020-09-14 | H74: Approved By: | I74: Katrina Jackson | L74: Date: | M74: 2021-03-19
I75: BSCC Field Representative

Sheet INVOICE 1
A1: STATE OF CALIFORNIA | L1: Purchase Authority | N1: BSCC 5227
A2: BOARD OF STATE AND COMMUNITY CORRECTIONS | L2: Purchase Order: | N2: 2469
A3: Financial Invoice Form: BSCC 201 (Revised 04/2020)
A5: Program: | B5: Youth Reinvestment Grant | K5: Please Note: The California State Controller's Office will send all checks directly to the address listed in the "BSCC Vendor Data" section at the bottom of this invoice.
A7: Grantee: | B7: City of Costa Mesa | F7: Lead Public Agency: | G7: N/A
A9: Contract #: | B9: BSCC 569-19 | D9: Term: | E9: 2019-07-01 | F9: TO | G9: 2023-02-28 | L9: Invoicing Frequency | M9: Quarterly
A11: Invoice #: | B11: 1 | D11: Reporting Period: | E11: 2019-07-01 | F11: TO | G11: 2019-09-30 | H11: Due: | I11: 2019-11-14 | L11: Final Invoice (Y/N): | M11: No
A13: Line Items | B13: Budget | E13: Prior Expenditures | H13: This Reporting Period | K13: Balance | N13: Advance Disbursements
B14: Grant Funds | C14: Match | D14: TOTAL | E14: Grant Funds | F14: Match | G14: TOTAL | H14: Grant Funds | I14: Match | J14: TOTAL | K14: Grant Funds | L14: Match | M14: TOTAL
A15: Salaries & Benefits | B15: 97000 | C15: 0 | D15: =SUM(B15:C15) -> 97000 | E15: 0 | F15: 0 | G15: =SUM(E15:F15) -> 0 | H15: 3485 | I15: 0 | J15: =SUM(H15:I15) -> 3485 | K15: =B15-E15-H15 -> 93515 | L15: =C15-F15-I15 -> 0 | M15: =SUM(K15:L15) -> 93515 | N15: 1st Advance [10/25/19]
A16: Services & Supplies | B16: 0 | C16: 25364 | D16: 25364 | E16: 0 | F16: 0 | G16: =SUM(E16:F16) -> 0 | H16: 0 | I16: 0 | J16: 0 | K16: 0 | L16: 25364 | M16: 25364 | N16: ='1st Advance Payment'!K20 -> 333333
A17: Professional Services | B17: 0 | C17: 224637 | D17: 224637 | E17: 0 | F17: 0 | G17: =SUM(E17:F17) -> 0 | H17: 0 | I17: 0 | J17: 0 | K17: 0 | L17: 224637 | M17: 224637
A18: NGO Subcontracts | B18: 900000 | C18: 0 | D18: 900000 | E18: 0 | F18: 0 | G18: 0 | H18: 36238 | I18: 0 | J18: 36238 | K18: 863762 | L18: 0 | M18: 863762 | N18: 2nd Advance [enter date]
A19: Equipment / Fixed Assets | B19: 0 | C19: 0 | D19: 0 | E19: 0 | F19: 0 | G19: 0 | H19: 0 | I19: 0 | J19: 0 | K19: 0 | L19: 0 | M19: 0 | N19: 0
A20: Data Collection | B20: 0 | C20: 0 | D20: 0 | E20: 0 | F20: 0 | G20: 0 | H20: 0 | I20: 0 | J20: 0 | K20: 0 | L20: 0 | M20: 0
A21: Project Evaluation | B21: 0 | C21: 0 | D21: 0 | E21: 0 | F21: 0 | G21: 0 | H21: 0 | I21: 0 | J21: 0 | K21: 0 | L21: 0 | M21: 0 | N21: 3rd Advance [enter date]
A22: Other | B22: 3000 | C22: 0 | D22: =SUM(B22:C22) -> 3000 | E22: 0 | F22: 0 | G22: 0 | H22: 0 | I22: 0 | J22: 0 | K22: 3000 | L22: 0 | M22: 3000 | N22: 0
A23: Indirect Costs | B23: 0 | C23: 0 | D23: 0 | E23: 0 | F23: 0 | G23: 0 | H23: 0 | I23: 0 | J23: 0 | K23: 0 | L23: 0 | M23: 0
A24: TOTAL | B24: =SUM(B15:B23) -> 1000000 | C24: =SUM(C15:C23) -> 250001 | D24: =SUM(D15:D23) -> 1250001 | E24: =SUM(E15:E23) -> 0 | F24: 0 | G24: 0 | H24: 39723 | I24: =SUM(I15:I23) -> 0 | J24: 39723 | K24: 960277 | L24: 250001 | M24: 1210278 | N24: =SUM(N16+N19+N22) -> 333333
A26: Project Income | C26: Income reported to date | D26: =I26 -> 0 | F26: Prior allocated income | G26: 0 | H26: This Period | I26: 0 | L26: Unallocated income balance | M26: =D26-G26 -> 0
C28: Grant funds expended to date: | D28: =SUM(E24,H24) -> 39723 | G28: Grant funds claimed this period: | H28: =H24 -> 39723 | L28: Percentage Grant $$ expended to date: | M28: Percentage Grant $$ expended to date: | N28: =E28/C24 -> 0
C29: Match funds to date: | D29: =SUM(F24,I24) -> 0 | L29: % of Total Obligated Match to date: | M29: % of Total Obligated Match to date: | N29: =E29/D24 -> 0
D33: Expenditure Descriptions - Units / $ Amounts | L33: Comments
A34: Salaries & Benefits | B34: Grant Funds | C34: =H15 -> 3485 | D34: 1 FTE Project Director @ $79.07/hr x 21 hours + 109.86% benefits $1,824.16 = $3,484.63
B35: Match | C35: =I15 -> 0
A36: Services & Supplies | B36: Grant Funds | C36: =H16 -> 0
B37: Match | C37: =I16 -> 0
A38: Professional Services | B38: Grant Funds | C38: =H17 -> 0
B39: Match | C39: =I17 -> 0
A40: NGO Subcontracts | B40: Grant Funds | C40: =H18 -> 36238 | D40: Total Personnel $25,444.98 - 1) 0.40 FTE Diversion Supervisor 4,500/month x 2months = $3,600, 2) Licensed Clinical Supervisor 35.48/HR x 38.50 Hrs = $1,365.98, 3) Counselor 25.24/HR x 422.40 Hrs = $10,661.36, 4) Diversion Specialist 21.89/HR x 422.40 Hrs = $9,246.36, 5) Mediator/Case Coordinator 22.67/HR x 25.20 Hrs = $571.28, Total Benefits $6,372.06 - (Approximately 25% of Salaries); Health $2,389.63, Dental $225.14, Vision $17.52, Life $24.98 , 401K $1,029.60, Workers Compensation $169.07, Long-Term Disability $31.37, FICA $1,908.18, Waymakers Points $576.57. Total Service and Supply $4,421.04 - Training for Evidence Based Practices $709.74, Office/Supplies Expense $255.71, Travel (Mileages) $152.26, Liability Insurance $121.63 and Indirect Cost $3,181.70. | L40: Supporting Documentation Provided
B41: Match | C41: =I18 -> 0
A42: Equipment / Fixed Assets | B42: Grant Funds | C42: =H19 -> 0
B43: Match | C43: =I19 -> 0
A44: Data Collection | B44: Grant Funds | C44: =H20 -> 0
B45: Match | C45: =I20 -> 0
A46: Project Evaluation | B46: Grant Funds | C46: =H21 -> 0
B47: Match | C47: =I21 -> 0
A48: Other | B48: Grant Funds | C48: =H22 -> 0
B49: Match | C49: =I22 -> 0
A50: Indirect Costs | B50: Grant Funds | C50: =H23 -> 0
B51: Match | C51: =I23 -> 0
A52: Project Income | C52: =I26 -> 0
A53: PERSON PREPARING REPORT | E53: AUTHORIZED FINANCIAL OFFICER | L53: BSCC Supplier Data - Internal Use Only
E54: By checking the box below, I hereby certify that I am the authorized financial officer of the herein named agency. I further certify that I have not violated any of the provisions of Section 1090 of the Government Code in incurring the expenditures reported in this invoice, nor in any other way; that Sections 1090 through 1096 of the Government Code will not be violated in any way in the expenditure of funds pursuant to this invoice; that statement of funds above is true, correct, and in accordance with program provisions in all respects; and that all expenditures submitted after the expiration date of this contract are for the purpose of substantiating obligations legally incurred during the contract period. Furthermore, by submitting this invoice, I acknowledge that it must adhere to all of the requirements in the BSCC Grant Administration Guide, including any updates to the Guide during the term of the grant agreement.
A55: Jan Wang, Management Analyst | L55: 6990
A56: Name, Title | L56: Supplier ID
A57: 714-754-5074 | L57: CITYOFCOST-001
A58: Phone | L58: Supplier Name
A59: jwang@costamesaca.gov | L59: 99 FAIR DR
A60: Email | L60: Address Line 1
A61: 2020-05-13 | L61: COSTA MESA CA 92626
A62: Date | L62: Address Line 2
E64: Jennifer King, Assistant Finance Director
E65: Name, Title
E66: 714-754-5219
E67: Phone
E68: 2020-05-13
E69: Date
A71: BSCC USE ONLY
A72: Date Received: | C72: 2020-09-15 | G72: Approved By: | I72: Kimberly Bushard
I73: BSCC Field Representative

Sheet INVOICE 2
A1: STATE OF CALIFORNIA | L1: Purchase Authority | N1: BSCC 5227
A2: BOARD OF STATE AND COMMUNITY CORRECTIONS | L2: Purchase Order: | N2: 2469
A3: Financial Invoice Form: BSCC 201 (Revised 04/2020)
A5: Program: | B5: ='INVOICE 1'!B5 -> Youth Reinvestment Grant | K5: Please Note: The California State Controller's Office will send all checks directly to the address listed in the "BSCC Vendor Data" section at the bottom of this invoice.
A7: Grantee: | B7: ='INVOICE 1'!B7 -> City of Costa Mesa | F7: Lead Public Agency: | G7: N/A
A9: Contract #: | B9: ='INVOICE 1'!B9 -> BSCC 569-19 | D9: Term: | E9: ='INVOICE 1'!E9 -> 2019-07-01 | F9: TO | G9: ='INVOICE 1'!G9 -> 2023-02-28 | L9: Invoicing Frequency | M9: Quarterly
A11: Invoice #: | B11: 2 | D11: Reporting Period: | E11: 2019-10-01 | F11: TO | G11: 2019-12-31 | H11: Due: | I11: 2020-02-14 | L11: Final Invoice (Y/N): | M11: No
A13: Line Items | B13: Budget | E13: Prior Expenditures | H13: This Reporting Period | K13: Balance | N13: Advance Disbursements
B14: Grant Funds | C14: Match | D14: TOTAL | E14: Grant Funds | F14: Match | G14: TOTAL | H14: Grant Funds | I14: Match | J14: TOTAL | K14: Grant Funds | L14: Match | M14: TOTAL
A15: Salaries & Benefits | B15: ='INVOICE 1'!B15 -> 97000 | C15: ='INVOICE 1'!C15 -> 0 | D15: =SUM(B15:C15) -> 97000 | E15: ='INVOICE 1'!E15+'INVOICE 1'!H15 -> 3485 | F15: ='INVOICE 1'!F15+'INVOICE 1'!I15 -> 0 | G15: =SUM(E15:F15) -> 3485 | H15: 2655 | I15: 0 | J15: =SUM(H15:I15) -> 2655 | K15: =B15-E15-H15 -> 90860 | L15: 0 | M15: =SUM(K15:L15) -> 90860 | N15: 1st Advance [10/25/19]
A16: Services & Supplies | B16: ='INVOICE 1'!B16 -> 0 | C16: ='INVOICE 1'!C16 -> 25364 | D16: 25364 | E16: ='INVOICE 1'!E16+'INVOICE 1'!H16 -> 0 | F16: ='INVOICE 1'!F16+'INVOICE 1'!I16 -> 0 | G16: =SUM(E16:F16) -> 0 | H16: 0 | I16: 0 | J16: 0 | K16: 0 | L16: 25364 | M16: 25364 | N16: ='1st Advance Payment'!K20 -> 333333
A17: Professional Services | B17: ='INVOICE 1'!B17 -> 0 | C17: ='INVOICE 1'!C17 -> 224637 | D17: 224637 | E17: ='INVOICE 1'!E17+'INVOICE 1'!H17 -> 0 | F17: ='INVOICE 1'!F17+'INVOICE 1'!I17 -> 0 | G17: =SUM(E17:F17) -> 0 | H17: 0 | I17: 0 | J17: 0 | K17: 0 | L17: 224637 | M17: 224637
A18: NGO Subcontracts | B18: ='INVOICE 1'!B18 -> 900000 | C18: ='INVOICE 1'!C18 -> 0 | D18: 900000 | E18: ='INVOICE 1'!E18+'INVOICE 1'!H18 -> 36238 | F18: ='INVOICE 1'!F18+'INVOICE 1'!I18 -> 0 | G18: 36238 | H18: 53899 | I18: 0 | J18: 53899 | K18: 809863 | L18: 0 | M18: 809863 | N18: 2nd Advance [enter date]
A19: Equipment / Fixed Assets | B19: ='INVOICE 1'!B19 -> 0 | C19: ='INVOICE 1'!C19 -> 0 | D19: 0 | E19: ='INVOICE 1'!E19+'INVOICE 1'!H19 -> 0 | F19: ='INVOICE 1'!F19+'INVOICE 1'!I19 -> 0 | G19: 0 | H19: 0 | I19: 0 | J19: 0 | K19: 0 | L19: 0 | M19: 0 | N19: 0
A20: Data Collection | B20: ='INVOICE 1'!B20 -> 0 | C20: ='INVOICE 1'!C20 -> 0 | D20: 0 | E20: ='INVOICE 1'!E20+'INVOICE 1'!H20 -> 0 | F20: ='INVOICE 1'!F20+'INVOICE 1'!I20 -> 0 | G20: 0 | H20: 0 | I20: 0 | J20: 0 | K20: 0 | L20: 0 | M20: 0
A21: Project Evaluation | B21: ='INVOICE 1'!B21 -> 0 | C21: ='INVOICE 1'!C21 -> 0 | D21: 0 | E21: ='INVOICE 1'!E21+'INVOICE 1'!H21 -> 0 | F21: ='INVOICE 1'!F21+'INVOICE 1'!I21 -> 0 | G21: 0 | H21: 0 | I21: 0 | J21: 0 | K21: 0 | L21: 0 | M21: 0 | N21: 3rd Advance [enter date]
A22: Other | B22: ='INVOICE 1'!B22 -> 3000 | C22: ='INVOICE 1'!C22 -> 0 | D22: =SUM(B22:C22) -> 3000 | E22: ='INVOICE 1'!E22+'INVOICE 1'!H22 -> 0 | F22: ='INVOICE 1'!F22+'INVOICE 1'!I22 -> 0 | G22: 0 | H22: 1604 | I22: 0 | J22: 1604 | K22: 1396 | L22: 0 | M22: 1396 | N22: 0
A23: Indirect Costs | B23: ='INVOICE 1'!B23 -> 0 | C23: ='INVOICE 1'!C23 -> 0 | D23: 0 | E23: ='INVOICE 1'!E23+'INVOICE 1'!H23 -> 0 | F23: ='INVOICE 1'!F23+'INVOICE 1'!I23 -> 0 | G23: 0 | H23: 0 | I23: 0 | J23: 0 | K23: 0 | L23: 0 | M23: 0
A24: TOTAL | B24: =SUM(B15:B23) -> 1000000 | C24: =SUM(C15:C23) -> 250001 | D24: =SUM(D15:D23) -> 1250001 | E24: =SUM(E15:E23) -> 39723 | F24: 0 | G24: 39723 | H24: 58158 | I24: =SUM(I15:I23) -> 0 | J24: 58158 | K24: 902119 | L24: 250001 | M24: 1152120 | N24: =SUM(N16+N19+N22) -> 333333
A26: Project Income | C26: Income reported to date | D26: ='INVOICE 1'!D26+'INVOICE 2'!I26 -> 0 | F26: Prior allocated income | G26: 0 | H26: This Period | I26: 0 | L26: Unallocated income balance | M26: =D26-G26 -> 0
C28: Grant funds expended to date: | D28: =SUM(E24,H24) -> 97881 | G28: Grant funds claimed this period: | H28: =H24 -> 58158 | M28: % total dispursed fund expended to date: | N28: =D28/N24 -> 0.2936432936
C29: Match funds to date: | D29: =SUM(F24,I24) -> 0 | G29: Advance disbursments balance: | H29: =N24-D28 -> 235452 | M29: % of Total Obligated Match to date: | N29: =E29/C24 -> 0
D33: Expenditure Descriptions - Units / $ Amounts | L33: Comments
A34: Salaries & Benefits | B34: Grant Funds | C34: =H15 -> 2655 | D34: 1 FTE Project Director @ $79.07/hr x 4 hours + 109.86% Benefits $347.47 = $663.75 1 FTE Project Director @ $79.07/hr x 2 hours + 109.86% Benefits $173.73 = $331.87 1 FTE Project Director @ $79.07/hr x 10 hours + 109.86% Benefits $868.66 = $1,659.36
B35: Match | C35: =I15 -> 0
A36: Services & Supplies | B36: Grant Funds | C36: =H16 -> 0
B37: Match | C37: =I16 -> 0
A38: Professional Services | B38: Grant Funds | C38: =H17 -> 0
B39: Match | C39: =I17 -> 0
A40: NGO Subcontracts | B40: Grant Funds | C40: =H18 -> 53899 | D40: Total Personnel $34,803.47 - 1) 0.40 FTE Diversion Supervisor 4,500/month x 3months = $5,400 2) Counselor 25.24/HR x 140.80 Hrs = $3,553.82 3) 1.00 FTE Counselor 4,732/month x 3 months (less adj. 1,055.60) = $13,140.40, 4) Diversion Specialist 20.67/HR x 528 Hrs = $10,913.79, 5) Mediator/Case Coordinator 22.67/HR x 79.20 Hrs = $1,795.45, Total Benefits $8,479.61 - (Approximately 25% of Salaries); Health $3,193.23, Dental $290.23, Vision $6.57, Life $23.70, 401K $1,406.96, Workers Compensation $146.57, Long-Term Disability $32.09, FICA $2,547.85, Waymakers Points $447.42, SUI $384.99. Total Service and Supply $10,615.89 - Start-Up $4,234.14 (Dell Computers & Travel), Office/Supplies Expense $1,294.25, Travel (Mileages) $569.59, Liability Insurance $189.61 and Indirect Cost $4,328.30. | L40: Supporting Documentation Provided
B41: Match | C41: =I18 -> 0
A42: Equipment / Fixed Assets | B42: Grant Funds | C42: =H19 -> 0
B43: Match | C43: =I19 -> 0
A44: Data Collection | B44: Grant Funds | C44: =H20 -> 0
B45: Match | C45: =I20 -> 0
A46: Project Evaluation | B46: Grant Funds | C46: =H21 -> 0
B47: Match | C47: =I21 -> 0
A48: Other | B48: Grant Funds | C48: =H22 -> 1604 | D48: Travel expense to attend Grant Orientation from Santa Ana to Sacramento
B49: Match | C49: =I22 -> 0
A50: Indirect Costs | B50: Grant Funds | C50: =H23 -> 0
B51: Match | C51: =I23 -> 0
A52: Project Income | C52: =I26 -> 0
A53: PERSON PREPARING REPORT | E53: AUTHORIZED FINANCIAL OFFICER | L53: BSCC Supplier Data - Internal Use Only
E54: By checking the box below, I hereby certify that I am the authorized financial officer of the herein named agency. I further certify that I have not violated any of the provisions of Section 1090 of the Government Code in incurring the expenditures reported in this invoice, nor in any other way; that Sections 1090 through 1096 of the Government Code will not be violated in any way in the expenditure of funds pursuant to this invoice; that statement of funds above is true, correct, and in accordance with program provisions in all respects; and that all expenditures submitted after the expiration date of this contract are for the purpose of substantiating obligations legally incurred during the contract period. Furthermore, by submitting this invoice, I acknowledge that it must adhere to all of the requirements in the BSCC Grant Administration Guide, including any updates to the Guide during the term of the grant agreement.
A55: Jan Wang, Management Analyst | L55: ='INVOICE 1'!L55:O55 -> 6990
A56: Name, Title | L56: Supplier ID
A57: 714-754-5074 | L57: ='INVOICE 1'!L57:O57 -> CITYOFCOST-001
A58: Phone | L58: Supplier Name
A59: jwang@costamesaca.gov | L59: ='INVOICE 1'!L59:O59 -> 99 FAIR DR
A60: Email | L60: Address Line 1
A61: 2020-06-25 | L61: ='INVOICE 1'!L61:O61 -> COSTA MESA CA 92626
A62: Date | L62: Address Line 2
E64: Jennifer King, Assistant Finance Director
E65: Name, Title
E66: 714-754-5219
E67: Phone
E68: 2020-06-25
E69: Date
A71: BSCC USE ONLY
A72: Date Received: | C72: 2020-09-15 | G72: Approved By: | I72: Kimberly Bushard
I73: BSCC Field Representative

Sheet INVOICE 3
A1: STATE OF CALIFORNIA | L1: Purchase Authority | N1: BSCC 5227
A2: BOARD OF STATE AND COMMUNITY CORRECTIONS | L2: Purchase Order: | N2: 2469
A3: Financial Invoice Form: BSCC 201 (Revised 04/2020)
A5: Program: | B5: ='INVOICE 1'!B5 -> Youth Reinvestment Grant | K5: Please Note: The California State Controller's Office will send all checks directly to the address listed in the "BSCC Vendor Data" section at the bottom of this invoice.
A7: Grantee: | B7: ='INVOICE 1'!B7 -> City of Costa Mesa | F7: Lead Public Agency: | G7: N/A
A9: Contract #: | B9: ='INVOICE 1'!B9 -> BSCC 569-19 | D9: Term: | E9: ='INVOICE 1'!E9 -> 2019-07-01 | F9: TO | G9: ='INVOICE 1'!G9 -> 2023-02-28 | L9: Invoicing Frequency | M9: Quarterly
A11: Invoice #: | B11: 3 | D11: Reporting Period: | E11: 2020-01-01 | F11: TO | G11: 2020-03-31 | H11: Due: | I11: 2020-05-15 | L11: Final Invoice (Y/N): | M11: No
A13: Line Items | B13: Budget | E13: Prior Expenditures | H13: This Reporting Period | K13: Balance | N13: Advance Disbursements
B14: Grant Funds | C14: Match | D14: TOTAL | E14: Grant Funds | F14: Match | G14: TOTAL | H14: Grant Funds | I14: Match | J14: TOTAL | K14: Grant Funds | L14: Match | M14: TOTAL
A15: Salaries & Benefits | B15: ='INVOICE 2'!B15 -> 97000 | C15: ='INVOICE 2'!C15 -> 0 | D15: =SUM(B15:C15) -> 97000 | E15: ='INVOICE 2'!E15+'INVOICE 2'!H15 -> 6140 | F15: ='INVOICE 2'!F15+'INVOICE 2'!I15 -> 0 | G15: =SUM(E15:F15) -> 6140 | H15: 12114 | I15: 0 | J15: =SUM(H15:I15) -> 12114 | K15: =B15-E15-H15 -> 78746 | L15: 0 | M15: =SUM(K15:L15) -> 78746 | N15: 1st Advance [10/25/19]
A16: Services & Supplies | B16: ='INVOICE 2'!B16 -> 0 | C16: ='INVOICE 2'!C16 -> 25364 | D16: 25364 | E16: ='INVOICE 2'!E16+'INVOICE 2'!H16 -> 0 | F16: ='INVOICE 2'!F16+'INVOICE 2'!I16 -> 0 | G16: =SUM(E16:F16) -> 0 | H16: 0 | I16: 0 | J16: 0 | K16: 0 | L16: 25364 | M16: 25364 | N16: ='1st Advance Payment'!K20 -> 333333
A17: Professional Services | B17: ='INVOICE 2'!B17 -> 0 | C17: ='INVOICE 2'!C17 -> 224637 | D17: 224637 | E17: ='INVOICE 2'!E17+'INVOICE 2'!H17 -> 0 | F17: ='INVOICE 2'!F17+'INVOICE 2'!I17 -> 0 | G17: =SUM(E17:F17) -> 0 | H17: 0 | I17: 0 | J17: 0 | K17: 0 | L17: 224637 | M17: 224637
A18: NGO Subcontracts | B18: ='INVOICE 2'!B18 -> 900000 | C18: ='INVOICE 2'!C18 -> 0 | D18: 900000 | E18: ='INVOICE 2'!E18+'INVOICE 2'!H18 -> 90137 | F18: ='INVOICE 2'!F18+'INVOICE 2'!I18 -> 0 | G18: 90137 | H18: 62568 | I18: 0 | J18: 62568 | K18: 747295 | L18: 0 | M18: 747295 | N18: 2nd Advance [enter date]
A19: Equipment / Fixed Assets | B19: ='INVOICE 2'!B19 -> 0 | C19: ='INVOICE 2'!C19 -> 0 | D19: 0 | E19: ='INVOICE 2'!E19+'INVOICE 2'!H19 -> 0 | F19: ='INVOICE 2'!F19+'INVOICE 2'!I19 -> 0 | G19: 0 | H19: 0 | I19: 0 | J19: 0 | K19: 0 | L19: 0 | M19: 0 | N19: 0
A20: Data Collection | B20: ='INVOICE 2'!B20 -> 0 | C20: ='INVOICE 2'!C20 -> 0 | D20: 0 | E20: ='INVOICE 2'!E20+'INVOICE 2'!H20 -> 0 | F20: ='INVOICE 2'!F20+'INVOICE 2'!I20 -> 0 | G20: 0 | H20: 0 | I20: 0 | J20: 0 | K20: 0 | L20: 0 | M20: 0
A21: Project Evaluation | B21: ='INVOICE 2'!B21 -> 0 | C21: ='INVOICE 2'!C21 -> 0 | D21: 0 | E21: ='INVOICE 2'!E21+'INVOICE 2'!H21 -> 0 | F21: ='INVOICE 2'!F21+'INVOICE 2'!I21 -> 0 | G21: 0 | H21: 0 | I21: 0 | J21: 0 | K21: 0 | L21: 0 | M21: 0 | N21: 3rd Advance [enter date]
A22: Other | B22: ='INVOICE 2'!B22 -> 3000 | C22: ='INVOICE 2'!C22 -> 0 | D22: =SUM(B22:C22) -> 3000 | E22: ='INVOICE 2'!E22+'INVOICE 2'!H22 -> 1604 | F22: ='INVOICE 2'!F22+'INVOICE 2'!I22 -> 0 | G22: 1604 | H22: 0 | I22: 0 | J22: 0 | K22: 1396 | L22: 0 | M22: 1396 | N22: 0
A23: Indirect Costs | B23: ='INVOICE 2'!B23 -> 0 | C23: ='INVOICE 2'!C23 -> 0 | D23: 0 | E23: ='INVOICE 2'!E23+'INVOICE 2'!H23 -> 0 | F23: ='INVOICE 2'!F23+'INVOICE 2'!I23 -> 0 | G23: 0 | H23: 0 | I23: 0 | J23: 0 | K23: 0 | L23: 0 | M23: 0
A24: TOTAL | B24: =SUM(B15:B23) -> 1000000 | C24: =SUM(C15:C23) -> 250001 | D24: =SUM(D15:D23) -> 1250001 | E24: =SUM(E15:E23) -> 97881 | F24: 0 | G24: 97881 | H24: 74682 | I24: =SUM(I15:I23) -> 0 | J24: 74682 | K24: 827437 | L24: 250001 | M24: 1077438 | N24: =SUM(N16+N19+N22) -> 333333
A26: Project Income | C26: Income reported to date | D26: ='INVOICE 1'!D26+'INVOICE 3'!I26 -> 0 | F26: Prior allocated income | G26: 0 | H26: This Period | I26: 0 | L26: Unallocated income balance | M26: =D26-G26 -> 0
C28: Grant funds expended to date: | D28: =SUM(E24,H24) -> 172563 | G28: Grant funds claimed this period: | H28: =H24 -> 74682 | M28: % total dispursed fund expended to date: | N28: =D28/N24 -> 0.5176895177
C29: Match funds to date: | D29: =SUM(F24,I24) -> 0 | G29: Advance disbursments balance: | H29: =N24-D28 -> 160770 | M29: % of Total Obligated Match to date: | N29: =E29/C24 -> 0
D33: Expenditure Descriptions - Units / $ Amounts | L33: Comments
A34: Salaries & Benefits | B34: Grant Funds | C34: =H15 -> 12114 | D34: 1 FTE Project Director @ $79.07/hr x 22 hours + 109.86% Benefits $1,911.06 = $3,650.60 1 FTE Project Director @ $79.07/hr x 31 hours + 109.86% Benefits $2,692.86 = $5,144.03 1 FTE Project Director @ $79.07/hr x 20 hours + 109.86% Benefits $1,737.33 = $3,318.73
B35: Match | C35: =I15 -> 0
A36: Services & Supplies | B36: Grant Funds | C36: =H16 -> 0
B37: Match | C37: =I16 -> 0
A38: Professional Services | B38: Grant Funds | C38: =H17 -> 0
B39: Match | C39: =I17 -> 0
A40: NGO Subcontracts | B40: Grant Funds | C40: =H18 -> 62568 | D40: Total Personnel $39,836.45 - 1) 0.40 FTE Diversion Supervisor 4,644/month x 3months = $5,572.81 2) 0.50 FTE Licensed Clinical Supervisor 5,150 x 3months = $7,725 3) 1.00 FTE Counselor 4,842/month x 3 months = $14,526 4) Diversion Specialist 21.19/HR x 488 Hrs = $10,340.74 5) Mediator/Case Coordinator 21.11/HR x 79.20 Hrs = $1,671.90. Total Benefits $11,597.30 - (Approximately 25% of Salaries); Health $5,695.17, Dental $494.04, Vision $31.23, Life $39.78, 401K $1,458.27, Workers Compensation $163.03, Long-Term Disability $70.62, FICA $2,857.93, Waymakers Points $742.50, SUI $44.73. Total Service and Supply $8,376.24 - Training for Evidence Based Practices $1,458.49, Office/Supplies Expense $1,256.80, Travel (Mileages) $303.65, Liability Insurance $213.92 and Indirect Cost $5,143.38. | L40: Supporting Documentation Provided
B41: Match | C41: =I18 -> 0
A42: Equipment / Fixed Assets | B42: Grant Funds | C42: =H19 -> 0
B43: Match | C43: =I19 -> 0
A44: Data Collection | B44: Grant Funds | C44: =H20 -> 0
B45: Match | C45: =I20 -> 0
A46: Project Evaluation | B46: Grant Funds | C46: =H21 -> 0
B47: Match | C47: =I21 -> 0
A48: Other | B48: Grant Funds | C48: =H22 -> 0
B49: Match | C49: =I22 -> 0
A50: Indirect Costs | B50: Grant Funds | C50: =H23 -> 0
B51: Match | C51: =I23 -> 0
A52: Project Income | C52: =I26 -> 0
A53: PERSON PREPARING REPORT | E53: AUTHORIZED FINANCIAL OFFICER | L53: BSCC Supplier Data - Internal Use Only
E54: By checking the box below, I hereby certify that I am the authorized financial officer of the herein named agency. I further certify that I have not violated any of the provisions of Section 1090 of the Government Code in incurring the expenditures reported in this invoice, nor in any other way; that Sections 1090 through 1096 of the Government Code will not be violated in any way in the expenditure of funds pursuant to this invoice; that statement of funds above is true, correct, and in accordance with program provisions in all respects; and that all expenditures submitted after the expiration date of this contract are for the purpose of substantiating obligations legally incurred during the contract period. Furthermore, by submitting this invoice, I acknowledge that it must adhere to all of the requirements in the BSCC Grant Administration Guide, including any updates to the Guide during the term of the grant agreement.
A55: Jan Wang | L55: ='INVOICE 1'!L55:O55 -> 6990
A56: Name, Title | L56: Supplier ID
A57: 714-754-5074 | L57: ='INVOICE 1'!L57:O57 -> CITYOFCOST-001
A58: Phone | L58: Supplier Name
A59: jwang@costamesaca.gov | L59: ='INVOICE 1'!L59:O59 -> 99 FAIR DR
A60: Email | L60: Address Line 1
A61: 2020-06-25 | L61: ='INVOICE 1'!L61:O61 -> COSTA MESA CA 92626
A62: Date | L62: Address Line 2
E64: Jennifer King, Assistant Finance Director
E65: Name, Title
E66: 714-754-5219
E67: Phone
E68: 2020-06-25
E69: Date
A71: BSCC USE ONLY
A72: Date Received: | C72: 2020-09-15 | G72: Approved By: | I72: Kimberly Bushard
I73: BSCC Field Representative

Sheet INVOICE 4
A1: STATE OF CALIFORNIA | L1: Purchase Authority | N1: BSCC 5227
A2: BOARD OF STATE AND COMMUNITY CORRECTIONS | L2: Purchase Order: | N2: 2469
A3: Financial Invoice Form: BSCC 201 (Revised 04/2020)
A5: Program: | B5: ='INVOICE 1'!B5 -> Youth Reinvestment Grant | K5: Please Note: The California State Controller's Office will send all checks directly to the address listed in the "BSCC Vendor Data" section at the bottom of this invoice.
A7: Grantee: | B7: ='INVOICE 1'!B7 -> City of Costa Mesa | F7: Lead Public Agency: | G7: N/A
A9: Contract #: | B9: ='INVOICE 1'!B9 -> BSCC 569-19 | D9: Term: | E9: ='INVOICE 1'!E9 -> 2019-07-01 | F9: TO | G9: ='INVOICE 1'!G9 -> 2023-02-28 | L9: Invoicing Frequency | M9: Quarterly
A11: Invoice #: | B11: 4 | D11: Reporting Period: | E11: 2020-04-01 | F11: TO | G11: 2020-06-30 | H11: Due: | I11: 2020-08-14 | L11: Final Invoice (Y/N): | M11: No
A13: Line Items | B13: Budget | E13: Prior Expenditures | H13: This Reporting Period | K13: Balance | N13: Advance Disbursements
B14: Grant Funds | C14: Match | D14: TOTAL | E14: Grant Funds | F14: Match | G14: TOTAL | H14: Grant Funds | I14: Match | J14: TOTAL | K14: Grant Funds | L14: Match | M14: TOTAL
A15: Salaries & Benefits | B15: ='INVOICE 3'!B15 -> 97000 | C15: ='INVOICE 3'!C15 -> 0 | D15: =SUM(B15:C15) -> 97000 | E15: ='INVOICE 3'!E15+'INVOICE 3'!H15 -> 18254 | F15: ='INVOICE 3'!F15+'INVOICE 3'!I15 -> 0 | G15: =SUM(E15:F15) -> 18254 | H15: 8380 | I15: 0 | J15: =SUM(H15:I15) -> 8380 | K15: =B15-E15-H15 -> 70366 | L15: 0 | M15: =SUM(K15:L15) -> 70366 | N15: 1st Advance [10/25/19]
A16: Services & Supplies | B16: ='INVOICE 3'!B16 -> 0 | C16: ='INVOICE 3'!C16 -> 25364 | D16: 25364 | E16: ='INVOICE 3'!E16+'INVOICE 3'!H16 -> 0 | F16: ='INVOICE 3'!F16+'INVOICE 3'!I16 -> 0 | G16: =SUM(E16:F16) -> 0 | H16: 0 | I16: 7615 | J16: 7615 | K16: 0 | L16: 17749 | M16: 17749 | N16: ='1st Advance Payment'!K20 -> 333333
A17: Professional Services | B17: ='INVOICE 3'!B17 -> 0 | C17: ='INVOICE 3'!C17 -> 224637 | D17: 224637 | E17: ='INVOICE 3'!E17+'INVOICE 3'!H17 -> 0 | F17: ='INVOICE 3'!F17+'INVOICE 3'!I17 -> 0 | G17: =SUM(E17:F17) -> 0 | H17: 0 | I17: 0 | J17: 0 | K17: 0 | L17: 224637 | M17: 224637
A18: NGO Subcontracts | B18: ='INVOICE 3'!B18 -> 900000 | C18: ='INVOICE 3'!C18 -> 0 | D18: 900000 | E18: ='INVOICE 3'!E18+'INVOICE 3'!H18 -> 152705 | F18: ='INVOICE 3'!F18+'INVOICE 3'!I18 -> 0 | G18: 152705 | H18: 65392 | I18: 0 | J18: 65392 | K18: 681903 | L18: 0 | M18: 681903 | N18: 2nd Advance [enter date]
A19: Equipment / Fixed Assets | B19: ='INVOICE 3'!B19 -> 0 | C19: ='INVOICE 3'!C19 -> 0 | D19: 0 | E19: ='INVOICE 3'!E19+'INVOICE 3'!H19 -> 0 | F19: ='INVOICE 3'!F19+'INVOICE 3'!I19 -> 0 | G19: 0 | H19: 0 | I19: 0 | J19: 0 | K19: 0 | L19: 0 | M19: 0 | N19: 0
A20: Data Collection | B20: ='INVOICE 3'!B20 -> 0 | C20: ='INVOICE 3'!C20 -> 0 | D20: 0 | E20: ='INVOICE 3'!E20+'INVOICE 3'!H20 -> 0 | F20: ='INVOICE 3'!F20+'INVOICE 3'!I20 -> 0 | G20: 0 | H20: 0 | I20: 0 | J20: 0 | K20: 0 | L20: 0 | M20: 0
A21: Project Evaluation | B21: ='INVOICE 3'!B21 -> 0 | C21: ='INVOICE 3'!C21 -> 0 | D21: 0 | E21: ='INVOICE 3'!E21+'INVOICE 3'!H21 -> 0 | F21: ='INVOICE 3'!F21+'INVOICE 3'!I21 -> 0 | G21: 0 | H21: 0 | I21: 0 | J21: 0 | K21: 0 | L21: 0 | M21: 0 | N21: 3rd Advance [enter date]
A22: Other | B22: ='INVOICE 3'!B22 -> 3000 | C22: ='INVOICE 3'!C22 -> 0 | D22: =SUM(B22:C22) -> 3000 | E22: ='INVOICE 3'!E22+'INVOICE 3'!H22 -> 1604 | F22: ='INVOICE 3'!F22+'INVOICE 3'!I22 -> 0 | G22: 1604 | H22: 0 | I22: 0 | J22: 0 | K22: 1396 | L22: 0 | M22: 1396 | N22: 0
A23: Indirect Costs | B23: ='INVOICE 3'!B23 -> 0 | C23: ='INVOICE 3'!C23 -> 0 | D23: 0 | E23: ='INVOICE 3'!E23+'INVOICE 3'!H23 -> 0 | F23: ='INVOICE 3'!F23+'INVOICE 3'!I23 -> 0 | G23: 0 | I23: 0 | J23: 0 | K23: 0 | L23: 0 | M23: 0
A24: TOTAL | B24: =SUM(B15:B23) -> 1000000 | C24: =SUM(C15:C23) -> 250001 | D24: =SUM(D15:D23) -> 1250001 | E24: =SUM(E15:E23) -> 172563 | F24: 0 | G24: 172563 | H24: 73772 | I24: =SUM(I15:I23) -> 7615 | J24: 81387 | K24: 753665 | L24: 242386 | M24: 996051 | N24: =SUM(N16+N19+N22) -> 333333
A26: Project Income | C26: Income reported to date | D26: ='INVOICE 1'!D26+'INVOICE 4'!I26 -> 0 | F26: Prior allocated income | G26: 0 | H26: This Period | I26: 0 | L26: Unallocated income balance | M26: =D26-G26 -> 0
C28: Grant funds expended to date: | D28: =SUM(E24,H24) -> 246335 | G28: Grant funds claimed this period: | H28: =H24 -> 73772 | M28: % total dispursed fund expended to date: | N28: =D28/N24 -> 0.739005739
C29: Match funds to date: | D29: =SUM(F24,I24) -> 7615 | G29: Advance disbursments balance: | H29: =N24-D28 -> 86998 | M29: % of Total Obligated Match to date: | N29: =E29/C24 -> 0
D33: Expenditure Descriptions - Units / $ Amounts | L33: Comments
A34: Salaries & Benefits | B34: Grant Funds | C34: =H15 -> 8380 | D34: 1 FTE Project Director @ $79.07/hr x 15 hours + 109.86% Benefits $1,302.99 = $2,489.04 1 FTE Project Director @ $79.07/hr x 18.5 hours + 109.86% Benefits $1,607.03 = $3,069.82 1 FTE Project Director @ $79.07/hr x 17 hours + 109.86% Benefits $1,476.73 = $2,820.92
B35: Match | C35: =I15 -> 0
A36: Services & Supplies | B36: Grant Funds | C36: =H16 -> 0
B37: Match | C37: =I16 -> 7615 | D37: YRG Office rental July 2019-June 2020 @ $495/ month for 12 Months and Misc. Office Supplies ($1675.00)
A38: Professional Services | B38: Grant Funds | C38: =H17 -> 0
B39: Match | C39: =I17 -> 0
A40: NGO Subcontracts | B40: Grant Funds | C40: =H18 -> 65392 | D40: Total Personnel $39,836.45 - 1) 0.40 FTE Diversion Supervisor 4,644/month x 3months = $5,572.81 2) 0.50 FTE Licensed Clinical Supervisor 5,150 x 3months = $7,725 3) 1.00 FTE Counselor 4,842/month x 3 months = $14,526 4) Diversion Specialist 21.19/HR x 488 Hrs = $10,340.74 5) Mediator/Case Coordinator 21.11/HR x 79.20 Hrs = $1,671.90. Total Benefits $11,597.30 - (Approximately 25% of Salaries); Health $5,695.17, Dental $494.04, Vision $31.23, Life $39.78, 401K $1,458.27, Workers Compensation $163.03, Long-Term Disability $70.62, FICA $2,857.93, Waymakers Points $742.50, SUI $44.73. Total Service and Supply $8,376.24 - Training for Evidence Based Practices $1,458.49, Office/Supplies Expense $1,256.80, Travel (Mileages) $303.65, Liability Insurance $213.92 and Indirect Cost $5,143.38. | L40: Previously mentioned, additional personnel FTE for Q4 were covered by FTE savings identified in Q1 & Q2. Total YTD FTE for Year 1 at 2.74. Services from (CRF-OC)-$18,918 line item have been cancelled due to COVID-19. Waymakers has requested to roll-over the remaining balance of $6,347 in the Training for Evidence Based Practices line item to Year 2. The projected spend out for this line item is Q2 of Year 2.
B41: Match | C41: =I18 -> 0
A42: Equipment / Fixed Assets | B42: Grant Funds | C42: =H19 -> 0
B43: Match | C43: =I19 -> 0
A44: Data Collection | B44: Grant Funds | C44: =H20 -> 0
B45: Match | C45: =I20 -> 0
A46: Project Evaluation | B46: Grant Funds | C46: =H21 -> 0
B47: Match | C47: =I21 -> 0
A48: Other | B48: Grant Funds | C48: =H22 -> 0
B49: Match | C49: =I22 -> 0
A50: Indirect Costs | B50: Grant Funds | C50: =H23 -> 0
B51: Match | C51: =I23 -> 0
A52: Project Income | C52: =I26 -> 0
A53: PERSON PREPARING REPORT | E53: AUTHORIZED FINANCIAL OFFICER | L53: BSCC Supplier Data - Internal Use Only
E54: By checking the box below, I hereby certify that I am the authorized financial officer of the herein named agency. I further certify that I have not violated any of the provisions of Section 1090 of the Government Code in incurring the expenditures reported in this invoice, nor in any other way; that Sections 1090 through 1096 of the Government Code will not be violated in any way in the expenditure of funds pursuant to this invoice; that statement of funds above is true, correct, and in accordance with program provisions in all respects; and that all expenditures submitted after the expiration date of this contract are for the purpose of substantiating obligations legally incurred during the contract period. Furthermore, by submitting this invoice, I acknowledge that it must adhere to all of the requirements in the BSCC Grant Administration Guide, including any updates to the Guide during the term of the grant agreement.
A55: Jan Wang, Management Analyst | L55: ='INVOICE 1'!L55:O55 -> 6990
A56: Name, Title | L56: Supplier ID
A57: 714-754-5074 | L57: ='INVOICE 1'!L57:O57 -> CITYOFCOST-001
A58: Phone | L58: Supplier Name
A59: jwang@costamesaca.gov | L59: ='INVOICE 1'!L59:O59 -> 99 FAIR DR
A60: Email | L60: Address Line 1
A61: 2020-08-03 | L61: ='INVOICE 1'!L61:O61 -> COSTA MESA CA 92626
A62: Date | L62: Address Line 2
E64: Jennifer King, Assistant Finance Director
E65: Name, Title
E66: 714-754-5219
E67: Phone
E68: 2020-08-03
E69: Date
A71: BSCC USE ONLY
A72: Date Received: | C72: 2020-09-15 | G72: Approved By: | I72: Kimberly Bushard
I73: BSCC Field Representative

Sheet 2nd Advance Payment
A1: STATE OF CALIFORNIA | J1: Purchase Authority | L1: BSCC 5227
A2: BOARD OF STATE AND COMMUNITY CORRECTIONS | J2: Purchase Order: | L2: 2469
A3: Advance Payment Invoice: BSCC 201A (Revised 06/2020)
B6: Program: | C6: ='INVOICE 1'!B5 -> Youth Reinvestment Grant | H6: Grantee: | I6: ='INVOICE 1'!B7 -> City of Costa Mesa
B8: Contract #: | C8: ='INVOICE 1'!B9 -> BSCC 569-19 | H8: Address | I8: 99 FAIR DRIVE
J9: Address Line 1
B10: Term: | C10: ='INVOICE 1'!E9 -> 2019-07-01 | D10: TO | E10: ='INVOICE 1'!G9 -> 2023-02-28 | I10: COSTA MESA, A 92626
J11: Address Line 2
B13: Advance Payment # | D13: 2 YRG 2019 | G13: Please Note: The California State Controller's Office will send all checks directly to the address listed in the "BSCC Vendor Data" section at the bottom of this invoice.
B15: Effective Invoice # | C15: 5
A18: Advance Payment Invoice
J19: Total Grant Award: | K19: 1000000
J20: Advance Total: | K20: 333333
J21: Grant Award Balance: | K21: 333334
B25: PERSON PREPARING REPORT | G25: AUTHORIZED FINANCIAL OFFICER
B26: Jan Wang, Management Analyst | G26: I hereby certify that I am the authorized financial officer of the herein named agency. I further certify that I have not violated any of the provisions of Section 1090 of the Government Code in incurring the expenditures reported in this invoice, nor in any other way; that Sections 1090 through 1096 of the Government Code will not be violated in any way in the expenditure of funds pursuant to this invoice; that statement of funds above is true, correct, and in accordance with program provisions in all respects; and that all expenditures submitted after the expiration date of this contract are for the purpose of substantiating obligations legally incurred during the contract period. Furthermore, by submitting this invoice, I acknowledge that it must adhere to all of the requirements in the BSCC Grant Administration Guide, including any updates to the Guide during the term of the grant agreement.
B27: Name, Title
B28: 714-754-5074
B29: Phone
B30: jwang@costamesaca.gov
B31: Email
B32: 2020-11-17
B33: Date
G35: Jennifer King, Assistant Finance Director
G36: Name, Title
G37: 714-754-5219
G38: Phone
G39: jennifer.king@costamesaca.gov
G40: Email
G41: 2020-12-03
G42: Date
G43: Jennifer King
G44: Signature
F48: BSCC USE ONLY
B50: Approved By: | C50: Eddie Escobar | J50: BSCC Supplier Data
C51: BSCC Field Representative | I51: CITYOFCOST-001
J52: Supplier Name
B53: Date: | C53: 2021-04-21 | I53: 6990
J54: Supplier Number

Sheet INVOICE 5
A1: STATE OF CALIFORNIA | L1: Purchase Authority | N1: BSCC 5227
A2: BOARD OF STATE AND COMMUNITY CORRECTIONS | L2: Purchase Order: | N2: 2469
A3: Financial Invoice Form: BSCC 201 (Revised 04/2020)
A5: Program: | B5: ='INVOICE 1'!B5 -> Youth Reinvestment Grant | K5: Please Note: The California State Controller's Office will send all checks directly to the address listed in the "BSCC Vendor Data" section at the bottom of this invoice.
A7: Grantee: | B7: ='INVOICE 1'!B7 -> City of Costa Mesa | F7: Lead Public Agency: | G7: N/A
A9: Contract #: | B9: ='INVOICE 1'!B9 -> BSCC 569-19 | D9: Term: | E9: ='INVOICE 1'!E9 -> 2019-07-01 | F9: TO | G9: ='INVOICE 1'!G9 -> 2023-02-28 | L9: Invoicing Frequency | M9: Quarterly
A11: Invoice #: | B11: 5 | D11: Reporting Period: | E11: 2020-07-01 | F11: TO | G11: 2020-09-30 | H11: Due: | I11: 2020-11-16 | L11: Final Invoice (Y/N): | M11: No
A13: Line Items | B13: Budget | E13: Prior Expenditures | H13: This Reporting Period | K13: Balance | N13: Advance Disbursements
B14: Grant Funds | C14: Match | D14: TOTAL | E14: Grant Funds | F14: Match | G14: TOTAL | H14: Grant Funds | I14: Match | J14: TOTAL | K14: Grant Funds | L14: Match | M14: TOTAL
A15: Salaries & Benefits | B15: ='INVOICE 4'!B15 -> 97000 | C15: ='INVOICE 4'!C15 -> 0 | D15: =SUM(B15:C15) -> 97000 | E15: ='INVOICE 4'!E15+'INVOICE 4'!H15 -> 26634 | F15: ='INVOICE 4'!F15+'INVOICE 4'!I15 -> 0 | G15: =SUM(E15:F15) -> 26634 | H15: 5321 | I15: 0 | J15: =SUM(H15:I15) -> 5321 | K15: =B15-E15-H15 -> 65045 | L15: 0 | M15: =SUM(K15:L15) -> 65045 | N15: 1st Advance [10/25/19]
A16: Services & Supplies | B16: ='INVOICE 4'!B16 -> 0 | C16: ='INVOICE 4'!C16 -> 25364 | D16: 25364 | E16: ='INVOICE 4'!E16+'INVOICE 4'!H16 -> 0 | F16: ='INVOICE 4'!F16+'INVOICE 4'!I16 -> 7615 | G16: =SUM(E16:F16) -> 7615 | H16: 0 | I16: 0 | J16: 0 | K16: 0 | L16: 17749 | M16: 17749 | N16: ='1st Advance Payment'!K20 -> 333333
A17: Professional Services | B17: ='INVOICE 4'!B17 -> 0 | C17: ='INVOICE 4'!C17 -> 224637 | D17: 224637 | E17: ='INVOICE 4'!E17+'INVOICE 4'!H17 -> 0 | F17: ='INVOICE 4'!F17+'INVOICE 4'!I17 -> 0 | G17: =SUM(E17:F17) -> 0 | H17: 0 | I17: 0 | J17: 0 | K17: 0 | L17: 224637 | M17: 224637
A18: NGO Subcontracts | B18: ='INVOICE 4'!B18 -> 900000 | C18: ='INVOICE 4'!C18 -> 0 | D18: 900000 | E18: ='INVOICE 4'!E18+'INVOICE 4'!H18 -> 218097 | F18: ='INVOICE 4'!F18+'INVOICE 4'!I18 -> 0 | G18: 218097 | H18: 59810 | I18: 0 | J18: 59810 | K18: 622093 | L18: 0 | M18: 622093 | N18: 2nd Advance [5/14/21]
A19: Equipment / Fixed Assets | B19: ='INVOICE 4'!B19 -> 0 | C19: ='INVOICE 4'!C19 -> 0 | D19: 0 | E19: ='INVOICE 4'!E19+'INVOICE 4'!H19 -> 0 | F19: ='INVOICE 4'!F19+'INVOICE 4'!I19 -> 0 | G19: 0 | H19: 0 | I19: 0 | J19: 0 | K19: 0 | L19: 0 | M19: 0 | N19: 333333
A20: Data Collection | B20: ='INVOICE 4'!B20 -> 0 | C20: ='INVOICE 4'!C20 -> 0 | D20: 0 | E20: ='INVOICE 4'!E20+'INVOICE 4'!H20 -> 0 | F20: ='INVOICE 4'!F20+'INVOICE 4'!I20 -> 0 | G20: 0 | H20: 0 | I20: 0 | J20: 0 | K20: 0 | L20: 0 | M20: 0
A21: Project Evaluation | B21: ='INVOICE 4'!B21 -> 0 | C21: ='INVOICE 4'!C21 -> 0 | D21: 0 | E21: ='INVOICE 4'!E21+'INVOICE 4'!H21 -> 0 | F21: ='INVOICE 4'!F21+'INVOICE 4'!I21 -> 0 | G21: 0 | H21: 0 | I21: 0 | J21: 0 | K21: 0 | L21: 0 | M21: 0 | N21: 3rd Advance [enter date]
A22: Other | B22: ='INVOICE 4'!B22 -> 3000 | C22: ='INVOICE 4'!C22 -> 0 | D22: =SUM(B22:C22) -> 3000 | E22: ='INVOICE 4'!E22+'INVOICE 4'!H22 -> 1604 | F22: ='INVOICE 4'!F22+'INVOICE 4'!I22 -> 0 | G22: 1604 | H22: 0 | I22: 0 | J22: 0 | K22: 1396 | L22: 0 | M22: 1396 | N22: 0
A23: Indirect Costs | B23: ='INVOICE 4'!B23 -> 0 | C23: ='INVOICE 4'!C23 -> 0 | D23: 0 | E23: ='INVOICE 4'!E23+'INVOICE 4'!H23 -> 0 | F23: ='INVOICE 4'!F23+'INVOICE 4'!I23 -> 0 | G23: 0 | H23: 0 | I23: 0 | J23: 0 | K23: 0 | L23: 0 | M23: 0
A24: TOTAL | B24: =SUM(B15:B23) -> 1000000 | C24: =SUM(C15:C23) -> 250001 | D24: =SUM(D15:D23) -> 1250001 | E24: =SUM(E15:E23) -> 246335 | F24: 7615 | G24: 253950 | H24: 65131 | I24: =SUM(I15:I23) -> 0 | J24: 65131 | K24: 688534 | L24: 242386 | M24: 930920 | N24: =SUM(N16+N19+N22) -> 666666
A26: Project Income | C26: Income reported to date | D26: ='INVOICE 1'!D26+'INVOICE 5'!I26 -> 0 | F26: Prior allocated income | G26: 0 | H26: This Period | I26: 0 | L26: Unallocated income balance | M26: =D26-G26 -> 0
C28: Grant funds expended to date: | D28: =SUM(E24,H24) -> 311466 | G28: Grant funds claimed this period: | H28: =H24 -> 65131 | M28: % total dispursed fund expended to date: | N28: =D28/N24 -> 0.4671994672
C29: Match funds to date: | D29: =SUM(F24,I24) -> 7615 | G29: Advance disbursments balance: | H29: =N24-D28 -> 355200 | M29: % of Total Obligated Match to date: | N29: =E29/C24 -> 0
D33: Expenditure Descriptions - Units / $ Amounts | L33: Comments
A34: Salaries & Benefits | B34: Grant Funds | C34: =H15 -> 5321 | D34: 1 FTE Project Director @ $81.44/hr x 12 hours + 104.19% Benefits $1,018.28= $1,995.56 [July 2020] 1 FTE Project Director @ $81.44/hr x 10 hours + 104.19% Benefits $848.56 = $1,662.96 [Aug 2020] 1 FTE Project Director @ $81.44/hr x 10 hours + 104.19% Benefits $848.56 = $1,662.96 [Sept 2020] | L34: Working with Waymakers and to update other PD angencies (12 hrs); Coordinate CMPD process and training for patrol (10 hrs); working with Waymakers and coordinating MOU with the other angencies (10 hrs)
B35: Match | C35: =I15 -> 0
A36: Services & Supplies | B36: Grant Funds | C36: =H16 -> 0
B37: Match | C37: =I16 -> 0
A38: Professional Services | B38: Grant Funds | C38: =H17 -> 0
B39: Match | C39: =I17 -> 0
A40: NGO Subcontracts | B40: Grant Funds | C40: =H18 -> 59810 | D40: Total Personnel $39,836.45 - 1) 0.40 FTE Diversion Supervisor 4,644/month x 3months = $5,572.81 2) 0.50 FTE Licensed Clinical Supervisor 5,150 x 3months = $7,725 3) 1.00 FTE Counselor 4,842/month x 3 months = $14,526 4) Diversion Specialist 21.19/HR x 488 Hrs = $10,340.74 5) Mediator/Case Coordinator 21.11/HR x 79.20 Hrs = $1,671.90. Total Benefits $11,597.30 - (Approximately 25% of Salaries); Health $5,695.17, Dental $494.04, Vision $31.23, Life $39.78, 401K $1,458.27, Workers Compensation $163.03, Long-Term Disability $70.62, FICA $2,857.93, Waymakers Points $742.50, SUI $44.73. Total Service and Supply $8,376.24 - Training for Evidence Based Practices $1,458.49, Office/Supplies Expense $1,256.80, Travel (Mileages) $303.65, Liability Insurance $213.92 and Indirect Cost $5,143.38. | L40: CRF-OC budget line item will continue to be underspent due to COVID-19 restrictions. On-site group services are currently not provided by schools. Alternative services under review.
B41: Match | C41: =I18 -> 0
A42: Equipment / Fixed Assets | B42: Grant Funds | C42: =H19 -> 0
B43: Match | C43: =I19 -> 0
A44: Data Collection | B44: Grant Funds | C44: =H20 -> 0
B45: Match | C45: =I20 -> 0
A46: Project Evaluation | B46: Grant Funds | C46: =H21 -> 0
B47: Match | C47: =I21 -> 0
A48: Other | B48: Grant Funds | C48: =H22 -> 0
B49: Match | C49: =I22 -> 0
A50: Indirect Costs | B50: Grant Funds | C50: =H23 -> 0
B51: Match | C51: =I23 -> 0
A52: Project Income | C52: =I26 -> 0
A53: PERSON PREPARING REPORT | E53: AUTHORIZED FINANCIAL OFFICER | L53: BSCC Supplier Data - Internal Use Only
E54: By checking the box below, I hereby certify that I am the authorized financial officer of the herein named agency. I further certify that I have not violated any of the provisions of Section 1090 of the Government Code in incurring the expenditures reported in this invoice, nor in any other way; that Sections 1090 through 1096 of the Government Code will not be violated in any way in the expenditure of funds pursuant to this invoice; that statement of funds above is true, correct, and in accordance with program provisions in all respects; and that all expenditures submitted after the expiration date of this contract are for the purpose of substantiating obligations legally incurred during the contract period. Furthermore, by submitting this invoice, I acknowledge that it must adhere to all of the requirements in the BSCC Grant Administration Guide, including any updates to the Guide during the term of the grant agreement.
A55: Jan Wang, Management Analyst | L55: ='INVOICE 1'!L55:O55 -> 6990
A56: Name, Title | L56: Supplier ID
A57: 714-754-5074 | L57: ='INVOICE 1'!L57:O57 -> CITYOFCOST-001
A58: Phone | L58: Supplier Name
A59: jwang@costamesaca.gov | L59: ='INVOICE 1'!L59:O59 -> 99 FAIR DR
A60: Email | L60: Address Line 1
A61: 2020-11-12 | L61: ='INVOICE 1'!L61:O61 -> COSTA MESA CA 92626
A62: Date | L62: Address Line 2
E64: Jennifer King, Assistant Finance Director
E65: Name, Title
E66: 714-754-5219
E67: Phone
E68: 2020-11-15
E69: Date
A71: BSCC USE ONLY
A72: Date Received: | C72: 2020-11-15 | G72: Approved By: | I72: Eddie Escobar
I73: BSCC Field Representative

Sheet INVOICE 6
A1: STATE OF CALIFORNIA | L1: Purchase Authority | N1: BSCC 5227
A2: BOARD OF STATE AND COMMUNITY CORRECTIONS | L2: Purchase Order: | N2: 2469
A3: Financial Invoice Form: BSCC 201 (Revised 04/2020)
A5: Program: | B5: ='INVOICE 1'!B5 -> Youth Reinvestment Grant | K5: Please Note: The California State Controller's Office will send all checks directly to the address listed in the "BSCC Vendor Data" section at the bottom of this invoice.
A7: Grantee: | B7: ='INVOICE 1'!B7 -> City of Costa Mesa | F7: Lead Public Agency: | G7: N/A
A9: Contract #: | B9: ='INVOICE 1'!B9 -> BSCC 569-19 | D9: Term: | E9: ='INVOICE 1'!E9 -> 2019-07-01 | F9: TO | G9: ='INVOICE 1'!G9 -> 2023-02-28 | L9: Invoicing Frequency | M9: Quarterly
A11: Invoice #: | B11: 6 | D11: Reporting Period: | E11: 2020-10-01 | F11: TO | G11: 2020-12-31 | H11: Due: | I11: 2021-02-15 | L11: Final Invoice (Y/N): | M11: No
A13: Line Items | B13: Budget | E13: Prior Expenditures | H13: This Reporting Period | K13: Balance | N13: Advance Disbursements
B14: Grant Funds | C14: Match | D14: TOTAL | E14: Grant Funds | F14: Match | G14: TOTAL | H14: Grant Funds | I14: Match | J14: TOTAL | K14: Grant Funds | L14: Match | M14: TOTAL
A15: Salaries & Benefits | B15: ='INVOICE 5'!B15 -> 97000 | C15: ='INVOICE 5'!C15 -> 0 | D15: =SUM(B15:C15) -> 97000 | E15: ='INVOICE 5'!E15+'INVOICE 5'!H15 -> 31955 | F15: ='INVOICE 5'!F15+'INVOICE 5'!I15 -> 0 | G15: =SUM(E15:F15) -> 31955 | H15: 5831 | I15: 0 | J15: =SUM(H15:I15) -> 5831 | K15: =B15-E15-H15 -> 59214 | L15: 0 | M15: =SUM(K15:L15) -> 59214 | N15: 1st Advance [10/25/19]
A16: Services & Supplies | B16: ='INVOICE 5'!B16 -> 0 | C16: ='INVOICE 5'!C16 -> 25364 | D16: 25364 | E16: ='INVOICE 5'!E16+'INVOICE 5'!H16 -> 0 | F16: ='INVOICE 5'!F16+'INVOICE 5'!I16 -> 7615 | G16: =SUM(E16:F16) -> 7615 | H16: 0 | I16: 0 | J16: 0 | K16: 0 | L16: 17749 | M16: 17749 | N16: ='1st Advance Payment'!K20 -> 333333
A17: Professional Services | B17: ='INVOICE 5'!B17 -> 0 | C17: ='INVOICE 5'!C17 -> 224637 | D17: 224637 | E17: ='INVOICE 5'!E17+'INVOICE 5'!H17 -> 0 | F17: ='INVOICE 5'!F17+'INVOICE 5'!I17 -> 0 | G17: =SUM(E17:F17) -> 0 | H17: 0 | I17: 0 | J17: 0 | K17: 0 | L17: 224637 | M17: 224637
A18: NGO Subcontracts | B18: ='INVOICE 5'!B18 -> 900000 | C18: ='INVOICE 5'!C18 -> 0 | D18: 900000 | E18: ='INVOICE 5'!E18+'INVOICE 5'!H18 -> 277907 | F18: ='INVOICE 5'!F18+'INVOICE 5'!I18 -> 0 | G18: 277907 | H18: 63829 | I18: 0 | J18: 63829 | K18: 558264 | L18: 0 | M18: 558264 | N18: ='INVOICE 5'!N18 -> 2nd Advance [5/14/21]
A19: Equipment / Fixed Assets | B19: ='INVOICE 5'!B19 -> 0 | C19: ='INVOICE 5'!C19 -> 0 | D19: 0 | E19: ='INVOICE 5'!E19+'INVOICE 5'!H19 -> 0 | F19: ='INVOICE 5'!F19+'INVOICE 5'!I19 -> 0 | G19: 0 | H19: 0 | I19: 0 | J19: 0 | K19: 0 | L19: 0 | M19: 0 | N19: ='INVOICE 5'!N19 -> 333333
A20: Data Collection | B20: ='INVOICE 5'!B20 -> 0 | C20: ='INVOICE 5'!C20 -> 0 | D20: 0 | E20: ='INVOICE 5'!E20+'INVOICE 5'!H20 -> 0 | F20: ='INVOICE 5'!F20+'INVOICE 5'!I20 -> 0 | G20: 0 | H20: 0 | I20: 0 | J20: 0 | K20: 0 | L20: 0 | M20: 0
A21: Project Evaluation | B21: ='INVOICE 5'!B21 -> 0 | C21: ='INVOICE 5'!C21 -> 0 | D21: 0 | E21: ='INVOICE 5'!E21+'INVOICE 5'!H21 -> 0 | F21: ='INVOICE 5'!F21+'INVOICE 5'!I21 -> 0 | G21: 0 | H21: 0 | I21: 0 | J21: 0 | K21: 0 | L21: 0 | M21: 0 | N21: 3rd Advance [enter date]
A22: Other | B22: ='INVOICE 5'!B22 -> 3000 | C22: ='INVOICE 5'!C22 -> 0 | D22: =SUM(B22:C22) -> 3000 | E22: ='INVOICE 5'!E22+'INVOICE 5'!H22 -> 1604 | F22: ='INVOICE 5'!F22+'INVOICE 5'!I22 -> 0 | G22: 1604 | H22: 0 | I22: 0 | J22: 0 | K22: 1396 | L22: 0 | M22: 1396 | N22: 0
A23: Indirect Costs | B23: ='INVOICE 5'!B23 -> 0 | C23: ='INVOICE 5'!C23 -> 0 | D23: 0 | E23: ='INVOICE 5'!E23+'INVOICE 5'!H23 -> 0 | F23: ='INVOICE 5'!F23+'INVOICE 5'!I23 -> 0 | G23: 0 | H23: 0 | I23: 0 | J23: 0 | K23: 0 | L23: 0 | M23: 0
A24: TOTAL | B24: =SUM(B15:B23) -> 1000000 | C24: =SUM(C15:C23) -> 250001 | D24: =SUM(D15:D23) -> 1250001 | E24: =SUM(E15:E23) -> 311466 | F24: 7615 | G24: 319081 | H24: 69660 | I24: =SUM(I15:I23) -> 0 | J24: 69660 | K24: 618874 | L24: 242386 | M24: 861260 | N24: =SUM(N16+N19+N22) -> 666666
A26: Project Income | C26: Income reported to date | D26: ='INVOICE 1'!D26+'INVOICE 6'!I26 -> 0 | F26: Prior allocated income | G26: 0 | H26: This Period | I26: 0 | L26: Unallocated income balance | M26: =D26-G26 -> 0
C28: Grant funds expended to date: | D28: =SUM(E24,H24) -> 381126 | G28: Grant funds claimed this period: | H28: =H24 -> 69660 | M28: % total dispursed fund expended to date: | N28: =D28/N24 -> 0.5716895717
C29: Match funds to date: | D29: =SUM(F24,I24) -> 7615 | G29: Advance disbursments balance: | H29: =N24-D28 -> 285540 | M29: % of Total Obligated Match to date: | N29: =E29/C24 -> 0
D33: Expenditure Descriptions - Units / $ Amounts | L33: Comments
A34: Salaries & Benefits | B34: Grant Funds | C34: =H15 -> 5831 | D34: 1 FTE Project Director @ $81.44/hr x 13 hours + 104.563% Benefits $1,107.03= $2,165.75 (October 2020) 1 FTE Project Director @ $81.44/hr x 12 hours + 104.563% Benefits $1,021.88 = $1,999.16 (November 2020) 1 FTE Project Director @ $81.44/hr x 10 hours + 104.563% Benefits $851.56 = $1,665.96 (December 2020) | L34: project director call w/BSCC, contact OC Probation and Waymakers
B35: Match | C35: =I15 -> 0
A36: Services & Supplies | B36: Grant Funds | C36: =H16 -> 0
B37: Match | C37: =I16 -> 0
A38: Professional Services | B38: Grant Funds | C38: =H17 -> 0
B39: Match | C39: =I17 -> 0
A40: NGO Subcontracts | B40: Grant Funds | C40: =H18 -> 63829 | D40: Total Personnel $40,667.35 - 1) 0.40 FTE Diversion Supervisor 4,644/month x 3months (Less $16.68 due to covid related leave EPSL Self) = $5,556.12 2) 0.50 FTE Licensed Clinical Supervisor 5,150 x 3months = $7,725 3) 1.00 FTE Counselor 4,842/month x 3 months = $14,526 4) Diversion Specialist 21.19/HR x 528 Hrs = $11,188.34 5) Mediator/Case Coordinator 21.11/HR x 79.20 Hrs = $1,671.89. Total Benefits $12,628.14 - (Approximately 25% of Salaries); Health $6,551.27, Dental $479.28, Vision $31.23, Life $43.48, 401K $1,472.96, Workers Compensation $146.92, Long-Term Disability $70.62, FICA $2,921.35, Waymakers Points $741.64, SUI $169.39. Total Service and Supply $10,533.61 - Training for Evidence Based Practices $3,390, Office/Supplies Expense $1,059.40, Travel (Mileages) $119.36, Liability Insurance $325.05, Subcontract:Constitution Rights Foundation Peer Court $310.25 and Indirect Cost $5,329.55. | L40: Supporting Documents Provided
B41: Match | C41: =I18 -> 0
A42: Equipment / Fixed Assets | B42: Grant Funds | C42: =H19 -> 0
B43: Match | C43: =I19 -> 0
A44: Data Collection | B44: Grant Funds | C44: =H20 -> 0
B45: Match | C45: =I20 -> 0
A46: Project Evaluation | B46: Grant Funds | C46: =H21 -> 0
B47: Match | C47: =I21 -> 0
A48: Other | B48: Grant Funds | C48: =H22 -> 0
B49: Match | C49: =I22 -> 0
A50: Indirect Costs | B50: Grant Funds | C50: =H23 -> 0
B51: Match | C51: =I23 -> 0
A52: Project Income | C52: =I26 -> 0
A53: PERSON PREPARING REPORT | E53: AUTHORIZED FINANCIAL OFFICER | L53: BSCC Supplier Data - Internal Use Only
E54: By checking the box below, I hereby certify that I am the authorized financial officer of the herein named agency. I further certify that I have not violated any of the provisions of Section 1090 of the Government Code in incurring the expenditures reported in this invoice, nor in any other way; that Sections 1090 through 1096 of the Government Code will not be violated in any way in the expenditure of funds pursuant to this invoice; that statement of funds above is true, correct, and in accordance with program provisions in all respects; and that all expenditures submitted after the expiration date of this contract are for the purpose of substantiating obligations legally incurred during the contract period. Furthermore, by submitting this invoice, I acknowledge that it must adhere to all of the requirements in the BSCC Grant Administration Guide, including any updates to the Guide during the term of the grant agreement.
A55: Jan Wang, Management Analyst | L55: ='INVOICE 1'!L55:O55 -> 6990
A56: Name, Title | L56: Supplier ID
A57: 714-754-5074 | L57: ='INVOICE 1'!L57:O57 -> CITYOFCOST-001
A58: Phone | L58: Supplier Name
A59: jwang@costamesaca.gov | L59: ='INVOICE 1'!L59:O59 -> 99 FAIR DR
A60: Email | L60: Address Line 1
A61: 2021-02-03 | L61: ='INVOICE 1'!L61:O61 -> COSTA MESA CA 92626
A62: Date | L62: Address Line 2
E64: Jennifer King, Assistant Finance Director
E65: Name, Title
E66: 714-754-5219
E67: Phone
E68: 2021-02-03
E69: Date
A71: BSCC USE ONLY
A72: Date Received: | C72: 2021-02-03 | G72: Approved By: | I72: Eddie Escobar
I73: BSCC Field Representative

Sheet INVOICE 7
A1: STATE OF CALIFORNIA | L1: Purchase Authority | N1: BSCC 5227
A2: BOARD OF STATE AND COMMUNITY CORRECTIONS | L2: Purchase Order: | N2: 2469
A3: Financial Invoice Form: BSCC 201 (Revised 04/2020)
A5: Program: | B5: ='INVOICE 1'!B5 -> Youth Reinvestment Grant | K5: Please Note: The California State Controller's Office will send all checks directly to the address listed in the "BSCC Vendor Data" section at the bottom of this invoice.
A7: Grantee: | B7: ='INVOICE 1'!B7 -> City of Costa Mesa | F7: Lead Public Agency: | G7: N/A
A9: Contract #: | B9: ='INVOICE 1'!B9 -> BSCC 569-19 | D9: Term: | E9: ='INVOICE 1'!E9 -> 2019-07-01 | F9: TO | G9: ='INVOICE 1'!G9 -> 2023-02-28 | L9: Invoicing Frequency | M9: Quarterly
A11: Invoice #: | B11: 7 | D11: Reporting Period: | E11: 2021-01-01 | F11: TO | G11: 2021-03-31 | H11: Due: | I11: 2021-05-17 | L11: Final Invoice (Y/N): | M11: No
A13: Line Items | B13: Budget | E13: Prior Expenditures | H13: This Reporting Period | K13: Balance | N13: Advance Disbursements
B14: Grant Funds | C14: Match | D14: TOTAL | E14: Grant Funds | F14: Match | G14: TOTAL | H14: Grant Funds | I14: Match | J14: TOTAL | K14: Grant Funds | L14: Match | M14: TOTAL
A15: Salaries & Benefits | B15: ='INVOICE 6'!B15 -> 97000 | C15: ='INVOICE 6'!C15 -> 0 | D15: =SUM(B15:C15) -> 97000 | E15: ='INVOICE 6'!E15+'INVOICE 6'!H15 -> 37786 | F15: ='INVOICE 6'!F15+'INVOICE 6'!I15 -> 0 | G15: =SUM(E15:F15) -> 37786 | H15: 6497 | I15: 0 | J15: =SUM(H15:I15) -> 6497 | K15: =B15-E15-H15 -> 52717 | L15: 0 | M15: =SUM(K15:L15) -> 52717 | N15: 1st Advance [10/25/19]
A16: Services & Supplies | B16: ='INVOICE 6'!B16 -> 0 | C16: ='INVOICE 6'!C16 -> 25364 | D16: 25364 | E16: ='INVOICE 6'!E16+'INVOICE 6'!H16 -> 0 | F16: ='INVOICE 6'!F16+'INVOICE 6'!I16 -> 7615 | G16: =SUM(E16:F16) -> 7615 | H16: 0 | I16: 0 | J16: 0 | K16: 0 | L16: 17749 | M16: 17749 | N16: ='1st Advance Payment'!K20 -> 333333
A17: Professional Services | B17: ='INVOICE 6'!B17 -> 0 | C17: ='INVOICE 6'!C17 -> 224637 | D17: 224637 | E17: ='INVOICE 6'!E17+'INVOICE 6'!H17 -> 0 | F17: ='INVOICE 6'!F17+'INVOICE 6'!I17 -> 0 | G17: =SUM(E17:F17) -> 0 | H17: 0 | I17: 0 | J17: 0 | K17: 0 | L17: 224637 | M17: 224637
A18: NGO Subcontracts | B18: ='INVOICE 6'!B18 -> 900000 | C18: ='INVOICE 6'!C18 -> 0 | D18: 900000 | E18: ='INVOICE 6'!E18+'INVOICE 6'!H18 -> 341736 | F18: ='INVOICE 6'!F18+'INVOICE 6'!I18 -> 0 | G18: 341736 | H18: 59969 | I18: 0 | J18: 59969 | K18: 498295 | L18: 0 | M18: 498295 | N18: ='INVOICE 6'!N18 -> 2nd Advance [5/14/21]
A19: Equipment / Fixed Assets | B19: ='INVOICE 6'!B19 -> 0 | C19: ='INVOICE 6'!C19 -> 0 | D19: 0 | E19: ='INVOICE 6'!E19+'INVOICE 6'!H19 -> 0 | F19: ='INVOICE 6'!F19+'INVOICE 6'!I19 -> 0 | G19: 0 | H19: 0 | I19: 0 | J19: 0 | K19: 0 | L19: 0 | M19: 0 | N19: ='INVOICE 6'!N19 -> 333333
A20: Data Collection | B20: ='INVOICE 6'!B20 -> 0 | C20: ='INVOICE 6'!C20 -> 0 | D20: 0 | E20: ='INVOICE 6'!E20+'INVOICE 6'!H20 -> 0 | F20: ='INVOICE 6'!F20+'INVOICE 6'!I20 -> 0 | G20: 0 | H20: 0 | I20: 0 | J20: 0 | K20: 0 | L20: 0 | M20: 0
A21: Project Evaluation | B21: ='INVOICE 6'!B21 -> 0 | C21: ='INVOICE 6'!C21 -> 0 | D21: 0 | E21: ='INVOICE 6'!E21+'INVOICE 6'!H21 -> 0 | F21: ='INVOICE 6'!F21+'INVOICE 6'!I21 -> 0 | G21: 0 | H21: 0 | I21: 0 | J21: 0 | K21: 0 | L21: 0 | M21: 0 | N21: 3rd Advance [enter date]
A22: Other | B22: ='INVOICE 6'!B22 -> 3000 | C22: ='INVOICE 6'!C22 -> 0 | D22: =SUM(B22:C22) -> 3000 | E22: ='INVOICE 6'!E22+'INVOICE 6'!H22 -> 1604 | F22: ='INVOICE 6'!F22+'INVOICE 6'!I22 -> 0 | G22: 1604 | H22: 0 | I22: 0 | J22: 0 | K22: 1396 | L22: 0 | M22: 1396 | N22: 0
A23: Indirect Costs | B23: ='INVOICE 6'!B23 -> 0 | C23: ='INVOICE 6'!C23 -> 0 | D23: 0 | E23: ='INVOICE 6'!E23+'INVOICE 6'!H23 -> 0 | F23: ='INVOICE 6'!F23+'INVOICE 6'!I23 -> 0 | G23: 0 | H23: 0 | I23: 0 | J23: 0 | K23: 0 | L23: 0 | M23: 0
A24: TOTAL | B24: =SUM(B15:B23) -> 1000000 | C24: =SUM(C15:C23) -> 250001 | D24: =SUM(D15:D23) -> 1250001 | E24: =SUM(E15:E23) -> 381126 | F24: 7615 | G24: 388741 | H24: 66466 | I24: =SUM(I15:I23) -> 0 | J24: 66466 | K24: 552408 | L24: 242386 | M24: 794794 | N24: =SUM(N16+N19+N22) -> 666666
A26: Project Income | C26: Income reported to date | D26: ='INVOICE 1'!D26+'INVOICE 7'!I26 -> 0 | F26: Prior allocated income | G26: 0 | H26: This Period | I26: 0 | L26: Unallocated income balance | M26: =D26-G26 -> 0
C28: Grant funds expended to date: | D28: =SUM(E24,H24) -> 447592 | G28: Grant funds claimed this period: | H28: =H24 -> 66466 | M28: % total dispursed fund expended to date: | N28: =D28/N24 -> 0.6713886714
C29: Match funds to date: | D29: =SUM(F24,I24) -> 7615 | G29: Advance disbursments balance: | H29: =N24-D28 -> 219074 | M29: % of Total Obligated Match to date: | N29: =E29/C24 -> 0
D33: Expenditure Descriptions - Units / $ Amounts | L33: Comments
A34: Salaries & Benefits | B34: Grant Funds | C34: =H15 -> 6497 | D34: 1 FTE Project Director @ $81.44/hr x 13 hours + 104.563% Benefits $1,107.03= $2,165.75 (January 2021) 1 FTE Project Director @ $81.44/hr x 13 hours + 104.563% Benefits $1,107.03= $2,165.75 (February 2021) 1 FTE Project Director @ $81.44/hr x 13 hours + 104.563% Benefits $1,107.03= $2,165.75 (March 2021)
B35: Match | C35: =I15 -> 0
A36: Services & Supplies | B36: Grant Funds | C36: =H16 -> 0
B37: Match | C37: =I16 -> 0
A38: Professional Services | B38: Grant Funds | C38: =H17 -> 0
B39: Match | C39: =I17 -> 0
A40: NGO Subcontracts | B40: Grant Funds | C40: =H18 -> 59969 | D40: Total Personnel $40,320.55 - 1) 0.40 FTE Diversion Supervisor 4,854/month x 3months = $5824.80 2) 0.50 FTE Licensed Clinical Supervisor 5,150 x 3months = $7,725 3) Counselor 27.93/hHR x 512 Hrs + (rounding 0.01) = $14,300.17 4) Diversion Specialist 21.19/HR x 512 Hrs + (rounding 0.06) = $10,849.34 and 5) Mediator/Case Coordinator 21.11/HR x 76.80 Hrs = $1,621.24. Total Benefits $11,260.81 - (Approximately 30% of Salaries); Health $4,861.71, Dental $442.07, Vision $31.23, Life $39.74 401K $1,462.47, Workers Compensation $131.85, Long-Term Disability $71.45, FICA $2,890.12, Waymakers Points $742.22, SUI $363.95 and Paid leave Payout $224.00. Total Service and Supply $8,387.53 - Office/Supplies Expense $2,206.75, Travel (Mileages) $335.53, Liability Insurance $294.73, Subcontract:Constitution Rights Foundation Peer Court $392.38 and Indirect Cost $5,158.14.
B41: Match | C41: =I18 -> 0
A42: Equipment / Fixed Assets | B42: Grant Funds | C42: =H19 -> 0
B43: Match | C43: =I19 -> 0
A44: Data Collection | B44: Grant Funds | C44: =H20 -> 0
B45: Match | C45: =I20 -> 0
A46: Project Evaluation | B46: Grant Funds | C46: =H21 -> 0
B47: Match | C47: =I21 -> 0
A48: Other | B48: Grant Funds | C48: =H22 -> 0
B49: Match | C49: =I22 -> 0
A50: Indirect Costs | B50: Grant Funds | C50: =H23 -> 0
B51: Match | C51: =I23 -> 0
A52: Project Income | C52: =I26 -> 0
A53: PERSON PREPARING REPORT | E53: AUTHORIZED FINANCIAL OFFICER | L53: BSCC Supplier Data - Internal Use Only
E54: By checking the box below, I hereby certify that I am the authorized financial officer of the herein named agency. I further certify that I have not violated any of the provisions of Section 1090 of the Government Code in incurring the expenditures reported in this invoice, nor in any other way; that Sections 1090 through 1096 of the Government Code will not be violated in any way in the expenditure of funds pursuant to this invoice; that statement of funds above is true, correct, and in accordance with program provisions in all respects; and that all expenditures submitted after the expiration date of this contract are for the purpose of substantiating obligations legally incurred during the contract period. Furthermore, by submitting this invoice, I acknowledge that it must adhere to all of the requirements in the BSCC Grant Administration Guide, including any updates to the Guide during the term of the grant agreement.
A55: Jan Wang, Management Analyst | L55: ='INVOICE 1'!L55:O55 -> 6990
A56: Name, Title | L56: Supplier ID
A57: 714-754-5074 | L57: ='INVOICE 1'!L57:O57 -> CITYOFCOST-001
A58: Phone | L58: Supplier Name
A59: jwang@costamesaca.gov | L59: ='INVOICE 1'!L59:O59 -> 99 FAIR DR
A60: Email | L60: Address Line 1
A61: 2021-05-24 | L61: ='INVOICE 1'!L61:O61 -> COSTA MESA CA 92626
A62: Date | L62: Address Line 2
E64: Jennifer King, Assistant Finance Director
E65: Name, Title
E66: 714-754-5219
E67: Phone
E68: 2021-05-25
E69: Date
A71: BSCC USE ONLY
A72: Date Received: | C72: 2021-05-25 | G72: Approved By: | I72: Eddie Escobar | N72: 2021-07-09
I73: BSCC Field Representative

Sheet INVOICE 8
A1: STATE OF CALIFORNIA | L1: Purchase Authority | N1: BSCC 5227
A2: BOARD OF STATE AND COMMUNITY CORRECTIONS | L2: Purchase Order: | N2: 2469
A3: Financial Invoice Form: BSCC 201 (Revised 04/2020)
A5: Program: | B5: ='INVOICE 1'!B5 -> Youth Reinvestment Grant | K5: Please Note: The California State Controller's Office will send all checks directly to the address listed in the "BSCC Vendor Data" section at the bottom of this invoice.
A7: Grantee: | B7: ='INVOICE 1'!B7 -> City of Costa Mesa | F7: Lead Public Agency: | G7: N/A
A9: Contract #: | B9: ='INVOICE 1'!B9 -> BSCC 569-19 | D9: Term: | E9: ='INVOICE 1'!E9 -> 2019-07-01 | F9: TO | G9: ='INVOICE 1'!G9 -> 2023-02-28 | L9: Invoicing Frequency | M9: Quarterly
A11: Invoice #: | B11: 8 | D11: Reporting Period: | E11: 2021-04-01 | F11: TO | G11: 2021-06-30 | H11: Due: | I11: 2021-08-16 | L11: Final Invoice (Y/N): | M11: No
A13: Line Items | B13: Budget | E13: Prior Expenditures | H13: This Reporting Period | K13: Balance | N13: Advance Disbursements
B14: Grant Funds | C14: Match | D14: TOTAL | E14: Grant Funds | F14: Match | G14: TOTAL | H14: Grant Funds | I14: Match | J14: TOTAL | K14: Grant Funds | L14: Match | M14: TOTAL
A15: Salaries & Benefits | B15: ='INVOICE 7'!B15 -> 97000 | C15: ='INVOICE 7'!C15 -> 0 | D15: =SUM(B15:C15) -> 97000 | E15: ='INVOICE 7'!E15+'INVOICE 7'!H15 -> 44283 | F15: ='INVOICE 7'!F15+'INVOICE 7'!I15 -> 0 | G15: =SUM(E15:F15) -> 44283 | H15: 6497 | I15: 0 | J15: =SUM(H15:I15) -> 6497 | K15: =B15-E15-H15 -> 46220 | L15: 0 | M15: =SUM(K15:L15) -> 46220 | N15: 1st Advance [10/25/19]
A16: Services & Supplies | B16: ='INVOICE 7'!B16 -> 0 | C16: ='INVOICE 7'!C16 -> 25364 | D16: 25364 | E16: ='INVOICE 7'!E16+'INVOICE 7'!H16 -> 0 | F16: ='INVOICE 7'!F16+'INVOICE 7'!I16 -> 7615 | G16: =SUM(E16:F16) -> 7615 | H16: 0 | I16: 0 | J16: 0 | K16: 0 | L16: 17749 | M16: 17749 | N16: ='1st Advance Payment'!K20 -> 333333
A17: Professional Services | B17: ='INVOICE 7'!B17 -> 0 | C17: ='INVOICE 7'!C17 -> 224637 | D17: 224637 | E17: ='INVOICE 7'!E17+'INVOICE 7'!H17 -> 0 | F17: ='INVOICE 7'!F17+'INVOICE 7'!I17 -> 0 | G17: =SUM(E17:F17) -> 0 | H17: 0 | I17: 0 | J17: 0 | K17: 0 | L17: 224637 | M17: 224637
A18: NGO Subcontracts | B18: ='INVOICE 7'!B18 -> 900000 | C18: ='INVOICE 7'!C18 -> 0 | D18: 900000 | E18: ='INVOICE 7'!E18+'INVOICE 7'!H18 -> 401705 | F18: ='INVOICE 7'!F18+'INVOICE 7'!I18 -> 0 | G18: 401705 | H18: 63720 | I18: 0 | J18: 63720 | K18: 434575 | L18: 0 | M18: 434575 | N18: ='INVOICE 7'!N18 -> 2nd Advance [5/14/21]
A19: Equipment / Fixed Assets | B19: ='INVOICE 7'!B19 -> 0 | C19: ='INVOICE 7'!C19 -> 0 | D19: 0 | E19: ='INVOICE 7'!E19+'INVOICE 7'!H19 -> 0 | F19: ='INVOICE 7'!F19+'INVOICE 7'!I19 -> 0 | G19: 0 | H19: 0 | I19: 0 | J19: 0 | K19: 0 | L19: 0 | M19: 0 | N19: ='INVOICE 7'!N19 -> 333333
A20: Data Collection | B20: ='INVOICE 7'!B20 -> 0 | C20: ='INVOICE 7'!C20 -> 0 | D20: 0 | E20: ='INVOICE 7'!E20+'INVOICE 7'!H20 -> 0 | F20: ='INVOICE 7'!F20+'INVOICE 7'!I20 -> 0 | G20: 0 | H20: 0 | I20: 0 | J20: 0 | K20: 0 | L20: 0 | M20: 0
A21: Project Evaluation | B21: ='INVOICE 7'!B21 -> 0 | C21: ='INVOICE 7'!C21 -> 0 | D21: 0 | E21: ='INVOICE 7'!E21+'INVOICE 7'!H21 -> 0 | F21: ='INVOICE 7'!F21+'INVOICE 7'!I21 -> 0 | G21: 0 | H21: 0 | I21: 0 | J21: 0 | K21: 0 | L21: 0 | M21: 0 | N21: 3rd Advance [enter date]
A22: Other | B22: ='INVOICE 7'!B22 -> 3000 | C22: ='INVOICE 7'!C22 -> 0 | D22: =SUM(B22:C22) -> 3000 | E22: ='INVOICE 7'!E22+'INVOICE 7'!H22 -> 1604 | F22: ='INVOICE 7'!F22+'INVOICE 7'!I22 -> 0 | G22: 1604 | H22: 0 | I22: 0 | J22: 0 | K22: 1396 | L22: 0 | M22: 1396 | N22: 0
A23: Indirect Costs | B23: ='INVOICE 7'!B23 -> 0 | C23: ='INVOICE 7'!C23 -> 0 | D23: 0 | E23: ='INVOICE 7'!E23+'INVOICE 7'!H23 -> 0 | F23: ='INVOICE 7'!F23+'INVOICE 7'!I23 -> 0 | G23: 0 | H23: 0 | I23: 0 | J23: 0 | K23: 0 | L23: 0 | M23: 0
A24: TOTAL | B24: =SUM(B15:B23) -> 1000000 | C24: =SUM(C15:C23) -> 250001 | D24: =SUM(D15:D23) -> 1250001 | E24: =SUM(E15:E23) -> 447592 | F24: 7615 | G24: 455207 | H24: 70217 | I24: =SUM(I15:I23) -> 0 | J24: 70217 | K24: 482191 | L24: 242386 | M24: 724577 | N24: =SUM(N16+N19+N22) -> 666666
A26: Project Income | C26: Income reported to date | D26: ='INVOICE 1'!D26+'INVOICE 8'!I26 -> 0 | F26: Prior allocated income | G26: 0 | H26: This Period | I26: 0 | L26: Unallocated income balance | M26: =D26-G26 -> 0
C28: Grant funds expended to date: | D28: =SUM(E24,H24) -> 517809 | G28: Grant funds claimed this period: | H28: =H24 -> 70217 | M28: % total dispursed fund expended to date: | N28: =D28/N24 -> 0.7767142767
C29: Match funds to date: | D29: =SUM(F24,I24) -> 7615 | G29: Advance disbursments balance: | H29: =N24-D28 -> 148857 | M29: % of Total Obligated Match to date: | N29: =E29/C24 -> 0
D33: Expenditure Descriptions - Units / $ Amounts | L33: Comments
A34: Salaries & Benefits | B34: Grant Funds | C34: =H15 -> 6497 | D34: 1 FTE Project Director @ $81.44/hr x 13 hours + 104.563% Benefits $1,107.03= $2,165.75 (April 2021) 1 FTE Project Director @ $81.44/hr x 13 hours + 104.563% Benefits $1,107.03= $2,165.75 (May 2021) 1 FTE Project Director @ $81.44/hr x 13 hours + 104.563% Benefits $1,107.03= $2,165.75 (June 2021)
B35: Match | C35: =I15 -> 0
A36: Services & Supplies | B36: Grant Funds | C36: =H16 -> 0
B37: Match | C37: =I16 -> 0
A38: Professional Services | B38: Grant Funds | C38: =H17 -> 0
B39: Match | C39: =I17 -> 0
A40: NGO Subcontracts | B40: Grant Funds | C40: =H18 -> 63720 | D40: Total Personnel $40,959.14 - 1) 0.40 FTE Diversion Supervisor 4,854/month x 2.5months = $4,854 & 0.49077 FTE 4,854/month x 0.5months = $1,191.10 2) 0.50 FTE Licensed Clinical Supervisor 5,150 x 3months = $7,725 3) Counselor 27.93/hHR x 520 Hrs + (rounding 0.03) = $14,523.63 4) Diversion Specialist 21.19/HR x 520 Hrs + (rounding 0.03) = $11,018.83 and 5) Mediator/Case Coordinator 21.11/HR x 78 Hrs = $1,646.58. Total Benefits $11,742.43 - (Approximately 30% of Salaries); Health $5,695.17, Dental $532.44, Vision $31.23, Life $39.78, 401K $1,505.3, Workers Compensation $164.97, Long-Term Disability $73.32, FICA $2,953.18 and Waymakers Points $747.04 . Total Service and Supply $11,018.53 - Office/Supplies Expense $314.32, Travel (Mileages) $331.31, Liability Insurance $1,497.13, Employee Training $1,200, Staff Recruitment $35, Employee Training Subcontract:Constitution Rights Foundation Peer Court $2,370.61 and Indirect Cost $5,270.16.
B41: Match | C41: =I18 -> 0
A42: Equipment / Fixed Assets | B42: Grant Funds | C42: =H19 -> 0
B43: Match | C43: =I19 -> 0
A44: Data Collection | B44: Grant Funds | C44: =H20 -> 0
B45: Match | C45: =I20 -> 0
A46: Project Evaluation | B46: Grant Funds | C46: =H21 -> 0
B47: Match | C47: =I21 -> 0
A48: Other | B48: Grant Funds | C48: =H22 -> 0
B49: Match | C49: =I22 -> 0
A50: Indirect Costs | B50: Grant Funds | C50: =H23 -> 0
B51: Match | C51: =I23 -> 0
A52: Project Income | C52: =I26 -> 0
A53: PERSON PREPARING REPORT | E53: AUTHORIZED FINANCIAL OFFICER | L53: BSCC Supplier Data - Internal Use Only
E54: By checking the box below, I hereby certify that I am the authorized financial officer of the herein named agency. I further certify that I have not violated any of the provisions of Section 1090 of the Government Code in incurring the expenditures reported in this invoice, nor in any other way; that Sections 1090 through 1096 of the Government Code will not be violated in any way in the expenditure of funds pursuant to this invoice; that statement of funds above is true, correct, and in accordance with program provisions in all respects; and that all expenditures submitted after the expiration date of this contract are for the purpose of substantiating obligations legally incurred during the contract period. Furthermore, by submitting this invoice, I acknowledge that it must adhere to all of the requirements in the BSCC Grant Administration Guide, including any updates to the Guide during the term of the grant agreement.
A55: Jennifer King, Assistant Finance Director | L55: ='INVOICE 1'!L55:O55 -> 6990
A56: Name, Title | L56: Supplier ID
A57: 714-754-5219 | L57: ='INVOICE 1'!L57:O57 -> CITYOFCOST-001
A58: Phone | L58: Supplier Name
A59: jennifer.king@costamesaca.gov | L59: ='INVOICE 1'!L59:O59 -> 99 FAIR DR
A60: Email | L60: Address Line 1
A61: 2021-08-11 | L61: ='INVOICE 1'!L61:O61 -> COSTA MESA CA 92626
A62: Date | L62: Address Line 2
E64: Jennifer King, Assistant Finance Director
E65: Name, Title
E66: 714-754-5219
E67: Phone
E68: 2021-08-12
E69: Date
A71: BSCC USE ONLY
A72: Date Received: | C72: 2021-08-12 | G72: Approved By: | I72: Eddie Escobar
I73: BSCC Field Representative

Sheet INVOICE 9
A1: STATE OF CALIFORNIA | L1: Purchase Authority | N1: BSCC 5227
A2: BOARD OF STATE AND COMMUNITY CORRECTIONS | L2: Purchase Order: | N2: 2469
A3: Financial Invoice Form: BSCC 201 (Revised 04/2020)
A5: Program: | B5: ='INVOICE 1'!B5 -> Youth Reinvestment Grant | K5: Please Note: The California State Controller's Office will send all checks directly to the address listed in the "BSCC Vendor Data" section at the bottom of this invoice.
A7: Grantee: | B7: ='INVOICE 1'!B7 -> City of Costa Mesa | F7: Lead Public Agency: | G7: N/A
A9: Contract #: | B9: ='INVOICE 1'!B9 -> BSCC 569-19 | D9: Term: | E9: ='INVOICE 1'!E9 -> 2019-07-01 | F9: TO | G9: ='INVOICE 1'!G9 -> 2023-02-28 | L9: Invoicing Frequency | M9: Quarterly
A11: Invoice #: | B11: 9 | D11: Reporting Period: | E11: 2021-07-01 | F11: TO | G11: 2021-09-30 | H11: Due: | I11: 2021-11-15 | L11: Final Invoice (Y/N): | M11: No
A13: Line Items | B13: Budget | E13: Prior Expenditures | H13: This Reporting Period | K13: Balance | N13: Advance Disbursements
B14: Grant Funds | C14: Match | D14: TOTAL | E14: Grant Funds | F14: Match | G14: TOTAL | H14: Grant Funds | I14: Match | J14: TOTAL | K14: Grant Funds | L14: Match | M14: TOTAL
A15: Salaries & Benefits | B15: ='INVOICE 8'!B15 -> 97000 | C15: ='INVOICE 8'!C15 -> 0 | D15: =SUM(B15:C15) -> 97000 | E15: ='INVOICE 8'!E15+'INVOICE 8'!H15 -> 50780 | F15: ='INVOICE 8'!F15+'INVOICE 8'!I15 -> 0 | G15: =SUM(E15:F15) -> 50780 | H15: 0 | I15: 0 | J15: =SUM(H15:I15) -> 0 | K15: =B15-E15-H15 -> 46220 | L15: 0 | M15: =SUM(K15:L15) -> 46220 | N15: 1st Advance [10/25/19]
A16: Services & Supplies | B16: ='INVOICE 8'!B16 -> 0 | C16: ='INVOICE 8'!C16 -> 25364 | D16: 25364 | E16: ='INVOICE 8'!E16+'INVOICE 8'!H16 -> 0 | F16: ='INVOICE 8'!F16+'INVOICE 8'!I16 -> 7615 | G16: =SUM(E16:F16) -> 7615 | H16: 0 | I16: 0 | J16: 0 | K16: 0 | L16: 17749 | M16: 17749 | N16: ='1st Advance Payment'!K20 -> 333333
A17: Professional Services | B17: ='INVOICE 8'!B17 -> 0 | C17: ='INVOICE 8'!C17 -> 224637 | D17: 224637 | E17: ='INVOICE 8'!E17+'INVOICE 8'!H17 -> 0 | F17: ='INVOICE 8'!F17+'INVOICE 8'!I17 -> 0 | G17: =SUM(E17:F17) -> 0 | H17: 0 | I17: 0 | J17: 0 | K17: 0 | L17: 224637 | M17: 224637
A18: NGO Subcontracts | B18: ='INVOICE 8'!B18 -> 900000 | C18: ='INVOICE 8'!C18 -> 0 | D18: 900000 | E18: ='INVOICE 8'!E18+'INVOICE 8'!H18 -> 465425 | F18: ='INVOICE 8'!F18+'INVOICE 8'!I18 -> 0 | G18: 465425 | H18: 0 | I18: 0 | J18: 0 | K18: 434575 | L18: 0 | M18: 434575 | N18: ='INVOICE 8'!N18 -> 2nd Advance [5/14/21]
A19: Equipment / Fixed Assets | B19: ='INVOICE 8'!B19 -> 0 | C19: ='INVOICE 8'!C19 -> 0 | D19: 0 | E19: ='INVOICE 8'!E19+'INVOICE 8'!H19 -> 0 | F19: ='INVOICE 8'!F19+'INVOICE 8'!I19 -> 0 | G19: 0 | H19: 0 | I19: 0 | J19: 0 | K19: 0 | L19: 0 | M19: 0 | N19: ='INVOICE 8'!N19 -> 333333
A20: Data Collection | B20: ='INVOICE 8'!B20 -> 0 | C20: ='INVOICE 8'!C20 -> 0 | D20: 0 | E20: ='INVOICE 8'!E20+'INVOICE 8'!H20 -> 0 | F20: ='INVOICE 8'!F20+'INVOICE 8'!I20 -> 0 | G20: 0 | H20: 0 | I20: 0 | J20: 0 | K20: 0 | L20: 0 | M20: 0
A21: Project Evaluation | B21: ='INVOICE 8'!B21 -> 0 | C21: ='INVOICE 8'!C21 -> 0 | D21: 0 | E21: ='INVOICE 8'!E21+'INVOICE 8'!H21 -> 0 | F21: ='INVOICE 8'!F21+'INVOICE 8'!I21 -> 0 | G21: 0 | H21: 0 | I21: 0 | J21: 0 | K21: 0 | L21: 0 | M21: 0 | N21: 3rd Advance [enter date]
A22: Other | B22: ='INVOICE 8'!B22 -> 3000 | C22: ='INVOICE 8'!C22 -> 0 | D22: =SUM(B22:C22) -> 3000 | E22: ='INVOICE 8'!E22+'INVOICE 8'!H22 -> 1604 | F22: ='INVOICE 8'!F22+'INVOICE 8'!I22 -> 0 | G22: 1604 | H22: 0 | I22: 0 | J22: 0 | K22: 1396 | L22: 0 | M22: 1396 | N22: 0
A23: Indirect Costs | B23: ='INVOICE 8'!B23 -> 0 | C23: ='INVOICE 8'!C23 -> 0 | D23: 0 | E23: ='INVOICE 8'!E23+'INVOICE 8'!H23 -> 0 | F23: ='INVOICE 8'!F23+'INVOICE 8'!I23 -> 0 | G23: 0 | H23: 0 | I23: 0 | J23: 0 | K23: 0 | L23: 0 | M23: 0
A24: TOTAL | B24: =SUM(B15:B23) -> 1000000 | C24: =SUM(C15:C23) -> 250001 | D24: =SUM(D15:D23) -> 1250001 | E24: =SUM(E15:E23) -> 517809 | F24: 7615 | G24: 525424 | H24: 0 | I24: =SUM(I15:I23) -> 0 | J24: 0 | K24: 482191 | L24: 242386 | M24: 724577 | N24: =SUM(N16+N19+N22) -> 666666
A26: Project Income | C26: Income reported to date | D26: ='INVOICE 1'!D26+'INVOICE 9'!I26 -> 0 | F26: Prior allocated income | G26: 0 | H26: This Period | I26: 0 | L26: Unallocated income balance | M26: =D26-G26 -> 0
C28: Grant funds expended to date: | D28: =SUM(E24,H24) -> 517809 | G28: Grant funds claimed this period: | H28: =H24 -> 0 | M28: % total dispursed fund expended to date: | N28: =D28/N24 -> 0.7767142767
C29: Match funds to date: | D29: =SUM(F24,I24) -> 7615 | G29: Advance disbursments balance: | H29: =N24-D28 -> 148857 | M29: % of Total Obligated Match to date: | N29: =E29/C24 -> 0
D33: Expenditure Descriptions - Units / $ Amounts | L33: Comments
A34: Salaries & Benefits | B34: Grant Funds | C34: =H15 -> 0
B35: Match | C35: =I15 -> 0
A36: Services & Supplies | B36: Grant Funds | C36: =H16 -> 0
B37: Match | C37: =I16 -> 0
A38: Professional Services | B38: Grant Funds | C38: =H17 -> 0
B39: Match | C39: =I17 -> 0
A40: NGO Subcontracts | B40: Grant Funds | C40: =H18 -> 0
B41: Match | C41: =I18 -> 0
A42: Equipment / Fixed Assets | B42: Grant Funds | C42: =H19 -> 0
B43: Match | C43: =I19 -> 0
A44: Data Collection | B44: Grant Funds | C44: =H20 -> 0
B45: Match | C45: =I20 -> 0
A46: Project Evaluation | B46: Grant Funds | C46: =H21 -> 0
B47: Match | C47: =I21 -> 0
A48: Other | B48: Grant Funds | C48: =H22 -> 0
B49: Match | C49: =I22 -> 0
A50: Indirect Costs | B50: Grant Funds | C50: =H23 -> 0
B51: Match | C51: =I23 -> 0
A52: Project Income | C52: =I26 -> 0
A53: PERSON PREPARING REPORT | E53: AUTHORIZED FINANCIAL OFFICER | L53: BSCC Supplier Data - Internal Use Only
E54: By checking the box below, I hereby certify that I am the authorized financial officer of the herein named agency. I further certify that I have not violated any of the provisions of Section 1090 of the Government Code in incurring the expenditures reported in this invoice, nor in any other way; that Sections 1090 through 1096 of the Government Code will not be violated in any way in the expenditure of funds pursuant to this invoice; that statement of funds above is true, correct, and in accordance with program provisions in all respects; and that all expenditures submitted after the expiration date of this contract are for the purpose of substantiating obligations legally incurred during the contract period. Furthermore, by submitting this invoice, I acknowledge that it must adhere to all of the requirements in the BSCC Grant Administration Guide, including any updates to the Guide during the term of the grant agreement.
L55: ='INVOICE 1'!L55:O55 -> 6990
A56: Name, Title | L56: Supplier ID
L57: ='INVOICE 1'!L57:O57 -> CITYOFCOST-001
A58: Phone | L58: Supplier Name
L59: ='INVOICE 1'!L59:O59 -> 99 FAIR DR
A60: Email | L60: Address Line 1
L61: ='INVOICE 1'!L61:O61 -> COSTA MESA CA 92626
A62: Date | L62: Address Line 2
E65: Name, Title
E67: Phone
E69: Date
A71: BSCC USE ONLY
A72: Date Received: | G72: Approved By:
I73: BSCC Field Representative

Sheet INVOICE 10
A1: STATE OF CALIFORNIA | L1: Purchase Authority | N1: BSCC 5227
A2: BOARD OF STATE AND COMMUNITY CORRECTIONS | L2: Purchase Order: | N2: 2469
A3: Financial Invoice Form: BSCC 201 (Revised 04/2020)
A5: Program: | B5: ='INVOICE 1'!B5 -> Youth Reinvestment Grant | K5: Please Note: The California State Controller's Office will send all checks directly to the address listed in the "BSCC Vendor Data" section at the bottom of this invoice.
A7: Grantee: | B7: ='INVOICE 1'!B7 -> City of Costa Mesa | F7: Lead Public Agency: | G7: N/A
A9: Contract #: | B9: ='INVOICE 1'!B9 -> BSCC 569-19 | D9: Term: | E9: ='INVOICE 1'!E9 -> 2019-07-01 | F9: TO | G9: ='INVOICE 1'!G9 -> 2023-02-28 | L9: Invoicing Frequency | M9: Quarterly
A11: Invoice #: | B11: 10 | D11: Reporting Period: | E11: 2021-10-01 | F11: TO | G11: 2021-12-31 | H11: Due: | I11: 2022-02-14 | L11: Final Invoice (Y/N): | M11: No
A13: Line Items | B13: Budget | E13: Prior Expenditures | H13: This Reporting Period | K13: Balance | N13: Advance Disbursements
B14: Grant Funds | C14: Match | D14: TOTAL | E14: Grant Funds | F14: Match | G14: TOTAL | H14: Grant Funds | I14: Match | J14: TOTAL | K14: Grant Funds | L14: Match | M14: TOTAL
A15: Salaries & Benefits | B15: ='INVOICE 9'!B15 -> 97000 | C15: ='INVOICE 9'!C15 -> 0 | D15: =SUM(B15:C15) -> 97000 | E15: ='INVOICE 9'!E15+'INVOICE 9'!H15 -> 50780 | F15: ='INVOICE 9'!F15+'INVOICE 9'!I15 -> 0 | G15: =SUM(E15:F15) -> 50780 | H15: 0 | I15: 0 | J15: =SUM(H15:I15) -> 0 | K15: =B15-E15-H15 -> 46220 | L15: 0 | M15: =SUM(K15:L15) -> 46220 | N15: 1st Advance [10/25/19]
A16: Services & Supplies | B16: ='INVOICE 9'!B16 -> 0 | C16: ='INVOICE 9'!C16 -> 25364 | D16: 25364 | E16: ='INVOICE 9'!E16+'INVOICE 9'!H16 -> 0 | F16: ='INVOICE 9'!F16+'INVOICE 9'!I16 -> 7615 | G16: =SUM(E16:F16) -> 7615 | H16: 0 | I16: 0 | J16: 0 | K16: 0 | L16: 17749 | M16: 17749 | N16: ='1st Advance Payment'!K20 -> 333333
A17: Professional Services | B17: ='INVOICE 9'!B17 -> 0 | C17: ='INVOICE 9'!C17 -> 224637 | D17: 224637 | E17: ='INVOICE 9'!E17+'INVOICE 9'!H17 -> 0 | F17: ='INVOICE 9'!F17+'INVOICE 9'!I17 -> 0 | G17: =SUM(E17:F17) -> 0 | H17: 0 | I17: 0 | J17: 0 | K17: 0 | L17: 224637 | M17: 224637
A18: NGO Subcontracts | B18: ='INVOICE 9'!B18 -> 900000 | C18: ='INVOICE 9'!C18 -> 0 | D18: 900000 | E18: ='INVOICE 9'!E18+'INVOICE 9'!H18 -> 465425 | F18: ='INVOICE 9'!F18+'INVOICE 9'!I18 -> 0 | G18: 465425 | H18: 0 | I18: 0 | J18: 0 | K18: 434575 | L18: 0 | M18: 434575 | N18: ='INVOICE 9'!N18 -> 2nd Advance [5/14/21]
A19: Equipment / Fixed Assets | B19: ='INVOICE 9'!B19 -> 0 | C19: ='INVOICE 9'!C19 -> 0 | D19: 0 | E19: ='INVOICE 9'!E19+'INVOICE 9'!H19 -> 0 | F19: ='INVOICE 9'!F19+'INVOICE 9'!I19 -> 0 | G19: 0 | H19: 0 | I19: 0 | J19: 0 | K19: 0 | L19: 0 | M19: 0 | N19: ='INVOICE 9'!N19 -> 333333
A20: Data Collection | B20: ='INVOICE 9'!B20 -> 0 | C20: ='INVOICE 9'!C20 -> 0 | D20: 0 | E20: ='INVOICE 9'!E20+'INVOICE 9'!H20 -> 0 | F20: ='INVOICE 9'!F20+'INVOICE 9'!I20 -> 0 | G20: 0 | H20: 0 | I20: 0 | J20: 0 | K20: 0 | L20: 0 | M20: 0
A21: Project Evaluation | B21: ='INVOICE 9'!B21 -> 0 | C21: ='INVOICE 9'!C21 -> 0 | D21: 0 | E21: ='INVOICE 9'!E21+'INVOICE 9'!H21 -> 0 | F21: ='INVOICE 9'!F21+'INVOICE 9'!I21 -> 0 | G21: 0 | H21: 0 | I21: 0 | J21: 0 | K21: 0 | L21: 0 | M21: 0 | N21: 3rd Advance [enter date]
A22: Other | B22: ='INVOICE 9'!B22 -> 3000 | C22: ='INVOICE 9'!C22 -> 0 | D22: =SUM(B22:C22) -> 3000 | E22: ='INVOICE 9'!E22+'INVOICE 9'!H22 -> 1604 | F22: ='INVOICE 9'!F22+'INVOICE 9'!I22 -> 0 | G22: 1604 | H22: 0 | I22: 0 | J22: 0 | K22: 1396 | L22: 0 | M22: 1396 | N22: 0
A23: Indirect Costs | B23: ='INVOICE 9'!B23 -> 0 | C23: ='INVOICE 9'!C23 -> 0 | D23: 0 | E23: ='INVOICE 9'!E23+'INVOICE 9'!H23 -> 0 | F23: ='INVOICE 9'!F23+'INVOICE 9'!I23 -> 0 | G23: 0 | H23: 0 | I23: 0 | J23: 0 | K23: 0 | L23: 0 | M23: 0
A24: TOTAL | B24: =SUM(B15:B23) -> 1000000 | C24: =SUM(C15:C23) -> 250001 | D24: =SUM(D15:D23) -> 1250001 | E24: =SUM(E15:E23) -> 517809 | F24: 7615 | G24: 525424 | H24: 0 | I24: =SUM(I15:I23) -> 0 | J24: 0 | K24: 482191 | L24: 242386 | M24: 724577 | N24: =SUM(N16+N19+N22) -> 666666
A26: Project Income | C26: Income reported to date | D26: ='INVOICE 1'!D26+'INVOICE 10'!I26 -> 0 | F26: Prior allocated income | G26: 0 | H26: This Period | I26: 0 | L26: Unallocated income balance | M26: =D26-G26 -> 0
C28: Grant funds expended to date: | D28: =SUM(E24,H24) -> 517809 | G28: Grant funds claimed this period: | H28: =H24 -> 0 | M28: % total dispursed fund expended to date: | N28: =D28/N24 -> 0.7767142767
C29: Match funds to date: | D29: =SUM(F24,I24) -> 7615 | G29: Advance disbursments balance: | H29: =N24-D28 -> 148857 | M29: % of Total Obligated Match to date: | N29: =E29/C24 -> 0
D33: Expenditure Descriptions - Units / $ Amounts | L33: Comments
A34: Salaries & Benefits | B34: Grant Funds | C34: =H15 -> 0
B35: Match | C35: =I15 -> 0
A36: Services & Supplies | B36: Grant Funds | C36: =H16 -> 0
B37: Match | C37: =I16 -> 0
A38: Professional Services | B38: Grant Funds | C38: =H17 -> 0
B39: Match | C39: =I17 -> 0
A40: NGO Subcontracts | B40: Grant Funds | C40: =H18 -> 0
B41: Match | C41: =I18 -> 0
A42: Equipment / Fixed Assets | B42: Grant Funds | C42: =H19 -> 0
B43: Match | C43: =I19 -> 0
A44: Data Collection | B44: Grant Funds | C44: =H20 -> 0
B45: Match | C45: =I20 -> 0
A46: Project Evaluation | B46: Grant Funds | C46: =H21 -> 0
B47: Match | C47: =I21 -> 0
A48: Other | B48: Grant Funds | C48: =H22 -> 0
B49: Match | C49: =I22 -> 0
A50: Indirect Costs | B50: Grant Funds | C50: =H23 -> 0
B51: Match | C51: =I23 -> 0
A52: Project Income | C52: =I26 -> 0
A53: PERSON PREPARING REPORT | E53: AUTHORIZED FINANCIAL OFFICER | L53: BSCC Supplier Data - Internal Use Only
E54: By checking the box below, I hereby certify that I am the authorized financial officer of the herein named agency. I further certify that I have not violated any of the provisions of Section 1090 of the Government Code in incurring the expenditures reported in this invoice, nor in any other way; that Sections 1090 through 1096 of the Government Code will not be violated in any way in the expenditure of funds pursuant to this invoice; that statement of funds above is true, correct, and in accordance with program provisions in all respects; and that all expenditures submitted after the expiration date of this contract are for the purpose of substantiating obligations legally incurred during the contract period. Furthermore, by submitting this invoice, I acknowledge that it must adhere to all of the requirements in the BSCC Grant Administration Guide, including any updates to the Guide during the term of the grant agreement.
L55: ='INVOICE 1'!L55:O55 -> 6990
A56: Name, Title | L56: Supplier ID
L57: ='INVOICE 1'!L57:O57 -> CITYOFCOST-001
A58: Phone | L58: Supplier Name
L59: ='INVOICE 1'!L59:O59 -> 99 FAIR DR
A60: Email | L60: Address Line 1
L61: ='INVOICE 1'!L61:O61 -> COSTA MESA CA 92626
A62: Date | L62: Address Line 2
E65: Name, Title
E67: Phone
E69: Date
A71: BSCC USE ONLY
A72: Date Received: | G72: Approved By:
I73: BSCC Field Representative

Sheet INVOICE 11
A1: STATE OF CALIFORNIA | L1: Purchase Authority | N1: BSCC 5227
A2: BOARD OF STATE AND COMMUNITY CORRECTIONS | L2: Purchase Order: | N2: 2469
A3: Financial Invoice Form: BSCC 201 (Revised 04/2020)
A5: Program: | B5: ='INVOICE 1'!B5 -> Youth Reinvestment Grant | K5: Please Note: The California State Controller's Office will send all checks directly to the address listed in the "BSCC Vendor Data" section at the bottom of this invoice.
A7: Grantee: | B7: ='INVOICE 1'!B7 -> City of Costa Mesa | F7: Lead Public Agency: | G7: N/A
A9: Contract #: | B9: ='INVOICE 1'!B9 -> BSCC 569-19 | D9: Term: | E9: ='INVOICE 1'!E9 -> 2019-07-01 | F9: TO | G9: ='INVOICE 1'!G9 -> 2023-02-28 | L9: Invoicing Frequency | M9: Quarterly
A11: Invoice #: | B11: 11 | D11: Reporting Period: | E11: 2022-01-01 | F11: TO | G11: 2022-03-31 | H11: Due: | I11: 2022-05-16 | L11: Final Invoice (Y/N): | M11: No
A13: Line Items | B13: Budget | E13: Prior Expenditures | H13: This Reporting Period | K13: Balance | N13: Advance Disbursements
B14: Grant Funds | C14: Match | D14: TOTAL | E14: Grant Funds | F14: Match | G14: TOTAL | H14: Grant Funds | I14: Match | J14: TOTAL | K14: Grant Funds | L14: Match | M14: TOTAL
A15: Salaries & Benefits | B15: ='INVOICE 10'!B15 -> 97000 | C15: ='INVOICE 10'!C15 -> 0 | D15: =SUM(B15:C15) -> 97000 | E15: ='INVOICE 10'!E15+'INVOICE 10'!H15 -> 50780 | F15: ='INVOICE 10'!F15+'INVOICE 10'!I15 -> 0 | G15: =SUM(E15:F15) -> 50780 | H15: 0 | I15: 0 | J15: =SUM(H15:I15) -> 0 | K15: =B15-E15-H15 -> 46220 | L15: 0 | M15: =SUM(K15:L15) -> 46220 | N15: 1st Advance [10/25/19]
A16: Services & Supplies | B16: ='INVOICE 10'!B16 -> 0 | C16: ='INVOICE 10'!C16 -> 25364 | D16: 25364 | E16: ='INVOICE 10'!E16+'INVOICE 10'!H16 -> 0 | F16: ='INVOICE 10'!F16+'INVOICE 10'!I16 -> 7615 | G16: =SUM(E16:F16) -> 7615 | H16: 0 | I16: 0 | J16: 0 | K16: 0 | L16: 17749 | M16: 17749 | N16: ='1st Advance Payment'!K20 -> 333333
A17: Professional Services | B17: ='INVOICE 10'!B17 -> 0 | C17: ='INVOICE 10'!C17 -> 224637 | D17: 224637 | E17: ='INVOICE 10'!E17+'INVOICE 10'!H17 -> 0 | F17: ='INVOICE 10'!F17+'INVOICE 10'!I17 -> 0 | G17: =SUM(E17:F17) -> 0 | H17: 0 | I17: 0 | J17: 0 | K17: 0 | L17: 224637 | M17: 224637
A18: NGO Subcontracts | B18: ='INVOICE 10'!B18 -> 900000 | C18: ='INVOICE 10'!C18 -> 0 | D18: 900000 | E18: ='INVOICE 10'!E18+'INVOICE 10'!H18 -> 465425 | F18: ='INVOICE 10'!F18+'INVOICE 10'!I18 -> 0 | G18: 465425 | H18: 0 | I18: 0 | J18: 0 | K18: 434575 | L18: 0 | M18: 434575 | N18: ='INVOICE 10'!N18 -> 2nd Advance [5/14/21]
A19: Equipment / Fixed Assets | B19: ='INVOICE 10'!B19 -> 0 | C19: ='INVOICE 10'!C19 -> 0 | D19: 0 | E19: ='INVOICE 10'!E19+'INVOICE 10'!H19 -> 0 | F19: ='INVOICE 10'!F19+'INVOICE 10'!I19 -> 0 | G19: 0 | H19: 0 | I19: 0 | J19: 0 | K19: 0 | L19: 0 | M19: 0 | N19: ='INVOICE 10'!N19 -> 333333
A20: Data Collection | B20: ='INVOICE 10'!B20 -> 0 | C20: ='INVOICE 10'!C20 -> 0 | D20: 0 | E20: ='INVOICE 10'!E20+'INVOICE 10'!H20 -> 0 | F20: ='INVOICE 10'!F20+'INVOICE 10'!I20 -> 0 | G20: 0 | H20: 0 | I20: 0 | J20: 0 | K20: 0 | L20: 0 | M20: 0
A21: Project Evaluation | B21: ='INVOICE 10'!B21 -> 0 | C21: ='INVOICE 10'!C21 -> 0 | D21: 0 | E21: ='INVOICE 10'!E21+'INVOICE 10'!H21 -> 0 | F21: ='INVOICE 10'!F21+'INVOICE 10'!I21 -> 0 | G21: 0 | H21: 0 | I21: 0 | J21: 0 | K21: 0 | L21: 0 | M21: 0 | N21: 3rd Advance [enter date]
A22: Other | B22: ='INVOICE 10'!B22 -> 3000 | C22: ='INVOICE 10'!C22 -> 0 | D22: =SUM(B22:C22) -> 3000 | E22: ='INVOICE 10'!E22+'INVOICE 10'!H22 -> 1604 | F22: ='INVOICE 10'!F22+'INVOICE 10'!I22 -> 0 | G22: 1604 | H22: 0 | I22: 0 | J22: 0 | K22: 1396 | L22: 0 | M22: 1396 | N22: 0
A23: Indirect Costs | B23: ='INVOICE 10'!B23 -> 0 | C23: ='INVOICE 10'!C23 -> 0 | D23: 0 | E23: ='INVOICE 10'!E23+'INVOICE 10'!H23 -> 0 | F23: ='INVOICE 10'!F23+'INVOICE 10'!I23 -> 0 | G23: 0 | H23: 0 | I23: 0 | J23: 0 | K23: 0 | L23: 0 | M23: 0
A24: TOTAL | B24: =SUM(B15:B23) -> 1000000 | C24: =SUM(C15:C23) -> 250001 | D24: =SUM(D15:D23) -> 1250001 | E24: =SUM(E15:E23) -> 517809 | F24: 7615 | G24: 525424 | H24: 0 | I24: =SUM(I15:I23) -> 0 | J24: 0 | K24: 482191 | L24: 242386 | M24: 724577 | N24: =SUM(N16+N19+N22) -> 666666
A26: Project Income | C26: Income reported to date | D26: ='INVOICE 1'!D26+'INVOICE 11'!I26 -> 0 | F26: Prior allocated income | G26: 0 | H26: This Period | I26: 0 | L26: Unallocated income balance | M26: =D26-G26 -> 0
C28: Grant funds expended to date: | D28: =SUM(E24,H24) -> 517809 | G28: Grant funds claimed this period: | H28: =H24 -> 0 | M28: % total dispursed fund expended to date: | N28: =D28/N24 -> 0.7767142767
C29: Match funds to date: | D29: =SUM(F24,I24) -> 7615 | G29: Advance disbursments balance: | H29: =N24-D28 -> 148857 | M29: % of Total Obligated Match to date: | N29: =E29/C24 -> 0
D33: Expenditure Descriptions - Units / $ Amounts | L33: Comments
A34: Salaries & Benefits | B34: Grant Funds | C34: =H15 -> 0
B35: Match | C35: =I15 -> 0
A36: Services & Supplies | B36: Grant Funds | C36: =H16 -> 0
B37: Match | C37: =I16 -> 0
A38: Professional Services | B38: Grant Funds | C38: =H17 -> 0
B39: Match | C39: =I17 -> 0
A40: NGO Subcontracts | B40: Grant Funds | C40: =H18 -> 0
B41: Match | C41: =I18 -> 0
A42: Equipment / Fixed Assets | B42: Grant Funds | C42: =H19 -> 0
B43: Match | C43: =I19 -> 0
A44: Data Collection | B44: Grant Funds | C44: =H20 -> 0
B45: Match | C45: =I20 -> 0
A46: Project Evaluation | B46: Grant Funds | C46: =H21 -> 0
B47: Match | C47: =I21 -> 0
A48: Other | B48: Grant Funds | C48: =H22 -> 0
B49: Match | C49: =I22 -> 0
A50: Indirect Costs | B50: Grant Funds | C50: =H23 -> 0
B51: Match | C51: =I23 -> 0
A52: Project Income | C52: =I26 -> 0
A53: PERSON PREPARING REPORT | E53: AUTHORIZED FINANCIAL OFFICER | L53: BSCC Supplier Data - Internal Use Only
E54: By checking the box below, I hereby certify that I am the authorized financial officer of the herein named agency. I further certify that I have not violated any of the provisions of Section 1090 of the Government Code in incurring the expenditures reported in this invoice, nor in any other way; that Sections 1090 through 1096 of the Government Code will not be violated in any way in the expenditure of funds pursuant to this invoice; that statement of funds above is true, correct, and in accordance with program provisions in all respects; and that all expenditures submitted after the expiration date of this contract are for the purpose of substantiating obligations legally incurred during the contract period. Furthermore, by submitting this invoice, I acknowledge that it must adhere to all of the requirements in the BSCC Grant Administration Guide, including any updates to the Guide during the term of the grant agreement.
L55: ='INVOICE 1'!L55:O55 -> 6990
A56: Name, Title | L56: Supplier ID
L57: ='INVOICE 1'!L57:O57 -> CITYOFCOST-001
A58: Phone | L58: Supplier Name
L59: ='INVOICE 1'!L59:O59 -> 99 FAIR DR
A60: Email | L60: Address Line 1
L61: ='INVOICE 1'!L61:O61 -> COSTA MESA CA 92626
A62: Date | L62: Address Line 2
E65: Name, Title
E67: Phone
E69: Date
A71: BSCC USE ONLY
A72: Date Received: | G72: Approved By:
I73: BSCC Field Representative

Sheet INVOICE 12
A1: STATE OF CALIFORNIA | L1: Purchase Authority | N1: BSCC 5227
A2: BOARD OF STATE AND COMMUNITY CORRECTIONS | L2: Purchase Order: | N2: 2469
A3: Financial Invoice Form: BSCC 201 (Revised 04/2020)
A5: Program: | B5: ='INVOICE 1'!B5 -> Youth Reinvestment Grant | K5: Please Note: The California State Controller's Office will send all checks directly to the address listed in the "BSCC Vendor Data" section at the bottom of this invoice.
A7: Grantee: | B7: ='INVOICE 1'!B7 -> City of Costa Mesa | F7: Lead Public Agency: | G7: N/A
A9: Contract #: | B9: ='INVOICE 1'!B9 -> BSCC 569-19 | D9: Term: | E9: ='INVOICE 1'!E9 -> 2019-07-01 | F9: TO | G9: ='INVOICE 1'!G9 -> 2023-02-28 | L9: Invoicing Frequency | M9: Quarterly
A11: Invoice #: | B11: 12 | D11: Reporting Period: | E11: 2022-04-01 | F11: TO | G11: 2022-06-30 | H11: Due: | I11: 2022-08-15 | L11: Final Invoice (Y/N): | M11: No
A13: Line Items | B13: Budget | E13: Prior Expenditures | H13: This Reporting Period | K13: Balance | N13: Advance Disbursements
B14: Grant Funds | C14: Match | D14: TOTAL | E14: Grant Funds | F14: Match | G14: TOTAL | H14: Grant Funds | I14: Match | J14: TOTAL | K14: Grant Funds | L14: Match | M14: TOTAL
A15: Salaries & Benefits | B15: ='INVOICE 11'!B15 -> 97000 | C15: ='INVOICE 11'!C15 -> 0 | D15: =SUM(B15:C15) -> 97000 | E15: ='INVOICE 11'!E15+'INVOICE 11'!H15 -> 50780 | F15: ='INVOICE 11'!F15+'INVOICE 11'!I15 -> 0 | G15: =SUM(E15:F15) -> 50780 | H15: 0 | I15: 0 | J15: =SUM(H15:I15) -> 0 | K15: =B15-E15-H15 -> 46220 | L15: 0 | M15: =SUM(K15:L15) -> 46220 | N15: 1st Advance [10/25/19]
A16: Services & Supplies | B16: ='INVOICE 11'!B16 -> 0 | C16: ='INVOICE 11'!C16 -> 25364 | D16: 25364 | E16: ='INVOICE 11'!E16+'INVOICE 11'!H16 -> 0 | F16: ='INVOICE 11'!F16+'INVOICE 11'!I16 -> 7615 | G16: =SUM(E16:F16) -> 7615 | H16: 0 | I16: 0 | J16: 0 | K16: 0 | L16: 17749 | M16: 17749 | N16: ='1st Advance Payment'!K20 -> 333333
A17: Professional Services | B17: ='INVOICE 11'!B17 -> 0 | C17: ='INVOICE 11'!C17 -> 224637 | D17: 224637 | E17: ='INVOICE 11'!E17+'INVOICE 11'!H17 -> 0 | F17: ='INVOICE 11'!F17+'INVOICE 11'!I17 -> 0 | G17: =SUM(E17:F17) -> 0 | H17: 0 | I17: 0 | J17: 0 | K17: 0 | L17: 224637 | M17: 224637
A18: NGO Subcontracts | B18: ='INVOICE 11'!B18 -> 900000 | C18: ='INVOICE 11'!C18 -> 0 | D18: 900000 | E18: ='INVOICE 11'!E18+'INVOICE 11'!H18 -> 465425 | F18: ='INVOICE 11'!F18+'INVOICE 11'!I18 -> 0 | G18: 465425 | H18: 0 | I18: 0 | J18: 0 | K18: 434575 | L18: 0 | M18: 434575 | N18: ='INVOICE 11'!N18 -> 2nd Advance [5/14/21]
A19: Equipment / Fixed Assets | B19: ='INVOICE 11'!B19 -> 0 | C19: ='INVOICE 11'!C19 -> 0 | D19: 0 | E19: ='INVOICE 11'!E19+'INVOICE 11'!H19 -> 0 | F19: ='INVOICE 11'!F19+'INVOICE 11'!I19 -> 0 | G19: 0 | H19: 0 | I19: 0 | J19: 0 | K19: 0 | L19: 0 | M19: 0 | N19: ='INVOICE 11'!N19 -> 333333
A20: Data Collection | B20: ='INVOICE 11'!B20 -> 0 | C20: ='INVOICE 11'!C20 -> 0 | D20: 0 | E20: ='INVOICE 11'!E20+'INVOICE 11'!H20 -> 0 | F20: ='INVOICE 11'!F20+'INVOICE 11'!I20 -> 0 | G20: 0 | H20: 0 | I20: 0 | J20: 0 | K20: 0 | L20: 0 | M20: 0
A21: Project Evaluation | B21: ='INVOICE 11'!B21 -> 0 | C21: ='INVOICE 11'!C21 -> 0 | D21: 0 | E21: ='INVOICE 11'!E21+'INVOICE 11'!H21 -> 0 | F21: ='INVOICE 11'!F21+'INVOICE 11'!I21 -> 0 | G21: 0 | H21: 0 | I21: 0 | J21: 0 | K21: 0 | L21: 0 | M21: 0 | N21: 3rd Advance [enter date]
A22: Other | B22: ='INVOICE 11'!B22 -> 3000 | C22: ='INVOICE 11'!C22 -> 0 | D22: =SUM(B22:C22) -> 3000 | E22: ='INVOICE 11'!E22+'INVOICE 11'!H22 -> 1604 | F22: ='INVOICE 11'!F22+'INVOICE 11'!I22 -> 0 | G22: 1604 | H22: 0 | I22: 0 | J22: 0 | K22: 1396 | L22: 0 | M22: 1396 | N22: 0
A23: Indirect Costs | B23: ='INVOICE 11'!B23 -> 0 | C23: ='INVOICE 11'!C23 -> 0 | D23: 0 | E23: ='INVOICE 11'!E23+'INVOICE 11'!H23 -> 0 | F23: ='INVOICE 11'!F23+'INVOICE 11'!I23 -> 0 | G23: 0 | H23: 0 | I23: 0 | J23: 0 | K23: 0 | L23: 0 | M23: 0
A24: TOTAL | B24: =SUM(B15:B23) -> 1000000 | C24: =SUM(C15:C23) -> 250001 | D24: =SUM(D15:D23) -> 1250001 | E24: =SUM(E15:E23) -> 517809 | F24: 7615 | G24: 525424 | H24: 0 | I24: =SUM(I15:I23) -> 0 | J24: 0 | K24: 482191 | L24: 242386 | M24: 724577 | N24: =SUM(N16+N19+N22) -> 666666
A26: Project Income | C26: Income reported to date | D26: ='INVOICE 1'!D26+'INVOICE 12'!I26 -> 0 | F26: Prior allocated income | G26: 0 | H26: This Period | I26: 0 | L26: Unallocated income balance | M26: =D26-G26 -> 0
C28: Grant funds expended to date: | D28: =SUM(E24,H24) -> 517809 | G28: Grant funds claimed this period: | H28: =H24 -> 0 | M28: % total dispursed fund expended to date: | N28: =D28/N24 -> 0.7767142767
C29: Match funds to date: | D29: =SUM(F24,I24) -> 7615 | G29: Advance disbursments balance: | H29: =N24-D28 -> 148857 | M29: % of Total Obligated Match to date: | N29: =E29/C24 -> 0
D33: Expenditure Descriptions - Units / $ Amounts | L33: Comments
A34: Salaries & Benefits | B34: Grant Funds | C34: =H15 -> 0
B35: Match | C35: =I15 -> 0
A36: Services & Supplies | B36: Grant Funds | C36: =H16 -> 0
B37: Match | C37: =I16 -> 0
A38: Professional Services | B38: Grant Funds | C38: =H17 -> 0
B39: Match | C39: =I17 -> 0
A40: NGO Subcontracts | B40: Grant Funds | C40: =H18 -> 0
B41: Match | C41: =I18 -> 0
A42: Equipment / Fixed Assets | B42: Grant Funds | C42: =H19 -> 0
B43: Match | C43: =I19 -> 0
A44: Data Collection | B44: Grant Funds | C44: =H20 -> 0
B45: Match | C45: =I20 -> 0
A46: Project Evaluation | B46: Grant Funds | C46: =H21 -> 0
B47: Match | C47: =I21 -> 0
A48: Other | B48: Grant Funds | C48: =H22 -> 0
B49: Match | C49: =I22 -> 0
A50: Indirect Costs | B50: Grant Funds | C50: =H23 -> 0
B51: Match | C51: =I23 -> 0
A52: Project Income | C52: =I26 -> 0
A53: PERSON PREPARING REPORT | E53: AUTHORIZED FINANCIAL OFFICER | L53: BSCC Supplier Data - Internal Use Only
E54: By checking the box below, I hereby certify that I am the authorized financial officer of the herein named agency. I further certify that I have not violated any of the provisions of Section 1090 of the Government Code in incurring the expenditures reported in this invoice, nor in any other way; that Sections 1090 through 1096 of the Government Code will not be violated in any way in the expenditure of funds pursuant to this invoice; that statement of funds above is true, correct, and in accordance with program provisions in all respects; and that all expenditures submitted after the expiration date of this contract are for the purpose of substantiating obligations legally incurred during the contract period. Furthermore, by submitting this invoice, I acknowledge that it must adhere to all of the requirements in the BSCC Grant Administration Guide, including any updates to the Guide during the term of the grant agreement.
L55: ='INVOICE 1'!L55:O55 -> 6990
A56: Name, Title | L56: Supplier ID
L57: ='INVOICE 1'!L57:O57 -> CITYOFCOST-001
A58: Phone | L58: Supplier Name
L59: ='INVOICE 1'!L59:O59 -> 99 FAIR DR
A60: Email | L60: Address Line 1
L61: ='INVOICE 1'!L61:O61 -> COSTA MESA CA 92626
A62: Date | L62: Address Line 2
E65: Name, Title
E67: Phone
E69: Date
A71: BSCC USE ONLY
A72: Date Received: | G72: Approved By:
I73: BSCC Field Representative

Sheet INVOICE 13
A1: STATE OF CALIFORNIA | L1: Purchase Authority | N1: BSCC 5227
A2: BOARD OF STATE AND COMMUNITY CORRECTIONS | L2: Purchase Order: | N2: 2469
A3: Financial Invoice Form: BSCC 201 (Revised 04/2020)
A5: Program: | B5: ='INVOICE 1'!B5 -> Youth Reinvestment Grant | K5: Please Note: The California State Controller's Office will send all checks directly to the address listed in the "BSCC Vendor Data" section at the bottom of this invoice.
A7: Grantee: | B7: ='INVOICE 1'!B7 -> City of Costa Mesa | F7: Lead Public Agency: | G7: N/A
A9: Contract #: | B9: ='INVOICE 1'!B9 -> BSCC 569-19 | D9: Term: | E9: ='INVOICE 1'!E9 -> 2019-07-01 | F9: TO | G9: ='INVOICE 1'!G9 -> 2023-02-28 | L9: Invoicing Frequency | M9: Quarterly
A11: Invoice #: | B11: 13 | D11: Reporting Period: | E11: 2022-07-01 | F11: TO | G11: 2022-09-30 | H11: Due: | I11: 2022-11-14 | L11: Final Invoice (Y/N): | M11: No
A13: Line Items | B13: Budget | E13: Prior Expenditures | H13: This Reporting Period | K13: Balance | N13: Advance Disbursements
B14: Grant Funds | C14: Match | D14: TOTAL | E14: Grant Funds | F14: Match | G14: TOTAL | H14: Grant Funds | I14: Match | J14: TOTAL | K14: Grant Funds | L14: Match | M14: TOTAL
A15: Salaries & Benefits | B15: ='INVOICE 12'!B15 -> 97000 | C15: ='INVOICE 12'!C15 -> 0 | D15: =SUM(B15:C15) -> 97000 | E15: ='INVOICE 12'!E15+'INVOICE 12'!H15 -> 50780 | F15: ='INVOICE 12'!F15+'INVOICE 12'!I15 -> 0 | G15: =SUM(E15:F15) -> 50780 | H15: 0 | I15: 0 | J15: =SUM(H15:I15) -> 0 | K15: =B15-E15-H15 -> 46220 | L15: 0 | M15: =SUM(K15:L15) -> 46220 | N15: 1st Advance [10/25/19]
A16: Services & Supplies | B16: ='INVOICE 12'!B16 -> 0 | C16: ='INVOICE 12'!C16 -> 25364 | D16: 25364 | E16: ='INVOICE 12'!E16+'INVOICE 12'!H16 -> 0 | F16: ='INVOICE 12'!F16+'INVOICE 12'!I16 -> 7615 | G16: =SUM(E16:F16) -> 7615 | H16: 0 | I16: 0 | J16: 0 | K16: 0 | L16: 17749 | M16: 17749 | N16: ='1st Advance Payment'!K20 -> 333333
A17: Professional Services | B17: ='INVOICE 12'!B17 -> 0 | C17: ='INVOICE 12'!C17 -> 224637 | D17: 224637 | E17: ='INVOICE 12'!E17+'INVOICE 12'!H17 -> 0 | F17: ='INVOICE 12'!F17+'INVOICE 12'!I17 -> 0 | G17: =SUM(E17:F17) -> 0 | H17: 0 | I17: 0 | J17: 0 | K17: 0 | L17: 224637 | M17: 224637
A18: NGO Subcontracts | B18: ='INVOICE 12'!B18 -> 900000 | C18: ='INVOICE 12'!C18 -> 0 | D18: 900000 | E18: ='INVOICE 12'!E18+'INVOICE 12'!H18 -> 465425 | F18: ='INVOICE 12'!F18+'INVOICE 12'!I18 -> 0 | G18: 465425 | H18: 0 | I18: 0 | J18: 0 | K18: 434575 | L18: 0 | M18: 434575 | N18: ='INVOICE 12'!N18 -> 2nd Advance [5/14/21]
A19: Equipment / Fixed Assets | B19: ='INVOICE 12'!B19 -> 0 | C19: ='INVOICE 12'!C19 -> 0 | D19: 0 | E19: ='INVOICE 12'!E19+'INVOICE 12'!H19 -> 0 | F19: ='INVOICE 12'!F19+'INVOICE 12'!I19 -> 0 | G19: 0 | H19: 0 | I19: 0 | J19: 0 | K19: 0 | L19: 0 | M19: 0 | N19: ='INVOICE 12'!N19 -> 333333
A20: Data Collection | B20: ='INVOICE 12'!B20 -> 0 | C20: ='INVOICE 12'!C20 -> 0 | D20: 0 | E20: ='INVOICE 12'!E20+'INVOICE 12'!H20 -> 0 | F20: ='INVOICE 12'!F20+'INVOICE 12'!I20 -> 0 | G20: 0 | H20: 0 | I20: 0 | J20: 0 | K20: 0 | L20: 0 | M20: 0
A21: Project Evaluation | B21: ='INVOICE 12'!B21 -> 0 | C21: ='INVOICE 12'!C21 -> 0 | D21: 0 | E21: ='INVOICE 12'!E21+'INVOICE 12'!H21 -> 0 | F21: ='INVOICE 12'!F21+'INVOICE 12'!I21 -> 0 | G21: 0 | H21: 0 | I21: 0 | J21: 0 | K21: 0 | L21: 0 | M21: 0 | N21: 3rd Advance [enter date]
A22: Other | B22: ='INVOICE 12'!B22 -> 3000 | C22: ='INVOICE 12'!C22 -> 0 | D22: =SUM(B22:C22) -> 3000 | E22: ='INVOICE 12'!E22+'INVOICE 12'!H22 -> 1604 | F22: ='INVOICE 12'!F22+'INVOICE 12'!I22 -> 0 | G22: 1604 | H22: 0 | I22: 0 | J22: 0 | K22: 1396 | L22: 0 | M22: 1396 | N22: 0
A23: Indirect Costs | B23: ='INVOICE 12'!B23 -> 0 | C23: ='INVOICE 12'!C23 -> 0 | D23: 0 | E23: ='INVOICE 12'!E23+'INVOICE 12'!H23 -> 0 | F23: ='INVOICE 12'!F23+'INVOICE 12'!I23 -> 0 | G23: 0 | H23: 0 | I23: 0 | J23: 0 | K23: 0 | L23: 0 | M23: 0
A24: TOTAL | B24: =SUM(B15:B23) -> 1000000 | C24: =SUM(C15:C23) -> 250001 | D24: =SUM(D15:D23) -> 1250001 | E24: =SUM(E15:E23) -> 517809 | F24: 7615 | G24: 525424 | H24: 0 | I24: =SUM(I15:I23) -> 0 | J24: 0 | K24: 482191 | L24: 242386 | M24: 724577 | N24: =SUM(N16+N19+N22) -> 666666
A26: Project Income | C26: Income reported to date | D26: ='INVOICE 1'!D26+'INVOICE 13'!I26 -> 0 | F26: Prior allocated income | G26: 0 | H26: This Period | I26: 0 | L26: Unallocated income balance | M26: =D26-G26 -> 0
C28: Grant funds expended to date: | D28: =SUM(E24,H24) -> 517809 | G28: Grant funds claimed this period: | H28: =H24 -> 0 | M28: % total dispursed fund expended to date: | N28: =D28/N24 -> 0.7767142767
C29: Match funds to date: | D29: =SUM(F24,I24) -> 7615 | G29: Advance disbursments balance: | H29: =N24-D28 -> 148857 | M29: % of Total Obligated Match to date: | N29: =E29/C24 -> 0
D33: Expenditure Descriptions - Units / $ Amounts | L33: Comments
A34: Salaries & Benefits | B34: Grant Funds | C34: =H15 -> 0
B35: Match | C35: =I15 -> 0
A36: Services & Supplies | B36: Grant Funds | C36: =H16 -> 0
B37: Match | C37: =I16 -> 0
A38: Professional Services | B38: Grant Funds | C38: =H17 -> 0
B39: Match | C39: =I17 -> 0
A40: NGO Subcontracts | B40: Grant Funds | C40: =H18 -> 0
B41: Match | C41: =I18 -> 0
A42: Equipment / Fixed Assets | B42: Grant Funds | C42: =H19 -> 0
B43: Match | C43: =I19 -> 0
A44: Data Collection | B44: Grant Funds | C44: =H20 -> 0
B45: Match | C45: =I20 -> 0
A46: Project Evaluation | B46: Grant Funds | C46: =H21 -> 0
B47: Match | C47: =I21 -> 0
A48: Other | B48: Grant Funds | C48: =H22 -> 0
B49: Match | C49: =I22 -> 0
A50: Indirect Costs | B50: Grant Funds | C50: =H23 -> 0
B51: Match | C51: =I23 -> 0
A52: Project Income | C52: =I26 -> 0
A53: PERSON PREPARING REPORT | E53: AUTHORIZED FINANCIAL OFFICER | L53: BSCC Supplier Data - Internal Use Only
E54: By checking the box below, I hereby certify that I am the authorized financial officer of the herein named agency. I further certify that I have not violated any of the provisions of Section 1090 of the Government Code in incurring the expenditures reported in this invoice, nor in any other way; that Sections 1090 through 1096 of the Government Code will not be violated in any way in the expenditure of funds pursuant to this invoice; that statement of funds above is true, correct, and in accordance with program provisions in all respects; and that all expenditures submitted after the expiration date of this contract are for the purpose of substantiating obligations legally incurred during the contract period. Furthermore, by submitting this invoice, I acknowledge that it must adhere to all of the requirements in the BSCC Grant Administration Guide, including any updates to the Guide during the term of the grant agreement.
L55: ='INVOICE 1'!L55:O55 -> 6990
A56: Name, Title | L56: Supplier ID
L57: ='INVOICE 1'!L57:O57 -> CITYOFCOST-001
A58: Phone | L58: Supplier Name
L59: ='INVOICE 1'!L59:O59 -> 99 FAIR DR
A60: Email | L60: Address Line 1
L61: ='INVOICE 1'!L61:O61 -> COSTA MESA CA 92626
A62: Date | L62: Address Line 2
E65: Name, Title
E67: Phone
E69: Date
A71: BSCC USE ONLY
A72: Date Received: | G72: Approved By:
I73: BSCC Field Representative

Sheet INVOICE 14
A1: STATE OF CALIFORNIA | L1: Purchase Authority | N1: BSCC 5227
A2: BOARD OF STATE AND COMMUNITY CORRECTIONS | L2: Purchase Order: | N2: 2469
A3: Financial Invoice Form: BSCC 201 (Revised 04/2020)
A5: Program: | B5: ='INVOICE 1'!B5 -> Youth Reinvestment Grant | K5: Please Note: The California State Controller's Office will send all checks directly to the address listed in the "BSCC Vendor Data" section at the bottom of this invoice.
A7: Grantee: | B7: ='INVOICE 1'!B7 -> City of Costa Mesa | F7: Lead Public Agency: | G7: N/A
A9: Contract #: | B9: ='INVOICE 1'!B9 -> BSCC 569-19 | D9: Term: | E9: ='INVOICE 1'!E9 -> 2019-07-01 | F9: TO | G9: ='INVOICE 1'!G9 -> 2023-02-28 | L9: Invoicing Frequency | M9: Quarterly
A11: Invoice #: | B11: 14 | D11: Reporting Period: | E11: 2022-10-01 | F11: TO | G11: 2022-12-31 | H11: Due: | I11: 2023-02-14 | L11: Final Invoice (Y/N): | M11: No
A13: Line Items | B13: Budget | E13: Prior Expenditures | H13: This Reporting Period | K13: Balance | N13: Advance Disbursements
B14: Grant Funds | C14: Match | D14: TOTAL | E14: Grant Funds | F14: Match | G14: TOTAL | H14: Grant Funds | I14: Match | J14: TOTAL | K14: Grant Funds | L14: Match | M14: TOTAL
A15: Salaries & Benefits | B15: ='INVOICE 13'!B15 -> 97000 | C15: ='INVOICE 13'!C15 -> 0 | D15: =SUM(B15:C15) -> 97000 | E15: ='INVOICE 13'!E15+'INVOICE 13'!H15 -> 50780 | F15: ='INVOICE 13'!F15+'INVOICE 13'!I15 -> 0 | G15: =SUM(E15:F15) -> 50780 | H15: 0 | I15: 0 | J15: =SUM(H15:I15) -> 0 | K15: =B15-E15-H15 -> 46220 | L15: 0 | M15: =SUM(K15:L15) -> 46220 | N15: 1st Advance [10/25/19]
A16: Services & Supplies | B16: ='INVOICE 13'!B16 -> 0 | C16: ='INVOICE 13'!C16 -> 25364 | D16: 25364 | E16: ='INVOICE 13'!E16+'INVOICE 13'!H16 -> 0 | F16: ='INVOICE 13'!F16+'INVOICE 13'!I16 -> 7615 | G16: =SUM(E16:F16) -> 7615 | H16: 0 | I16: 0 | J16: 0 | K16: 0 | L16: 17749 | M16: 17749 | N16: ='1st Advance Payment'!K20 -> 333333
A17: Professional Services | B17: ='INVOICE 13'!B17 -> 0 | C17: ='INVOICE 13'!C17 -> 224637 | D17: 224637 | E17: ='INVOICE 13'!E17+'INVOICE 13'!H17 -> 0 | F17: ='INVOICE 13'!F17+'INVOICE 13'!I17 -> 0 | G17: =SUM(E17:F17) -> 0 | H17: 0 | I17: 0 | J17: 0 | K17: 0 | L17: 224637 | M17: 224637
A18: NGO Subcontracts | B18: ='INVOICE 13'!B18 -> 900000 | C18: ='INVOICE 13'!C18 -> 0 | D18: 900000 | E18: ='INVOICE 13'!E18+'INVOICE 13'!H18 -> 465425 | F18: ='INVOICE 13'!F18+'INVOICE 13'!I18 -> 0 | G18: 465425 | H18: 0 | I18: 0 | J18: 0 | K18: 434575 | L18: 0 | M18: 434575 | N18: ='INVOICE 13'!N18 -> 2nd Advance [5/14/21]
A19: Equipment / Fixed Assets | B19: ='INVOICE 13'!B19 -> 0 | C19: ='INVOICE 13'!C19 -> 0 | D19: 0 | E19: ='INVOICE 13'!E19+'INVOICE 13'!H19 -> 0 | F19: ='INVOICE 13'!F19+'INVOICE 13'!I19 -> 0 | G19: 0 | H19: 0 | I19: 0 | J19: 0 | K19: 0 | L19: 0 | M19: 0 | N19: ='INVOICE 13'!N19 -> 333333
A20: Data Collection | B20: ='INVOICE 13'!B20 -> 0 | C20: ='INVOICE 13'!C20 -> 0 | D20: 0 | E20: ='INVOICE 13'!E20+'INVOICE 13'!H20 -> 0 | F20: ='INVOICE 13'!F20+'INVOICE 13'!I20 -> 0 | G20: 0 | H20: 0 | I20: 0 | J20: 0 | K20: 0 | L20: 0 | M20: 0
A21: Project Evaluation | B21: ='INVOICE 13'!B21 -> 0 | C21: ='INVOICE 13'!C21 -> 0 | D21: 0 | E21: ='INVOICE 13'!E21+'INVOICE 13'!H21 -> 0 | F21: ='INVOICE 13'!F21+'INVOICE 13'!I21 -> 0 | G21: 0 | H21: 0 | I21: 0 | J21: 0 | K21: 0 | L21: 0 | M21: 0 | N21: 3rd Advance [enter date]
A22: Other | B22: ='INVOICE 13'!B22 -> 3000 | C22: ='INVOICE 13'!C22 -> 0 | D22: =SUM(B22:C22) -> 3000 | E22: ='INVOICE 13'!E22+'INVOICE 13'!H22 -> 1604 | F22: ='INVOICE 13'!F22+'INVOICE 13'!I22 -> 0 | G22: 1604 | H22: 0 | I22: 0 | J22: 0 | K22: 1396 | L22: 0 | M22: 1396 | N22: 0
A23: Indirect Costs | B23: ='INVOICE 13'!B23 -> 0 | C23: ='INVOICE 13'!C23 -> 0 | D23: 0 | E23: ='INVOICE 13'!E23+'INVOICE 13'!H23 -> 0 | F23: ='INVOICE 13'!F23+'INVOICE 13'!I23 -> 0 | G23: 0 | H23: 0 | I23: 0 | J23: 0 | K23: 0 | L23: 0 | M23: 0
A24: TOTAL | B24: =SUM(B15:B23) -> 1000000 | C24: =SUM(C15:C23) -> 250001 | D24: =SUM(D15:D23) -> 1250001 | E24: =SUM(E15:E23) -> 517809 | F24: 7615 | G24: 525424 | H24: 0 | I24: =SUM(I15:I23) -> 0 | J24: 0 | K24: 482191 | L24: 242386 | M24: 724577 | N24: =SUM(N16+N19+N22) -> 666666
A26: Project Income | C26: Income reported to date | D26: ='INVOICE 1'!D26+'INVOICE 14'!I26 -> 0 | F26: Prior allocated income | G26: 0 | H26: This Period | I26: 0 | L26: Unallocated income balance | M26: =D26-G26 -> 0
C28: Grant funds expended to date: | D28: =SUM(E24,H24) -> 517809 | G28: Grant funds claimed this period: | H28: =H24 -> 0 | M28: % total dispursed fund expended to date: | N28: =D28/N24 -> 0.7767142767
C29: Match funds to date: | D29: =SUM(F24,I24) -> 7615 | G29: Advance disbursments balance: | H29: =N24-D28 -> 148857 | M29: % of Total Obligated Match to date: | N29: =E29/C24 -> 0
D33: Expenditure Descriptions - Units / $ Amounts | L33: Comments
A34: Salaries & Benefits | B34: Grant Funds | C34: =H15 -> 0
B35: Match | C35: =I15 -> 0
A36: Services & Supplies | B36: Grant Funds | C36: =H16 -> 0
B37: Match | C37: =I16 -> 0
A38: Professional Services | B38: Grant Funds | C38: =H17 -> 0
B39: Match | C39: =I17 -> 0
A40: NGO Subcontracts | B40: Grant Funds | C40: =H18 -> 0
B41: Match | C41: =I18 -> 0
A42: Equipment / Fixed Assets | B42: Grant Funds | C42: =H19 -> 0
B43: Match | C43: =I19 -> 0
A44: Data Collection | B44: Grant Funds | C44: =H20 -> 0
B45: Match | C45: =I20 -> 0
A46: Project Evaluation | B46: Grant Funds | C46: =H21 -> 0
B47: Match | C47: =I21 -> 0
A48: Other | B48: Grant Funds | C48: =H22 -> 0
B49: Match | C49: =I22 -> 0
A50: Indirect Costs | B50: Grant Funds | C50: =H23 -> 0
B51: Match | C51: =I23 -> 0
A52: Project Income | C52: =I26 -> 0
A53: PERSON PREPARING REPORT | E53: AUTHORIZED FINANCIAL OFFICER | L53: BSCC Supplier Data - Internal Use Only
E54: By checking the box below, I hereby certify that I am the authorized financial officer of the herein named agency. I further certify that I have not violated any of the provisions of Section 1090 of the Government Code in incurring the expenditures reported in this invoice, nor in any other way; that Sections 1090 through 1096 of the Government Code will not be violated in any way in the expenditure of funds pursuant to this invoice; that statement of funds above is true, correct, and in accordance with program provisions in all respects; and that all expenditures submitted after the expiration date of this contract are for the purpose of substantiating obligations legally incurred during the contract period. Furthermore, by submitting this invoice, I acknowledge that it must adhere to all of the requirements in the BSCC Grant Administration Guide, including any updates to the Guide during the term of the grant agreement.
L55: ='INVOICE 1'!L55:O55 -> 6990
A56: Name, Title | L56: Supplier ID
L57: ='INVOICE 1'!L57:O57 -> CITYOFCOST-001
A58: Phone | L58: Supplier Name
L59: ='INVOICE 1'!L59:O59 -> 99 FAIR DR
A60: Email | L60: Address Line 1
L61: ='INVOICE 1'!L61:O61 -> COSTA MESA CA 92626
A62: Date | L62: Address Line 2
E65: Name, Title
E67: Phone
E69: Date
A71: BSCC USE ONLY
A72: Date Received: | G72: Approved By:
I73: BSCC Field Representative

Sheet INVOICE 15
A1: STATE OF CALIFORNIA | L1: Purchase Authority | N1: BSCC 5227
A2: BOARD OF STATE AND COMMUNITY CORRECTIONS | L2: Purchase Order: | N2: 2469
A3: Financial Invoice Form: BSCC 201 (Revised 04/2020)
A5: Program: | B5: ='INVOICE 1'!B5 -> Youth Reinvestment Grant | K5: Please Note: The California State Controller's Office will send all checks directly to the address listed in the "BSCC Vendor Data" section at the bottom of this invoice.
A7: Grantee: | B7: ='INVOICE 1'!B7 -> City of Costa Mesa | F7: Lead Public Agency:
A9: Contract #: | B9: ='INVOICE 1'!B9 -> BSCC 569-19 | D9: Term: | E9: ='INVOICE 1'!E9 -> 2019-07-01 | F9: TO | G9: ='INVOICE 1'!G9 -> 2023-02-28 | L9: Invoicing Frequency | M9: Quarterly
A11: Invoice #: | B11: 15 | D11: Reporting Period: | E11: 2023-01-01 | F11: TO | G11: 2023-02-28 | H11: Due: | I11: 2023-04-14 | L11: Final Invoice (Y/N): | M11: No
A13: Line Items | B13: Budget | E13: Prior Expenditures | H13: This Reporting Period | K13: Balance | N13: Advance Disbursements
B14: Grant Funds | C14: Match | D14: TOTAL | E14: Grant Funds | F14: Match | G14: TOTAL | H14: Grant Funds | I14: Match | J14: TOTAL | K14: Grant Funds | L14: Match | M14: TOTAL
A15: Salaries & Benefits | B15: ='INVOICE 14'!B15 -> 97000 | C15: ='INVOICE 14'!C15 -> 0 | D15: =SUM(B15:C15) -> 97000 | E15: ='INVOICE 14'!E15+'INVOICE 14'!H15 -> 50780 | F15: ='INVOICE 14'!F15+'INVOICE 14'!I15 -> 0 | G15: =SUM(E15:F15) -> 50780 | H15: 0 | I15: 0 | J15: =SUM(H15:I15) -> 0 | K15: =B15-E15-H15 -> 46220 | L15: 0 | M15: =SUM(K15:L15) -> 46220 | N15: 1st Advance [10/25/19]
A16: Services & Supplies | B16: ='INVOICE 14'!B16 -> 0 | C16: ='INVOICE 14'!C16 -> 25364 | D16: 25364 | E16: ='INVOICE 14'!E16+'INVOICE 14'!H16 -> 0 | F16: ='INVOICE 14'!F16+'INVOICE 14'!I16 -> 7615 | G16: =SUM(E16:F16) -> 7615 | H16: 0 | I16: 0 | J16: 0 | K16: 0 | L16: 17749 | M16: 17749 | N16: ='1st Advance Payment'!K20 -> 333333
A17: Professional Services | B17: ='INVOICE 14'!B17 -> 0 | C17: ='INVOICE 14'!C17 -> 224637 | D17: 224637 | E17: ='INVOICE 14'!E17+'INVOICE 14'!H17 -> 0 | F17: ='INVOICE 14'!F17+'INVOICE 14'!I17 -> 0 | G17: =SUM(E17:F17) -> 0 | H17: 0 | I17: 0 | J17: 0 | K17: 0 | L17: 224637 | M17: 224637
A18: NGO Subcontracts | B18: ='INVOICE 14'!B18 -> 900000 | C18: ='INVOICE 14'!C18 -> 0 | D18: 900000 | E18: ='INVOICE 14'!E18+'INVOICE 14'!H18 -> 465425 | F18: ='INVOICE 14'!F18+'INVOICE 14'!I18 -> 0 | G18: 465425 | H18: 0 | I18: 0 | J18: 0 | K18: 434575 | L18: 0 | M18: 434575 | N18: ='INVOICE 14'!N18 -> 2nd Advance [5/14/21]
A19: Equipment / Fixed Assets | B19: ='INVOICE 14'!B19 -> 0 | C19: ='INVOICE 14'!C19 -> 0 | D19: 0 | E19: ='INVOICE 14'!E19+'INVOICE 14'!H19 -> 0 | F19: ='INVOICE 14'!F19+'INVOICE 14'!I19 -> 0 | G19: 0 | H19: 0 | I19: 0 | J19: 0 | K19: 0 | L19: 0 | M19: 0 | N19: ='INVOICE 14'!N19 -> 333333
A20: Data Collection | B20: ='INVOICE 14'!B20 -> 0 | C20: ='INVOICE 14'!C20 -> 0 | D20: 0 | E20: ='INVOICE 14'!E20+'INVOICE 14'!H20 -> 0 | F20: ='INVOICE 14'!F20+'INVOICE 14'!I20 -> 0 | G20: 0 | H20: 0 | I20: 0 | J20: 0 | K20: 0 | L20: 0 | M20: 0
A21: Project Evaluation | B21: ='INVOICE 14'!B21 -> 0 | C21: ='INVOICE 14'!C21 -> 0 | D21: 0 | E21: ='INVOICE 14'!E21+'INVOICE 14'!H21 -> 0 | F21: ='INVOICE 14'!F21+'INVOICE 14'!I21 -> 0 | G21: 0 | H21: 0 | I21: 0 | J21: 0 | K21: 0 | L21: 0 | M21: 0 | N21: 3rd Advance [enter date]
A22: Other | B22: ='INVOICE 14'!B22 -> 3000 | C22: ='INVOICE 14'!C22 -> 0 | D22: =SUM(B22:C22) -> 3000 | E22: ='INVOICE 14'!E22+'INVOICE 14'!H22 -> 1604 | F22: ='INVOICE 14'!F22+'INVOICE 14'!I22 -> 0 | G22: 1604 | H22: 0 | I22: 0 | J22: 0 | K22: 1396 | L22: 0 | M22: 1396 | N22: 0
A23: Indirect Costs | B23: ='INVOICE 14'!B23 -> 0 | C23: ='INVOICE 14'!C23 -> 0 | D23: 0 | E23: ='INVOICE 14'!E23+'INVOICE 14'!H23 -> 0 | F23: ='INVOICE 14'!F23+'INVOICE 14'!I23 -> 0 | G23: 0 | H23: 0 | I23: 0 | J23: 0 | K23: 0 | L23: 0 | M23: 0
A24: TOTAL | B24: =SUM(B15:B23) -> 1000000 | C24: =SUM(C15:C23) -> 250001 | D24: =SUM(D15:D23) -> 1250001 | E24: =SUM(E15:E23) -> 517809 | F24: 7615 | G24: 525424 | H24: 0 | I24: =SUM(I15:I23) -> 0 | J24: 0 | K24: 482191 | L24: 242386 | M24: 724577 | N24: =SUM(N16+N19+N22) -> 666666
A26: Project Income | C26: Income reported to date | D26: ='INVOICE 1'!D26+'INVOICE 15'!I26 -> 0 | F26: Prior allocated income | G26: 0 | H26: This Period | I26: 0 | L26: Unallocated income balance | M26: =D26-G26 -> 0
C28: Grant funds expended to date: | D28: =SUM(E24,H24) -> 517809 | G28: Grant funds claimed this period: | H28: =H24 -> 0 | M28: % total dispursed fund expended to date: | N28: =D28/N24 -> 0.7767142767
C29: Match funds to date: | D29: =SUM(F24,I24) -> 7615 | G29: Advance disbursments balance: | H29: =N24-D28 -> 148857 | M29: % of Total Obligated Match to date: | N29: =E29/C24 -> 0
D33: Expenditure Descriptions - Units / $ Amounts | L33: Comments
A34: Salaries & Benefits | B34: Grant Funds | C34: =H15 -> 0
B35: Match | C35: =I15 -> 0
A36: Services & Supplies | B36: Grant Funds | C36: =H16 -> 0
B37: Match | C37: =I16 -> 0
A38: Professional Services | B38: Grant Funds | C38: =H17 -> 0
B39: Match | C39: =I17 -> 0
A40: NGO Subcontracts | B40: Grant Funds | C40: =H18 -> 0
B41: Match | C41: =I18 -> 0
A42: Equipment / Fixed Assets | B42: Grant Funds | C42: =H19 -> 0
B43: Match | C43: =I19 -> 0
A44: Data Collection | B44: Grant Funds | C44: =H20 -> 0
B45: Match | C45: =I20 -> 0
A46: Project Evaluation | B46: Grant Funds | C46: =H21 -> 0
B47: Match | C47: =I21 -> 0
A48: Other | B48: Grant Funds | C48: =H22 -> 0
B49: Match | C49: =I22 -> 0
A50: Indirect Costs | B50: Grant Funds | C50: =H23 -> 0
B51: Match | C51: =I23 -> 0
A52: Project Income | C52: =I26 -> 0
A53: PERSON PREPARING REPORT | E53: AUTHORIZED FINANCIAL OFFICER | L53: BSCC Supplier Data - Internal Use Only
E54: By checking the box below, I hereby certify that I am the authorized financial officer of the herein named agency. I further certify that I have not violated any of the provisions of Section 1090 of the Government Code in incurring the expenditures reported in this invoice, nor in any other way; that Sections 1090 through 1096 of the Government Code will not be violated in any way in the expenditure of funds pursuant to this invoice; that statement of funds above is true, correct, and in accordance with program provisions in all respects; and that all expenditures submitted after the expiration date of this contract are for the purpose of substantiating obligations legally incurred during the contract period. Furthermore, by submitting this invoice, I acknowledge that it must adhere to all of the requirements in the BSCC Grant Administration Guide, including any updates to the Guide during the term of the grant agreement.
L55: ='INVOICE 1'!L55:O55 -> 6990
A56: Name, Title | L56: Supplier ID
L57: ='INVOICE 1'!L57:O57 -> CITYOFCOST-001
A58: Phone | L58: Supplier Name
L59: ='INVOICE 1'!L59:O59 -> 99 FAIR DR
A60: Email | L60: Address Line 1
L61: ='INVOICE 1'!L61:O61 -> COSTA MESA CA 92626
A62: Date | L62: Address Line 2
E65: Name, Title
E67: Phone
E69: Date
A71: BSCC USE ONLY
A72: Date Received: | G72: Approved By:
I73: BSCC Field Representative

Sheet 3rd Advance Payment
A1: STATE OF CALIFORNIA | J1: Purchase Authority | L1: BSCC 5227
A2: BOARD OF STATE AND COMMUNITY CORRECTIONS | J2: Purchase Order: | L2: 2469
A3: Advance Payment Invoice: BSCC 201A (Revised 06/2020)
B6: Program: | C6: ='INVOICE 1'!B5 -> Youth Reinvestment Grant | H6: Grantee: | I6: ='INVOICE 1'!B7 -> City of Costa Mesa
B8: Contract #: | C8: ='INVOICE 1'!B9 -> BSCC 569-19 | H8: Address
J9: Address Line 1
B10: Term: | C10: ='INVOICE 1'!E9 -> 2019-07-01 | D10: TO | E10: ='INVOICE 1'!G9 -> 2023-02-28
J11: Address Line 2
B13: Advance Payment # | D13: 3 YRG 2019 | G13: Please Note: The California State Controller's Office will send all checks directly to the address listed in the "BSCC Vendor Data" section at the bottom of this invoice.
B15: Effective Invoice #
A18: Advance Payment Invoice
J19: Total Grant Award: | K19: 1000000
J20: Advance Total: | K20: 333334
J21: Grant Award Balance: | K21: 0
B25: PERSON PREPARING REPORT | G25: AUTHORIZED FINANCIAL OFFICER
G26: I hereby certify that I am the authorized financial officer of the herein named agency. I further certify that I have not violated any of the provisions of Section 1090 of the Government Code in incurring the expenditures reported in this invoice, nor in any other way; that Sections 1090 through 1096 of the Government Code will not be violated in any way in the expenditure of funds pursuant to this invoice; that statement of funds above is true, correct, and in accordance with program provisions in all respects; and that all expenditures submitted after the expiration date of this contract are for the purpose of substantiating obligations legally incurred during the contract period. Furthermore, by submitting this invoice, I acknowledge that it must adhere to all of the requirements in the BSCC Grant Administration Guide, including any updates to the Guide during the term of the grant agreement.
B27: Name, Title
B29: Phone
B31: Email
B33: Date
G36: Name, Title
G38: Phone
G40: Email
G42: Date
G44: Signature
F48: BSCC USE ONLY
B50: Approved By: | J50: BSCC Supplier Data
C51: BSCC Field Representative
J52: Supplier Name
B53: Date:
J54: Supplier Number

Sheet MODIFICATION REQUEST
M1: STATE OF CALIFORNIA
A2: MODIFICATION REQUEST - (FORM BSCC 223.1 (Revised 04/20) | M2: BOARD OF STATE AND COMMUNITY CORRECTIONS
B5: Line-Item Change | F5: Budget Modification | J5: Project Income Allocation
B6: Check this box if you are modifying narrative details within a line item (or line items) but not changing the budget. | F6: Check this box if you are modifying line-item dollar amounts by moving funds from one line-item to another. | J6: Check this box if you are allocating earned project income.
A8: Important Note: You must provide a detailed justification for all modification requests. All modifications require BSCC Field Representative approval.
A10: Grantee: | B10: ='INVOICE 1'!B7 -> City of Costa Mesa | I10: Grant Program: | J10: ='INVOICE 1'!B5 -> Youth Reinvestment Grant
A12: Address | I12: Lead Public Agency: | J12: ='INVOICE 1'!G7 -> N/A
A16: Contract #: | B16: ='INVOICE 1'!B9 -> BSCC 569-19 | J16: Modification Request #
A18: Term: | B18: ='INVOICE 1'!E9 -> 2019-07-01 | C18: ='INVOICE 1'!F9 -> TO | D18: ='INVOICE 1'!G9 -> 2023-02-28 | J18: Effective on Invoice #
A20: Line Items | B20: Current Budget | E20: Available Budget | H20: Changes (+/-) | K20: Modified Budget
B21: Grant Funds | C21: Match | D21: TOTAL | E21: Grant Funds | F21: Match | G21: TOTAL | H21: Grant Funds | I21: Match | J21: TOTAL | K21: Grant Funds | L21: Match | M21: TOTAL
A22: Salaries & Benefits | B22: ='INVOICE 1'!B15 -> 97000 | C22: ='INVOICE 1'!C15 -> 0 | D22: =SUM(B22:C22) -> 97000 | E22: ='INVOICE 2'!K15 -> 90860 | F22: ='INVOICE 2'!L15 -> 0 | G22: =SUM(E22:F22) -> 90860 | H22: 0 | I22: 0 | J22: =SUM(H22:I22) -> 0 | K22: =SUM(B22,H22) -> 97000 | L22: =SUM(C22,I22) -> 0 | M22: =SUM(K22:L22) -> 97000
A23: Services & Supplies | B23: ='INVOICE 1'!B16 -> 0 | C23: ='INVOICE 1'!C16 -> 25364 | D23: 25364 | E23: ='INVOICE 2'!K16 -> 0 | F23: ='INVOICE 2'!L16 -> 25364 | G23: 25364 | H23: 0 | I23: 0 | J23: 0 | K23: 0 | L23: 25364 | M23: 25364
A24: Professional Services | B24: ='INVOICE 1'!B17 -> 0 | C24: ='INVOICE 1'!C17 -> 224637 | D24: 224637 | E24: ='INVOICE 2'!K17 -> 0 | F24: ='INVOICE 2'!L17 -> 224637 | G24: 224637 | H24: 0 | I24: 0 | J24: 0 | K24: 0 | L24: 224637 | M24: 224637
A25: NGO Subcontracts | B25: ='INVOICE 1'!B18 -> 900000 | C25: ='INVOICE 1'!C18 -> 0 | D25: 900000 | E25: ='INVOICE 2'!K18 -> 809863 | F25: ='INVOICE 2'!L18 -> 0 | G25: 809863 | H25: 0 | I25: 0 | J25: 0 | K25: 900000 | L25: 0 | M25: 900000
A26: Equipment / Fixed Assets | B26: ='INVOICE 1'!B19 -> 0 | C26: ='INVOICE 1'!C19 -> 0 | D26: 0 | E26: ='INVOICE 2'!K19 -> 0 | F26: ='INVOICE 2'!L19 -> 0 | G26: 0 | H26: 0 | I26: 0 | J26: 0 | K26: 0 | L26: 0 | M26: 0
A27: Data Collection | B27: ='INVOICE 1'!B20 -> 0 | C27: ='INVOICE 1'!C20 -> 0 | D27: 0 | E27: ='INVOICE 2'!K20 -> 0 | F27: ='INVOICE 2'!L20 -> 0 | G27: 0 | H27: 0 | I27: 0 | J27: 0 | K27: 0 | L27: 0 | M27: 0
A28: Project Evaluation | B28: ='INVOICE 1'!B21 -> 0 | C28: ='INVOICE 1'!C21 -> 0 | D28: 0 | E28: ='INVOICE 2'!K21 -> 0 | F28: ='INVOICE 2'!L21 -> 0 | G28: 0 | H28: 0 | I28: 0 | J28: 0 | K28: 0 | L28: 0 | M28: 0
A29: Other | B29: ='INVOICE 1'!B22 -> 3000 | C29: ='INVOICE 1'!C22 -> 0 | D29: 3000 | E29: ='INVOICE 2'!K22 -> 1396 | F29: ='INVOICE 2'!L22 -> 0 | G29: 1396 | H29: 0 | I29: 0 | J29: 0 | K29: 3000 | L29: 0 | M29: 3000
A30: Indirect Costs | B30: ='INVOICE 1'!B23 -> 0 | C30: ='INVOICE 1'!C23 -> 0 | D30: 0 | E30: ='INVOICE 2'!K23 -> 0 | F30: ='INVOICE 2'!L23 -> 0 | G30: 0 | H30: 0 | I30: 0 | J30: 0 | K30: 0 | L30: 0 | M30: 0
A31: TOTAL | B31: =SUM(B22:B30) -> 1000000 | C31: 250001 | D31: 1250001 | E31: 902119 | F31: 250001 | G31: 1152120 | H31: 0 | I31: 0 | J31: 0 | K31: 1000000 | L31: 250001 | M31: 1250001
A33: Project Income | C33: Income reported to date | D33: 0 | F33: Prior allocated income | G33: 0 | H33: Allocating | I33: 0 | L33: Unallocated income balance | M33: =D33-I33 -> 0
A35: JUSTIFICATION FOR MODIFICATION:
A55: PERSON PREPARING REPORT | I55: AUTHORIZED FINANCIAL OFFICER
I56: I hereby certify that I am the authorized financial officer of the herein named agency. I further certify that I have not violated any of the provisions of Section 1090 of the Government Code in incurring the expenditures reported in this invoice, nor in any other way; that Sections 1090 through 1096 of the Government Code will not be violated in any way in the expenditure of funds pursuant to this invoice; that statement of funds above is true, correct, and in accordance with program provisions in all respects; and that all expenditures submitted after the expiration date of this contract are for the purpose of substantiating obligations legally incurred during the contract period. Furthermore, by submitting this invoice, I acknowledge that it must adhere to all of the requirements in the BSCC Grant Administration Guide, including any updates to the Guide during the term of the grant agreement.
A58: Name, Title
A60: Phone
A62: Email
A64: Date
I67: Name, Title
I69: Phone
I71: Date
A73: BSCC USE ONLY
A74: Date Received: | H74: Approved By: | L74: Date:
I75: BSCC Field Representative

Sheet Project Budget NARRATIVE
A2: Youth Reinvestment Grant - Project Budget and Budget Narrative (UPDATED 6.18.19)
A3: Name of County or City: | D3: City of Costa Mesa
A4: Program Term: July 1, 2019 - February 28, 2023
A5: Budget Line Item | F5: Grant Funds | G5: Match Funds | H5: Total
A6: 1. Salaries and Benefits | F6: =F21 -> 97000 | G6: =G21 -> 0 | H6: =H21 -> 97000
A7: 2. Services and Supplies | F7: =F38 -> 0 | G7: =G38 -> 25364 | H7: =H38 -> 25364
A8: 3. Professional Services | F8: =F53 -> 0 | G8: =G53 -> 224637 | H8: =H53 -> 224637
A9: 4. Non-Governmental Organization (NGO) Subcontracts | F9: =F84 -> 900000 | G9: =G84 -> 0 | H9: =H84 -> 900000
A10: 5. Equipment/Fixed Assets | F10: =F113 -> 0 | G10: =G113 -> 0 | H10: =H113 -> 0
A11: 6. Data Collection | F11: =F124 -> 0 | G11: =G124 -> 0 | H11: =H124 -> 0
A12: 7. Project Evaluation | F12: =F135 -> 0 | G12: =G135 -> 0 | H12: =H135 -> 0
A13: 8. Other (Travel, Training, etc.) | F13: =F146 -> 3000 | G13: =G146 -> 0 | H13: =H146 -> 3000
A14: 9. Indirect Costs | F14: =F159 -> 0 | G14: =G159 -> 0 | H14: =H159 -> 0
A15: TOTAL | F15: =SUM(F6:F14) -> 1000000 | G15: =SUM(G6:G14) -> 250001 | H15: =SUM(F15:G15) -> 1250001
A16: Required match: | B16: 10%: no less than: | C16: =F15*10% -> 100000 | D16: 25%: no less than: | E16: =F15*25% -> 250000
A18: 1. Salaries and Benefits
A19: Name and Title | C19: (% FTE or Hourly Rate) & Benefits | F19: Grant Funds | G19: Match Funds | H19: Total
A20: TBA, Officer/ Project Coordinator | C20: $54.09/hour x 600.20 hours = $32,465 benefits @ 198.7820%: $ = $64,535 | F20: 97000 | H20: =SUM(F20:G20) -> 97000
A21: TOTAL | F21: =SUM(F20:F20) -> 97000 | G21: =SUM(G20:G20) -> 0 | H21: 97000
A23: Salaries and Benefits
A24: Salary: Staff salary and benefits are budgeted at an hourly rate of $54.09 plus benefits at 198.7820%. The salary rate is based on the entry level salary rate, and the benefits are based on the maximum allowable benefits for this position. Costa Mesa Officer will be assigned as the Project Coordinator to assist with start-up of the program and provide oversight and management of the proposed Juvenile Diversion Program.
A28: MOD 1 APPROVAL DATE: 3/19/21
A29: The agreement indicates a Police Officer (salary at $54.09 per hour, working 13.75 hours per month for 12 months with benefits at 198.79%) to coordinate the grant. Since this is the first year implementation, a Police Lieutenant (salary at $79.07 per hour, working 23.5 hours per month for 12 months with benefits at 109.86%) has been overseeing the program to ensure compliance with grant requirements. The City will make sure the annual total cost not exceed total budgeted salaries and benefits of the contract.
A34: 2. Services and Supplies
A35: Description of Services or Supplies | C35: Calculation for Expenditure | F35: Grant Funds | G35: Match Funds | H35: Total
A36: Rental Space at Costa Mesa Police Department | C36: 180 sqf. x $2.7955 (average cost) per sq. x 44 mos | G36: =+ROUND(180*2.7955*44,0) -> 22140 | H36: =SUM(F36:G36) -> 22140
A37: Office Supplies | C37: $73.27 x 44 mos | G37: =+ROUND(73.27*44,0) -> 3224 | H37: =SUM(F37:G37) -> 3224
A38: TOTAL | F38: =SUM(F36:F37) -> 0 | G38: =SUM(G36:G37) -> 25364 | H38: =SUM(F38:G38) -> 25364
A40: Services and Supplies Narrative:
A41: Rental Space: In-Kind Match of space for Waymakers Restorative Justice Team to provide Diversion Services on site at the Costa Mesa Police Department. Office Supplies: In-Kind Match for items necessary for the start-up of the program and daily operation of the program such as printer toner cartridges, paper, pens, binder, tabs and other office expenses for the program staff.
A45: MOD x APPROVAL DATE:
A48: 3. Professional Services
A49: Description of Professional Service(s) | C49: Calculation for Expenditure | F49: Grant Funds | G49: Match Funds | H49: Total
A50: Peer Court (Grants and Fees) | C50: Grants/ Contributions: $27,500 + Fees (paid by some school district): $29,333 | G50: 56833 | H50: =SUM(F50:G50) -> 56833
A51: Volunteer Attorney Time | C51: 41 Attorneys X $300 per hour X 7.3333 hours per volunteer | G51: 90200 | H51: 90200
A52: Diversion Support for bilingual services | C52: $1,763.73 per month X 44 months | G52: 77604 | H52: 77604
A53: TOTAL | F53: =SUM(F50:F52) -> 0 | G53: =SUM(G50:G52) -> 224637 | H53: 224637
A55: Professional Services Narrative
A56: The proposed budget amount for Peer Court in the amount of $56,833 represents the estimated cost for CRF to manage and implement thirty-three (33) Peer Court sessions per year during the first three FY's of the contract, and (22) twenty- two Peer Court Session during the last FY of the contract at seventeen (17) participating junior high and high schools throughout Orange County each FY, and four (4) Peer Court Sessions at the Central Justice Center in Santa Ana, each FY. Volunteer Attorney Time: $90,200: the in kind donations represent the estimated hourly rate for volunteer attorneys to advise at thirty three (33) Peer Court Sessions per year during the first three FY's of the contract and twenty two (22) Peer Court Sessions during the last FY of the contract at seventeen (17) partcipating junior high and high schools throughout Orange County each FY, and four (4) Peer Court sessions at the Central Justice Center in Santa Ana , each FY. This is based on the average number of volunteer attorneys in the past years, each donating two (2) hours of time per session with an average billing rate of $300 per hour. Waymakers Juvenile Diversion: $77,604 currently has diversion contracts with 3 cities within Central Orange County. Resources will be leveraged to provide additional support and service to participants served in the proposal. Support and service include supervisory oversight, group therapy, psycho-educational groups, career and education support, Peer Court advocacy, and translation as needed.
A66: MOD x APPROVAL DATE:
A69: 4. Non-Governmental Organizations (NGO) Subcontracts
A70: Description of Subcontract | C70: Calculation for Expenditure | F70: Grant Funds | G70: Match Funds | H70: Total
A71: Diversion Supervisor: 0.40 FTE, TBA | C71: $4,244.715 ( average) X 44 mos. X 0.40 FTE=$74,707 + benefits @ 32.275%: = $24,112 | F71: =74707+24112 -> 98819 | H71: =SUM(F71:G71) -> 98819
A72: Licensed Clinical Supervisor: 0.50 FTE, TBA | C72: $5,648 ( average) X 43 mos. X 0.50 FTE=$121,432 + benefits @ 23.422%: = $28,442 | F72: =121432+28442 -> 149874 | H72: 149874
A73: Counselor: 1.0 FTE, TBA | C73: $4,339.55 ( average) X 44 mos. X 1.00 FTE=$190,940 + benefits @ 27.355%: = $52,232 | F73: =190940+52232 -> 243172 | H73: 243172
A74: Diversion Specialist: 1.0 FTE, TBA | C74: $3,457.25 ( average) X 44 mos. X 1.00 FTE=$152,119 + benefits @ 28.322%: = $43,083 | F74: =152119+43083 -> 195202 | H74: 195202
A75: Mediator/ Case Coordinator, 0.15 FTE, Jessica Mendez | C75: $3,810.15 ( average) X 44 mos. X 0.15 FTE=$25,147 + benefits @ 27.801%: = $6,991 | F75: =25147+6991 -> 32138 | H75: 32138
A76: Startup | C76: 3 Laptops X $1,200 each; 3 Printers X $400 each; Travel: $983.61 per FTE X 3.05 FTE's | F76: =3600+1200+3000 -> 7800 | H76: 7800
A77: Training for Evidence Based Practices | C77: $3,270.49 per FTE X 3.05 FTE's | F77: =+ROUND(3270.49*3.05,0) -> 9975 | H77: 9975
A78: Office/ Supplies Expenses | C78: $156.02 per month X 44 mos. | F78: =ROUND(156.02*44,0) -> 6865 | H78: 6865
A79: Travel (Mileages) | C79: $218.96 miles per mo. X 44 mos. X $0.58 per mile | F79: =+ROUND(218.96*44*0.58,0) -> 5588 | H79: =SUM(F79:G79) -> 5588
A80: Liability Insurance | C80: $97.318 per month X 44 months | F80: 4282 | H80: 4282
A81: Subcontract: Constitutional Rights Foundation Peer Court | C81: $1,576.455 per month X 44 months | F81: 69364 | H81: 69364
A82: Evaluation | F82: 5000 | H82: 5000
A83: Indirect Cost | C83: 10% of Total Salaries and Benefits: $719,205 X 10%= $71,921 | F83: 71921 | H83: 71921
A84: TOTALS | F84: =SUM(F71:F83) -> 900000 | G84: =SUM(G71:G83) -> 0 | H84: 900000
A86: Non-Governmental Organizations (NGO) Subcontracts Narrative
A87: The NGO budget of $900,000 is based on a Program structure of 3.05 FTE and includes: Diversion Supervisor: 0.40 FTE, Licensed Clinical Supervisor: 0.50 FTE, Counselor: 1.0 FTE, Diversion Specialist 1.0 FTE and Mediator 0.15 FTE. The NGO salaries are based on the anticipated salary rates for the above mentioned positions during the year contract. The Licensed Clinical Supervisor is anticipated to work during the first year for approximately 11 months. The total proposed salary cost is $564,345. The Benefits are calculated for each employee based on their individual circumstances. Overall, the total anticipated benefit cost for the NGO is $154,860, or approximately 27.44% of total salaries. The benefits are provided to the staff in accordance with both state and federal requirements, and the Waymakers Employee Benefit Program. The key components are as follows: Social Security/Medicare (7.65% of salary), Worker's Compensation Insurance (0.55% of salary), State Unemployment Insurance is budgeted at 4.5% of the first $7,000 of each employee's annual salary, retirement plan (4% of salaries for eligible employees), Group Insurance benefits including: medical, dental, vision, life insurance and long term disability insurance are provided to eligible employees, paid leave payout (1% of total salaries). Paid Leave includes: vacation, sick leave and personal leave. The Services and Supply costs are based on estimated costs needed for the operation of the proposed program. They are based on historical costs incurred in similar projects, adjusted for inflation and other known or anticipated changes. Start-up cost: $7,800 and includes: 3 laptops ($3,600), 3 printers ($1,200) and Travel ($3,000). The laptops and the printers wil be used by the staff to complete the daily tasks. Training for Evidenced Based Practices: $9,975: Functional Family Therapy, is a family-based prevention and intervention program for at-risk youths ages 11 to 18. The treatment group had lower recidivism rates. The effective rated program had a positive effect on youth by reducing risky behavior, increasing strengths, and by improving functioning across key life domains. The benefits of this program, which included benefits to both crime victims and taxpayers, were calculated to be $36,241 per youth. Office Supplies/Expenses: $6,865. These funds will be used for items necessary for the daily operation of the program. Travel/Mileages: $5,588 for mileage reimbursement to program staff for attending meetings and other program activities that involve the use of a personal vehicle based on the IRS rate of $0.58 per mile. Liability Insurance: $4,282. These funds will cover an allocated portion of the Agency’s overall cost for General and Professional Liability Insurance including Owned and Non-Owned Automobile Insurance, Directors and Officers Insurance including Errors and Omissions insurance, Fidelity Bond, and Property Insurance. Sexual misconduct insurance is included as part of the general liability insurance. This allocation is based on this program’s proposed FTEs in proportion to the total agency’s FTEs. Subcontract: Constitutional Rights Foundation Peer Court: $69,364 (CRF-OC) assists with providing Peer Court services to students and qualified youth referred from law enforcement agencies under contract with Waymakers for Juvenile Diversion Services. Peer Court is organized by the Constitutional Rights Foundation Orange County, a non-profit organization dedicated to promoting civic literacy and youth leadership. CRF will coordinate and communicate with school sites, judicial officers, attorney volunteers, and Waymakers regarding Peer Court session schedules and logistics. Evaluator: $5,000 California State University Fullerton Social Science Resource Center will provide evaluation service and support to Waymakers Juvenile Diversion Program to identify whether the program is successful in terms of achieving its goals and objectives. The Social Science Research Center provides research services to campus and community organizations. As a university-based center, the SSRC is fundamentally concerned with providing high-quality research services utilizing state-of-the-art hardware, software and methodology. The Center assists non-profit and tax-supported agencies and organizations to conduct methodologically sound studies to answer policy-relevant research questions. The motto of the Center is, "Applied Research in the Public Interest." Indirect costs: $71,921 are budgeted based on 10% of total direct program salaries and benefits, and include the following administrative costs needed to support the program: salaries, benefits, office supplies/expenses, rent, etc.
A107: MOD x APPROVAL DATE:
A110: 5. Equipment/Fixed Assets
A111: Description of Equipment/Fixed Asset | C111: Calculation for Expense | F111: Grant Funds | G111: Match Funds | H111: Total
H112: =SUM(F112:G112) -> 0
A113: TOTALS | F113: =SUM(F112:F112) -> 0 | G113: =SUM(G112:G112) -> 0 | H113: 0
A115: Equipment/Fixed Assets Narrative
A118: MOD x APPROVAL DATE:
A121: 6. Data Collection
A122: Description | F122: Grant Funds | G122: Match Funds | H122: Total
H123: =SUM(F123:G123) -> 0
A124: TOTAL | F124: =SUM(F123:F123) -> 0 | G124: =SUM(G123:G123) -> 0 | H124: =SUM(F124:G124) -> 0
A126: Data Collection
A129: MOD x APPROVAL DATE:
A132: 7. Project Evaluation
A133: Description | F133: Grant Funds | G133: Match Funds | H133: Total
H134: =SUM(F134:G134) -> 0
A135: TOTAL | F135: =SUM(F134:F134) -> 0 | G135: =SUM(G134:G134) -> 0 | H135: =SUM(F135:G135) -> 0
A137: Project Evaluation Narrative:
A140: MOD x APPROVAL DATE:
A143: 8. Other (Travel, Training, etc.)
A144: Description | C144: Calculation for Expense | F144: Grant Funds | G144: Match Funds | H144: Total
A145: BSCC Grant Travel | F145: 3000 | H145: =SUM(F145:G145) -> 3000
A146: TOTAL | F146: =SUM(F145:F145) -> 3000 | G146: =SUM(G145:G145) -> 0 | H146: 3000
A148: Other (Travel, Training, etc.) Narrative:
A149: $3,000 is budgeted in Year one for per diem travel for airline travel, hotel accomodation, food for a BSCC Grantee Orientation to be educated on how to maintain compliance with BSCC Youth Reinvestment Grant program reporting requirements.
A152: MOD x APPROVAL DATE:
A155: 9. Indirect Costs
A156: Indirect costs may be charged by choosing only one of options 1) or 2) listed below. | F156: Grant Funds | G156: Match Funds | H156: Total
A157: 1. Indirect costs will be charged as 10% of total direct salaries and wages, not to exceed: | E157: =SUM(F21)*10% -> 9700 | H157: =SUM(F157:G157) -> 0
A158: 2. Indirect costs will be charged as 5% of direct total direct project costs (excluding equipment) not to exceed: | E158: =SUM(F21,F38,F53,F84,F124,F135,F146,)*5% -> 50000 | H158: =SUM(F158:G158) -> 0
A159: If the amount entered turns red, adjust it to not exceed the maximum noted above: TOTAL | F159: =SUM(F157:F158) -> 0 | G159: =SUM(G157:G158) -> 0 | H159: =SUM(H157:H158) -> 0
A161: Indirect Costs Narrative:
A164: MOD x APPROVAL DATE:

Sheet INVOICE DUE DATES
A1: Invoice # | B1: Reporting Period | C1: Due Date
A2: Invoice 1 | B2: July 1, 2019 to September 30, 2019 | C2: 2019-11-15
A3: Invoice 2 | B3: October 1, 2019 to December 31, 2019 | C3: 2020-02-15
A4: Invoice 3 | B4: January 1, 2020 to March 31, 2020 | C4: 2020-05-15
A5: Invoice 4 | B5: April 1, 2020 to June 30, 2020 | C5: 2020-08-15
A6: Invoice 5 | B6: July 1, 2021 to September 30, 2020 | C6: 2020-11-15
A7: Invoice 6 | B7: October 1, 2020 to December 31, 2020 | C7: 2020-02-15
A8: Invoice 7 | B8: January 1, 2021 to March 31, 2020 | C8: 2020-05-14
A9: Invoice 8 | B9: April 1, 2021 to June 30, 2021 | C9: 2021-08-16
A10: Invoice 9 | B10: July 1, 2021 to September 30, 2021 | C10: 2021-11-15
A11: Invoice 10 | B11: October 1, 2021 to December 31, 2021 | C11: 2022-02-15
A12: Invoice 11 | B12: January 1, 2022 to March 31, 2022 | C12: 2022-05-16
A13: Invoice 12 | B13: April 1, 2022 to June 30, 2022 | C13: 2022-08-15
A14: Invoice 13 | B14: July 1, 2022 to September 30, 2022 | C14: 2022-11-15
A15: Invoice 14 | B15: October 1, 2022 to December 31, 2022 | C15: 2023-02-15
A16: Invoice 15 | B16: January 1, 2023 to March 31, 2023 | C16: 2023-04-15

Sheet INSTRUCTIONS
A1: Invoice Workbook
A3: How to Locate the Invoice Workbook
A4: Invoice workbooks are located on the Board of State and Community Corrections (BSCC) website under the Corrections Planning and Grant Programs Division (CPGP) webpage: http://www.bscc.ca.gov/s_correctionsplanningandprograms/.
A6: On the CPGP webpage, locate the CPGP Quick Links and select Grantee Invoicing.
A8: Invoice Workbooks are located under the respective grantee program (e.g., California Violence Intervention and Prevention, Edward Byrne Memorial Justice Assistance Grant, Law Enforcement Assisted Diversion, Proposition 47, etc.).
A10: How to Save the Invoice Workbook
A11: Right click on the file and select Save Link as. This will navigate the grantee to their computer files. The grantee shall navigate to a folder where they would like to save their Invoice Workbook. Do not rename the file.
A13: The grantee should then exit the web browser and work directly from the saved file.
A15: Prior to each reporting period, it is the grantee’s responsibility to download and save the Invoice Workbook to their local computer. This will ensure the most current budget information is being used in the Invoice Workbook.
A17: Forms Included in the Invoice Workbook
A18: The Invoice Workbook is an Excel file arranged by worksheet tabs (located along the bottom). The tabs included in the Invoice workbook are listed below:
A19:  Invoice (Form BSCC 201) for each reporting period;
A20:  Advance Payment (Form BSCC 201) for each of three advance disbursements;
A21:  Modification Request (Form BSCC 223.1 Rev 4/20);
A22:  Project Budget Narrative
A23:  Invoice Due Dates
A24:  Instructions.
A26: Passwords and Formulas in the Invoice Workbook
A27: Each time the grantee opens the Invoice workbook, they will be prompted to enter a password. The password is the grant agreement number (e.g. 990-19, include the -, do not include BSCC).
A29: The Invoice Workbook has specific functions which require macros to be enabled. A macro is a series of commands, such as calculations, that are stored within the document for tasks performed repeatedly. In most cases, Excel will prompt the grantee to enable macros. When this prompt appears, select Enable Editing then Enable Content. Enabling macros for the Invoice Workbook will not compromise the security of the local system nor the security of the agency's network.
A32: Financial Invoice - Form BSCC 201
A34: How to Complete a Financial Invoice
A35: Each Financial Invoice has a separate workbook tab titled, INVOICE #. The Financial Invoice will allow grantees to enter data into the green-shaded fields; all other fields are locked.
A37: The following instructions are for the green-shaded fields the Invoice to be completed by the Grantee.
A39: THIS REPORTING PERIOD
A40: The grantee shall enter the line item expenditures and match contributions incurred during the reporting period.
A41: All expenditures should be rounded to the nearest whole dollar; do not enter decimals.
A42: If an amount entered into a cell is greater than the available balance, an Invalid Dollar error message will appear. If the error is typographical, select Retry and enter the correct amount. If the amount entered is correct, however greater than the available balance, select Cancel and submit a Budget Modification. See, Budget Modification details below.
A44: EXPENDITURE DESCRIPTION
A45: For each dollar amount entered as an expenditure, enter a brief but detailed description. Your expenditures should correlate to Project Budget Narrative, which is listed on its own tab along with approved modification requests.
A47: PERSON PREPARING REPORT
A48: The grantee will designate an individual to prepare invoices. The Authorized Financial Officer cannot prepare invoices.
A49: The individual who prepares invoices will provide their contact information and the date the invoice was prepared under the PERSON PREPARING REPORT section. Then, forward the Invoice Workbook to the Authorized Financial Officer for review and approval.
A51: AUTHORIZED FINANCIAL OFFICER
A52: The Authorized Financial Officer is the Financial Officer listed in the Grant Agreement, STD 213 and/or Grantee Contact Information Sheet, Form 227.
A53: The Authorized Financial Officer cannot be the Project Director or the individual preparing the invoice.
A54: The Authorized Financial Officer must review each line item expenditure and description. Then, approve the invoice by checking the certification box and providing their contact information and the date of approval.
A55: Once the invoice is approved, the Authorized Financial Officer shall email the Invoice Workbook to the any grant inbox: anygrant@bscc.ca.gov. The Authorized Financial Officer is the only authorized party to submit an Invoice Workbook to the BSCC.
A56: Approved Financial Invoice
A57: Once BSCC staff reviews and approves the Financial Invoice, an updated Invoice Workbook will be available on the BSCC website. All approved Financial Invoices will be locked from editing but will be viewable in the Invoice Workbook.
A59: Advance Payment Invoice – Form 201A
A61: How to Complete the Advance Payment Invoice
A62: Each Advance Payment Invoice has a separate workbook tab titled, # ADVANCE PAYMENT. The Advance Payment Invoice will allow grantees to enter data into the green shaded fields; all other fields are locked.
A63: To complete the Advance Payment form, grantees must complete the following:
A64:  Idenitfy the effective invoice
A65:  Idenitfy the person preparing the report
A66:  Complete the information and signature for the Authorized Financial Officer.
A67: Advance Disbursement Details
A68: Grantees will receive three advance payments throughout the life of the grant agreement. Each advance payment will be one-third of the total grant award.
A69: Eight percent of the total advance disbursement must be expended prior to requesting the next advance payment.
A70: Approved Advance Payment Invoice
A71: Once BSCC staff reviews and approves the Advance Payment Invoice, the updated Invoice Workbook will be emailed to the Authorized Financial Officer and the individual that prepared the report. All approved Advance Payment Invoices will be locked from editing but will be viewable in the Invoice Workbook.
A73: Modification Request - Form BSCC 223.1
A75: Modification Request Requirements
A76: It is the grantees responsibility to receive prior approval from the Field Representative for modifications to the budget or budget narrative. Once the Field Representative approves a modification to the budget or budget narrative, the grantee may complete and submit a Modification Request.
A77: The Modification Request Form allows the grantee to:  Make a change within a line-item change that modifies the grant project narrative, but does not change the total dollar amount of the line item.  Modify the budget by moving funds from one line item to another; or  Allocate earned project income
A79: The grantee must allow a minimum of 10 working days, for the modification form to be submitted and approved by the BSCC prior to completing the next invoice.
A81: How to Complete a Modification Request
A82: Grantees can access the Modification Request form by selecting the tab titled, MODIFICATION REQUEST. For the Modification Request form, grantees can enter data into the yellow-shaded fields; all other fields are locked. First, the grantee must select the purpose of the modification by checking the appropriate box in the yellow section at the top of the form.
A84: The following instructions are for the yellow-shaded fields in the Modification Request to be completed by the Grantee.
A86: Modification Request # and Effective on Invoice #
A87: The grantee shall identify the budget modification number by selecting the next number in sequential order (1 if it's the first) and then identify on which invoice the modification becomes effective.
A89: CHANGES (+/-) and JUSTIFICATION FOR MODIFIED BUDGET
A90: Line-item changes - Complete only the JUSTIFICATION FOR MODIFICATION section below the budget table. The justification must: list the affected line-item(s), detail how the original budget narrative has changed, and explain why the change is necessary. Line-item changes do not change the budget $$. Budget modifications - complete the CHANGES (+/-) section by using a + (plus symbol) followed by a whole dollar amount in the line item that is increasing and using a - (minus symbol) followed by a whole dollar amount in the line item that is decreasing. The TOTAL line must show zeros. In addition, complete the JUSTIFICATION FOR MODIFICATION section. The justification must: list the affected line-item(s), detail how the original budget narrative has changed, and explain why the change is necessary Project Income Allocation - use the Grant Funds column in the CHANGES (+/-) to show how the income will be allocated across line-items. In the Total Allocating box on the Project Income line copy the amount shown in the TOTAL line of Grant Funds column. In addition, complete the JUSTIFICATION FOR MODIFICATION section. The justification must: list the affected line-item(s) and provide narrative detail about how the project income will be used to advance program objectives. (See Grant Administration Guide, Section 13, Project and Other Income)
A92: PERSON PREPARING REPORT
A93: The grantee will designate an individual to prepare Modification Requests. The Authorized Financial Officer cannot prepare Modification Requests.
A94: The individual who prepares the request will provide their contact information and the date the modification was prepared under the PERSON PREPARING REPORT section. Then, forward the Invoice Workbook to the Authorized Financial Officer for review and approval.
A96: AUTHORIZED FINANCIAL OFFICER
A97: The Authorized Financial Officer is the Financial Officer listed in the Grant Agreement, STD 213 and/or Grantee Contact Information Sheet, Form 227.
A98: The Authorized Financial Officer cannot be the Project Director or the individual preparing the modification request.
A99: The Authorized Financial Officer must review each line item change, narrative change and justifications. Then, approve the modification request by checking the certification box and providing their contact information and the date of approval.
A100: Once the modification request is approved, the Authorized Financial Officer shall email the Invoice Workbook to the any grant inbox: anygrant@bscc.ca.gov. The Authorized Financial Officer is the only authorized party to submit it an Invoice Workbook to the BSCC.
A102: Approved Modification Request
A103: Once BSCC staff reviews and approves the Modification Request, the updated Invoice Workbook will be emailed to the Authorized Financial Officer and the individual who prepared the re quest. All approved modifications will be locked from editing but will be viewable in the Invoice Workbook.
